Service Area,Service Division,Expense Type,Expense Code,Detailed Expense Type,Payment Date,Transaction Number,Amount Exc Vat,Supplier Name
Children and Young Peoples Services,Education,Construction Work,908105,Construction work,03-Oct-16,3186189-I1517802,540,ASKAMS COMPLIANCE SERVICES LTD.
Children and Young Peoples Services,Education,Construction Work,908105,Construction work,03-Oct-16,3186228-1504,"1,405.15",CATHEDRAL LOCK & SAFE SERVICES LTD.
Adult and Health Services,Public Health,Third Party Payments,460802,Contract Payments,03-Oct-16,3186239-3980019377,"277,500.00",CO DURHAM & DARLINGTON NHS FOUNDATION TRUST.
Adult and Health Services,Commissioning inc Supporting People,Third Party Payments,440051,Other Third Party Payments,03-Oct-16,3186263-INVOICEA,"7,883.32",DERIC YOUTH BUS PROJECT.
Adult and Health Services,Public Health,Third Party Payments,460803,Contract Payments,03-Oct-16,3186326-2510003636,"937,500.00",HARROGATE & DISTRICT NHS FOUNDATION TRUST.
Children and Young Peoples Services,Childrens Services,Supplies and Services,364305,Grants to Voluntary Organisations,03-Oct-16,3186354-CAS-09-2016-173,852.95,REDACTED - PAYMENT TO INDIVIDUAL
Children and Young Peoples Services,Education,Construction Work,908105,Construction work,03-Oct-16,3186396-38155,500,LUCION ENVIRONMENTAL LLP LTD.
Children and Young Peoples Services,Education,Transport,230008,Contract Hire,03-Oct-16,3186407-INV-112,"1,026.00",MICHAEL COBB (T/A HAIL TAXIS).
Children and Young Peoples Services,Education,Transport,230008,Contract Hire,03-Oct-16,3186407-INV-113,"1,444.00",MICHAEL COBB (T/A HAIL TAXIS).
Children and Young Peoples Services,Childrens Services,Supplies and Services,304259,Equipment and Materials,03-Oct-16,3186415-SINVCO8964,700,MOTHERCARE UK LTD.
Adult and Health Services,Public Health,Supplies and Services,384155,Miscellaneous Expenses,03-Oct-16,3186430-1000048919,"69,421.76",NHS BUSINESS SERVICES AUTHORITY (NHSBSA).
Children and Young Peoples Services,Education,Supplies and Services,312009,Newspapers Books and Periodicals,03-Oct-16,3186455-1603713,554.42,PETERS LTD.
Children and Young Peoples Services,Childrens Services,Supplies and Services,308011,Furniture,03-Oct-16,3186459-64064300,655.2,PHS GROUP PLC.
Children and Young Peoples Services,Childrens Services,Supplies and Services,308011,Furniture,03-Oct-16,3186459-64189359,"3,634.89",PHS GROUP PLC.
Children and Young Peoples Services,Childrens Services,Third Party Payments,486043,Service Level Agreements,03-Oct-16,3186464-15388,"1,176.00",POST ADOPTION CENTRE.
Adult and Health Services,Head of Adults,Supplies and Services,338099,Services,03-Oct-16,3186476-INV-1173,"1,415.00",REDWOOD CABLE PROJECTS.
Children and Young Peoples Services,Education,Construction Work,908105,Construction work,03-Oct-16,3186518-10090,"8,107.50",STEADFAST SECURITY SOLUTIONS LTD.
Children and Young Peoples Services,Education,Construction Work,908105,Construction work,03-Oct-16,3186518-9997,"1,748.40",STEADFAST SECURITY SOLUTIONS LTD.
Adult and Health Services,Commissioning inc Supporting People,Transport,240045,Car Allowances,03-Oct-16,3186525-6240,"10,440.80",SUPPORTIVE SRC LTD.
Children and Young Peoples Services,Education,Transport,230008,Contract Hire,03-Oct-16,3186560-85,"1,805.00",TRIDENT TAXIS.
Children and Young Peoples Services,Childrens Services,Supplies and Services,344033,Telephones,03-Oct-16,3186567-202961,572.8,UNIFY BUSINESS SOLUTIONS LTD.
Children and Young Peoples Services,Childrens Services,Third Party Payments,425040,Rendered by Voluntary Organisations,03-Oct-16,3186589-02869,"7,091.43",YOUNG FOUNDATIONS LTD.
Regeneration and Local Services,Economic Development and Housing,Supplies and Services,338099,Services,03-Oct-16,3186168-INV-1843,"1,750.00",360 AGENCY LTD.
Regeneration and Local Services,Technical Services,Supplies and Services,304221,Equipment and Materials,03-Oct-16,3186175-23462953,"2,256.47",AGGREGATE INDUSTRIES UK LTD.
Regeneration and Local Services,Technical Services,Supplies and Services,304221,Equipment and Materials,03-Oct-16,3186175-23462954,"1,282.84",AGGREGATE INDUSTRIES UK LTD.
Regeneration and Local Services,Technical Services,Supplies and Services,304221,Equipment and Materials,03-Oct-16,3186175-23714973,"1,164.69",AGGREGATE INDUSTRIES UK LTD.
Regeneration and Local Services,Technical Services,Supplies and Services,304221,Equipment and Materials,03-Oct-16,3186175-23720987,"1,245.22",AGGREGATE INDUSTRIES UK LTD.
Regeneration and Local Services,Technical Services,Supplies and Services,304221,Equipment and Materials,03-Oct-16,3186175-23720988,"1,431.04",AGGREGATE INDUSTRIES UK LTD.
Regeneration and Local Services,Technical Services,Supplies and Services,304221,Equipment and Materials,03-Oct-16,3186175-23720989,681.68,AGGREGATE INDUSTRIES UK LTD.
Regeneration and Local Services,Transport and Contracted Services,Third Party Payments,430100,Rendered by Private Contractors,03-Oct-16,3186187-16-4SEPV1,"771,148.00",ARRIVA DURHAM COUNTY LTD.
Regeneration and Local Services,Transport and Contracted Services,Third Party Payments,430100,Rendered by Private Contractors,03-Oct-16,3186188-16-4SEPV1,"5,404.73",ARRIVA RAIL NORTH LTD T/A NORTHERN.
Regeneration and Local Services,Technical Services,Third Party Payments,430100,Rendered by Private Contractors,03-Oct-16,3186195-IN28221,"4,583.19",BALFOUR BEATTY LIVING PLACES LTD.
Regeneration and Local Services,Economic Development and Housing,Supplies and Services,304259,Equipment and Materials,03-Oct-16,3186205-FLGA3964668,866.39,BNP PARIBAS LEASE GROUP (RENTALS).
Regeneration and Local Services,Direct Services,Supplies and Services,304221,Equipment and Materials,03-Oct-16,3186224-851602290,"1,966.49",CARLISLE CONSTRUCTION MATERIALS LTD.
Regeneration and Local Services,Direct Services,Third Party Payments,430100,Rendered by Private Contractors,03-Oct-16,3186228-1534,"1,680.00",CATHEDRAL LOCK & SAFE SERVICES LTD.
Regeneration and Local Services,Technical Services,Premises,150015,Apportioned Exps of Operational Blds,03-Oct-16,3186236-50938,944.61,CLEE HILL PLANT LTD.
Regeneration and Local Services,Technical Services,Premises,150015,Apportioned Exps of Operational Blds,03-Oct-16,3186236-50942,944.61,CLEE HILL PLANT LTD.
Regeneration and Local Services,Culture & Sport,Supplies and Services,336005,Advertising,03-Oct-16,3186242-INV00935,"2,802.00",COMPETITION LINE UK LTD.
Regeneration and Local Services,Economic Development and Housing,Supplies and Services,324117,Provisions,03-Oct-16,3186248-SI084623,"1,217.84",COTTAGE DELIGHT LTD.
Regeneration and Local Services,Direct Services,Transport,210057,Repair and Maintenance of Vehicles,03-Oct-16,3186262-DE10979060,523.14,DENNIS EAGLE LTD.
Regeneration and Local Services,Direct Services,Third Party Payments,430101,Rendered by Private Contractors,03-Oct-16,3186267-IV812930,"1,687.05",DIRECT TYRE MANAGEMENT (DTM).
Regeneration and Local Services,Direct Services,Third Party Payments,430100,Rendered by Private Contractors,03-Oct-16,3186269-0000068511,"2,580.00",DORMA UK LTD.
Regeneration and Local Services,Technical Services,Stock,926900,Stock in hand-Inventory system,03-Oct-16,3186293-117795,"1,537.50",FABRIKAT (NOTTINGHAM) LTD.
Regeneration and Local Services,Direct Services,Supplies and Services,304221,Equipment and Materials,03-Oct-16,3186299-1609-029368,846.99,FLAME HEATING SPARES LTD.
Regeneration and Local Services,Technical Services,Supplies and Services,304357,Equipment and Materials,03-Oct-16,3186308-DCC180916,"15,290.12",GAP GROUP LTD.
Regeneration and Local Services,Direct Services,Supplies and Services,304221,Equipment and Materials,03-Oct-16,3186309-808633,"1,081.55",GARTEC LTD.
Regeneration and Local Services,Direct Services,Supplies and Services,304259,Equipment and Materials,03-Oct-16,3186315-INV055537,986.3,GOTT TECHNICAL SERVICES LTD.
Regeneration and Local Services,Technical Services,Stock,926900,Stock in hand-Inventory system,03-Oct-16,3186320-06/615591,"1,016.00",GREENHAM TRADING LTD.
Regeneration and Local Services,Direct Services,Transport,210057,Repair and Maintenance of Vehicles,03-Oct-16,3186321-132836,568.39,GREENLAY (GRASS MACHINERY) LTD.
Regeneration and Local Services,Technical Services,Supplies and Services,338027,Services,03-Oct-16,3186327-0040201538,"7,095.00",HARTLEPOOL BOROUGH COUNCIL.
Regeneration and Local Services,Transport and Contracted Services,Third Party Payments,430100,Rendered by Private Contractors,03-Oct-16,3186335-16-4SEPV1,512.17,HODGSONS COACH OPERATORS LTD.
Regeneration and Local Services,Direct Services,Third Party Payments,430100,Rendered by Private Contractors,03-Oct-16,3186336-65007,"2,905.00",HOGARTH COACHWORKS LTD.
Regeneration and Local Services,Direct Services,Third Party Payments,430100,Rendered by Private Contractors,03-Oct-16,3186336-65136,"1,023.66",HOGARTH COACHWORKS LTD.
Regeneration and Local Services,Direct Services,Third Party Payments,430100,Rendered by Private Contractors,03-Oct-16,3186336-65254,933,HOGARTH COACHWORKS LTD.
Regeneration and Local Services,Technical Services,Stock,926900,Stock in hand-Inventory system,03-Oct-16,3186339-34159,"1,796.00",HUGH LOGAN ENGINEERING.
Regeneration and Local Services,Direct Services,Third Party Payments,430100,Rendered by Private Contractors,03-Oct-16,3186342-14383,780,IAN BRADLEY RECOVERY LTD.
Regeneration and Local Services,Technical Services,Construction Work,908105,Construction work,03-Oct-16,3186352-12913,"1,065.18",JACK COUPE & SONS LTD T/A COUPE LINE.
Regeneration and Local Services,Technical Services,Construction Work,908108,Capital - Surface Dressing,03-Oct-16,3186352-12925,"4,717.31",JACK COUPE & SONS LTD T/A COUPE LINE.
Regeneration and Local Services,Transport and Contracted Services,Third Party Payments,430100,Rendered by Private Contractors,03-Oct-16,3186363-16-4SEPV1,"7,121.48",JOHN JAMES BRUNSKILL.
Regeneration and Local Services,Direct Services,Supplies and Services,304358,Equipment and Materials,03-Oct-16,3186365-25335,536.4,JOHN R BUTTERFIELD LTD.
Regeneration and Local Services,Technical Services,Stock,926900,Stock in hand-Inventory system,03-Oct-16,3186371-STI444484,911.58,JT DOVE LTD.
Regeneration and Local Services,Technical Services,Supplies and Services,304358,Equipment and Materials,03-Oct-16,3186372-1400,973,KEVIN SNOWDON GROUNDWORKS LTD.
Regeneration and Local Services,Technical Services,Supplies and Services,304358,Equipment and Materials,03-Oct-16,3186372-1405,911.5,KEVIN SNOWDON GROUNDWORKS LTD.
Regeneration and Local Services,Technical Services,Supplies and Services,304358,Equipment and Materials,03-Oct-16,3186372-1408,573,KEVIN SNOWDON GROUNDWORKS LTD.
Regeneration and Local Services,Technical Services,Supplies and Services,304358,Equipment and Materials,03-Oct-16,3186372-1409,965.5,KEVIN SNOWDON GROUNDWORKS LTD.
Regeneration and Local Services,Technical Services,Supplies and Services,304358,Equipment and Materials,03-Oct-16,3186372-1410,"1,030.00",KEVIN SNOWDON GROUNDWORKS LTD.
Regeneration and Local Services,Technical Services,Supplies and Services,304358,Equipment and Materials,03-Oct-16,3186372-1411,997.5,KEVIN SNOWDON GROUNDWORKS LTD.
Regeneration and Local Services,Transport and Contracted Services,Third Party Payments,430100,Rendered by Private Contractors,03-Oct-16,3186375-16-4SEPV1,586.86,LANCHESTER PARTNERSHIP.
Regeneration and Local Services,Technical Services,Third Party Payments,430100,Rendered by Private Contractors,03-Oct-16,3186376-INV01117141,"5,500.00",LANES GROUP PLC.
Regeneration and Local Services,Technical Services,Third Party Payments,430100,Rendered by Private Contractors,03-Oct-16,3186376-INV01117714,"1,320.00",LANES GROUP PLC.
Regeneration and Local Services,Technical Services,Third Party Payments,430100,Rendered by Private Contractors,03-Oct-16,3186376-INV01133928,"2,640.00",LANES GROUP PLC.
Regeneration and Local Services,Technical Services,Third Party Payments,430100,Rendered by Private Contractors,03-Oct-16,3186376-INV01135140,"1,320.00",LANES GROUP PLC.
Regeneration and Local Services,Technical Services,Third Party Payments,430100,Rendered by Private Contractors,03-Oct-16,3186376-INV01137337,"1,320.00",LANES GROUP PLC.
Regeneration and Local Services,Technical Services,Third Party Payments,430100,Rendered by Private Contractors,03-Oct-16,3186376-INV01137338,"1,320.00",LANES GROUP PLC.
Regeneration and Local Services,Technical Services,Third Party Payments,430100,Rendered by Private Contractors,03-Oct-16,3186376-NV01126627,"2,750.00",LANES GROUP PLC.
Regeneration and Local Services,Direct Services,Third Party Payments,430105,Rendered by Private Contractors,03-Oct-16,3186395-291021,"1,002.95",LOW FELL REMOVALS.
Regeneration and Local Services,Spatial Policy Planning Assets & Environment,Construction Work,908105,Construction work,03-Oct-16,3186396-38156,"1,280.00",LUCION ENVIRONMENTAL LLP LTD.
Regeneration and Local Services,Technical Services,Supplies and Services,304221,Equipment and Materials,03-Oct-16,3186403-ZBB1094887,"3,530.45",MARSHALLS MONO LTD.
Regeneration and Local Services,Technical Services,Supplies and Services,304221,Equipment and Materials,03-Oct-16,3186403-ZJB0041035,"1,820.77",MARSHALLS MONO LTD.
Regeneration and Local Services,Technical Services,Supplies and Services,304221,Equipment and Materials,03-Oct-16,3186424-0000054859,"1,046.00",NAL LTD.
Regeneration and Local Services,Spatial Policy Planning Assets & Environment,Supplies and Services,336005,Advertising,03-Oct-16,3186429-16729533,"1,206.88",NEWSQUEST (YORKSHIRE & NORTH EAST) LTD.
Regeneration and Local Services,Technical Services,Third Party Payments,430100,Rendered by Private Contractors,03-Oct-16,3186437-DI20217063,840.6,NORTHERN POWERGRID (NORTHEAST) LTD.
Regeneration and Local Services,Technical Services,Third Party Payments,430100,Rendered by Private Contractors,03-Oct-16,3186437-DI20243446,"3,076.82",NORTHERN POWERGRID (NORTHEAST) LTD.
Regeneration and Local Services,Transport and Contracted Services,Construction Work,908201,Capital - Public Utilities - Electricity Services,03-Oct-16,3186437-DI20252653,"31,850.00",NORTHERN POWERGRID (NORTHEAST) LTD.
Regeneration and Local Services,Direct Services,Supplies and Services,304259,Equipment and Materials,03-Oct-16,3186438-2100232,"1,490.00",NORTHERN TOOLS & ACCESSORIES.
Regeneration and Local Services,Direct Services,Supplies and Services,304221,Equipment and Materials,03-Oct-16,3186438-2105138,"1,414.00",NORTHERN TOOLS & ACCESSORIES.
Regeneration and Local Services,Economic Development and Housing,Construction Work,908113,Capital - Landscaping,03-Oct-16,3186439-142,"3,991.64",NORTHUMBRIA MASONRY CONSERVATION LTD.
Regeneration and Local Services,Direct Services,Transport,215005,Running Costs of Vehicles,03-Oct-16,3186443-194056,"11,656.54",OIL NRG LTD.
Regeneration and Local Services,Direct Services,Transport,215022,Running Costs of Vehicles,03-Oct-16,3186443-194057,"2,096.33",OIL NRG LTD.
Regeneration and Local Services,Culture & Sport,Supplies and Services,324117,Provisions,03-Oct-16,3186448-22/2156813,570.62,PALMER & HARVEY MCLANE LTD.
Regeneration and Local Services,Direct Services,Supplies and Services,304221,Equipment and Materials,03-Oct-16,3186449-BR553240,648.8,PARK ELECTRICAL DISTRIBUTORS LTD.
Regeneration and Local Services,Technical Services,Stock,926900,Stock in hand-Inventory system,03-Oct-16,3186449-XL180069,717.29,PARK ELECTRICAL DISTRIBUTORS LTD.
Regeneration and Local Services,Technical Services,Stock,926900,Stock in hand-Inventory system,03-Oct-16,3186449-XL180128,"1,878.63",PARK ELECTRICAL DISTRIBUTORS LTD.
Regeneration and Local Services,Direct Services,Supplies and Services,304221,Equipment and Materials,03-Oct-16,3186449-XL180239,536.33,PARK ELECTRICAL DISTRIBUTORS LTD.
Regeneration and Local Services,Culture & Sport,Supplies and Services,384199,Miscellaneous Expenses,03-Oct-16,3186451-GALA01,704.2,PAUL BENZING.
Regeneration and Local Services,Direct Services,Third Party Payments,430100,Rendered by Private Contractors,03-Oct-16,3186458-162041,"3,715.00",PFEIFER DRAKO LTD.
Regeneration and Local Services,Transport and Contracted Services,Supplies and Services,332047,Printing Stationery and Gen Off Exps,03-Oct-16,3186461-10052,598.5,PIXL ID LTD.
Regeneration and Local Services,Technical Services,Third Party Payments,430100,Rendered by Private Contractors,03-Oct-16,3186469-141286,"54,051.36",PREMIER TRAFFIC MANAGEMENT LTD.
Regeneration and Local Services,Technical Services,Third Party Payments,430100,Rendered by Private Contractors,03-Oct-16,3186471-92035,550,PROTECTOR SECURITY GROUP LTD.
Regeneration and Local Services,Technical Services,Supplies and Services,304221,Equipment and Materials,03-Oct-16,3186471-92038,550,PROTECTOR SECURITY GROUP LTD.
Regeneration and Local Services,Technical Services,Supplies and Services,304358,Equipment and Materials,03-Oct-16,3186477-2681,"1,448.00",REUBEN SMITH (PLANT HIRE) LTD.
Regeneration and Local Services,Culture & Sport,Debtors,930178,Debtor - Consett Academy FM,03-Oct-16,3186481-I/CONSETT40181,"13,931.35",ROBERTSON FACILITIES MANAGEMENT.
Regeneration and Local Services,Transport and Contracted Services,Third Party Payments,430100,Rendered by Private Contractors,03-Oct-16,3186491-16-4SEPV1,"8,039.33",SB TRAVEL.
Regeneration and Local Services,Transport and Contracted Services,Third Party Payments,430100,Rendered by Private Contractors,03-Oct-16,3186492-16-4SEPV1,"15,327.05",SCARLET BAND BUS & COACH LTD.
Regeneration and Local Services,Direct Services,Third Party Payments,430100,Rendered by Private Contractors,03-Oct-16,3186513-5435,"18,610.00",ST ASTIER LTD.
Regeneration and Local Services,Direct Services,Third Party Payments,430100,Rendered by Private Contractors,03-Oct-16,3186513-5449,"9,305.00",ST ASTIER LTD.
Regeneration and Local Services,Transport and Contracted Services,Third Party Payments,430100,Rendered by Private Contractors,03-Oct-16,3186517-16-4SEPV1,"7,389.17",STANLEY TRAVEL (NORTH EAST) LTD.
Regeneration and Local Services,Culture & Sport,Supplies and Services,332029,Printing Stationery and Gen Off Exps,03-Oct-16,3186521-INV-2758,"1,260.00",STEVE DAVIDSON ADVERTISING LTD T/A SD ADVERTISING LTD.
Regeneration and Local Services,Technical Services,Supplies and Services,304221,Equipment and Materials,03-Oct-16,3186522-086008,"1,470.60",STONEGRAVE AGGREGATES LTD.
Regeneration and Local Services,Direct Services,Supplies and Services,304221,Equipment and Materials,03-Oct-16,3186526-2098150,810.88,T CROSSLING & CO LTD.
Regeneration and Local Services,Technical Services,Supplies and Services,304221,Equipment and Materials,03-Oct-16,3186531-9034973433,695.36,TARMAC TRADING LTD.
Regeneration and Local Services,Technical Services,Stock,926900,Stock in hand-Inventory system,03-Oct-16,3186531-9034974451,698.95,TARMAC TRADING LTD.
Regeneration and Local Services,Technical Services,Supplies and Services,304358,Equipment and Materials,03-Oct-16,3186539-20276,810,TEWARD BROS LTD.
Regeneration and Local Services,Technical Services,Stock,926900,Stock in hand-Inventory system,03-Oct-16,3186551-N/IN180380,748.34,THOMAS OWEN & SONS (NEWCASTLE) LTD.
Regeneration and Local Services,Direct Services,Transport,210057,Repair and Maintenance of Vehicles,03-Oct-16,3186569-391717,598,UNIVERSAL HOSE LTD T/A HYDRAQUIP HOSE & HYDRAULICS
Regeneration and Local Services,Direct Services,Supplies and Services,304221,Equipment and Materials,03-Oct-16,3186573-6890220406,"3,126.93",VIESSMANN LTD.
Regeneration and Local Services,Direct Services,Supplies and Services,304358,Equipment and Materials,03-Oct-16,3186580-70987,"1,000.00",WARREN ACCESS LTD.
Regeneration and Local Services,Transport and Contracted Services,Third Party Payments,430100,Rendered by Private Contractors,03-Oct-16,3186582-16-4SEPV1,"1,465.11",WEARDALE MOTOR SERVICES LTD.
Regeneration and Local Services,Transport and Contracted Services,Third Party Payments,430100,Rendered by Private Contractors,03-Oct-16,3186582-16-4SEPV1X21,"18,736.56",WEARDALE MOTOR SERVICES LTD.
Regeneration and Local Services,Technical Services,Stock,926900,Stock in hand-Inventory system,03-Oct-16,3186585-35935072,"2,811.73",WOLSELEY UK LTD.
Regeneration and Local Services,Direct Services,Stock,926004,Stock,03-Oct-16,3186590-105206,"1,152.26",ZOELLER WASTE SYSTEMS LTD.
Regeneration and Local Services,Direct Services,Stock,926004,Stock,03-Oct-16,3186590-105329,927.4,ZOELLER WASTE SYSTEMS LTD.
Resources,I.C.T. Services,Supplies and Services,332029,Printing Stationery and Gen Off Exps,03-Oct-16,3186265-14307,540,DESIGN X PRESS LTD.
Resources,I.C.T. Services,Supplies and Services,304303,Equipment and Materials,03-Oct-16,3186346-3041537,560,INSIGHT DIRECT (UK) LTD.
Resources,I.C.T. Services,Stock,926900,Stock in hand-Inventory system,03-Oct-16,3186346-3043852,"1,600.00",INSIGHT DIRECT (UK) LTD.
Resources,I.C.T. Services,Supplies and Services,332029,Printing Stationery and Gen Off Exps,03-Oct-16,3186383-2543,660,LIDDLE FOIL BLOCKING.
Resources,I.C.T. Services,Supplies and Services,342051,Computers and Communications,03-Oct-16,3186391-16/014105,"3,395.00",LOGOSOFT LTD.
Resources,I.C.T. Services,Supplies and Services,384956,Miscellaneous Expenses,03-Oct-16,3186425-NERC18328,"2,694.54",NATURAL ENVIRONMENT RESEARCH COUNCIL (NERC).
Resources - C A C,Centrally Administered costs,Supplies and Services,338017,Services,03-Oct-16,3186529-J49083,"1,020.00",TALL SECURITY PRINT LTD.
Resources,I.C.T. Services,Stock,926900,Stock in hand-Inventory system,03-Oct-16,3186587-AT31502,930,XMA LTD.
Transformation and Partnerships,Partnerships & Community Engagement Div.,Cap Exp on Grants & Other Financial Assistance (REFCUS),918004,Contributions to other bodies,03-Oct-16,3186246-VOUCHER16AB,"2,170.00",CORNFORTH PARTNERSHIP.
Transformation and Partnerships,Partnerships & Community Engagement Div.,Supplies and Services,384085,Miscellaneous Expenses,03-Oct-16,3186306-FRED05-16ORMR05-16,"1,455.00",FRIENDS OF GILESGATE BANK.
Transformation and Partnerships,Partnerships & Community Engagement Div.,Supplies and Services,384085,Miscellaneous Expenses,03-Oct-16,3186331-MAIJ06-16NAPA08-16,500,HETTON JUNIORS FOOTBALL CLUB.
Children and Young Peoples Services,Childrens Services,Third Party Payments,440005,Other Third Party Payments,04-Oct-16,3186683-1136609,794.69,REDACTED - PAYMENT TO INDIVIDUAL
Children and Young Peoples Services,Childrens Services,Third Party Payments,440001,Other Third Party Payments,04-Oct-16,3186724-1135548,522.56,REDACTED - PAYMENT TO INDIVIDUAL
Children and Young Peoples Services,Childrens Services,Third Party Payments,440028,Other Third Party Payments,04-Oct-16,3186725-1135505,941.64,REDACTED - PAYMENT TO INDIVIDUAL
Children and Young Peoples Services,Childrens Services,Third Party Payments,440016,Other Third Party Payments,04-Oct-16,3186827-1136552,511.45,REDACTED - PAYMENT TO INDIVIDUAL
Children and Young Peoples Services,Childrens Services,Third Party Payments,440016,Other Third Party Payments,04-Oct-16,3186908-1136260,"1,415.07",REDACTED - PAYMENT TO INDIVIDUAL
Children and Young Peoples Services,Childrens Services,Third Party Payments,440001,Other Third Party Payments,04-Oct-16,3187006-1136604,"1,062.00",REDACTED - PAYMENT TO INDIVIDUAL
Children and Young Peoples Services,Childrens Services,Third Party Payments,440015,Other Third Party Payments,04-Oct-16,3187120-1136549,"1,790.00",REDACTED - PAYMENT TO INDIVIDUAL
Children and Young Peoples Services,Childrens Services,Third Party Payments,440016,Other Third Party Payments,04-Oct-16,3187238-1136399,843.44,REDACTED - PAYMENT TO INDIVIDUAL
Children and Young Peoples Services,Childrens Services,Transport,230005,Contract Hire,04-Oct-16,3187261-N30/ZE,710,AABAT TAXIS.
Children and Young Peoples Services,Childrens Services,Transport,230005,Contract Hire,04-Oct-16,3187261-T22/ZG,910,AABAT TAXIS.
Children and Young Peoples Services,Education,Construction Work,908105,Construction work,04-Oct-16,3187266-156418,"4,270.00",ALBANY CONTRACT FURNITURE.
Children and Young Peoples Services,Childrens Services,Employees,80025,Agency Staff,04-Oct-16,3187307-2330376,650,CELSIAN.
Children and Young Peoples Services,Childrens Services,Employees,80025,Agency Staff,04-Oct-16,3187307-2330572,650,CELSIAN.
Children and Young Peoples Services,Childrens Services,Transport,230005,Contract Hire,04-Oct-16,3187316-CLUB16037Q,519,CLUBMAN CABS.
Adult and Health Services,Public Health,Third Party Payments,460803,Contract Payments,04-Oct-16,3187331-0032016,"68,995.00",COUNTY DURHAM & DARLINGTON LOCAL PHARMACEUTICAL COMMITTEE.
Children and Young Peoples Services,Childrens Services,Employees,80025,Agency Staff,04-Oct-16,3187339-333566,"146,670.22",DE POEL MANAGED SERVICES LTD.
Children and Young Peoples Services,Childrens Services,Employees,40149,Recruitment Instruction and Training,04-Oct-16,3187359-0101,850,FEEL GOOD FACTORY CIC.
Children and Young Peoples Services,Childrens Services,Supplies and Services,352001,Conference Expenses,04-Oct-16,3187359-0105,500,FEEL GOOD FACTORY CIC.
Children and Young Peoples Services,Childrens Services,Third Party Payments,486050,Service Level Agreements,04-Oct-16,3187375-DCCF1ST002/2016,"28,994.00",HARBOUR SUPPORT SERVICES.
Children and Young Peoples Services,Childrens Services,Transport,230005,Contract Hire,04-Oct-16,3187411-KDC010816,"1,035.00",MJ TIMNEY T/A KDC & C&M TAXIS.
Adult and Health Services,Head of Adults,Transfer Payments,515210,Social Services Clients,04-Oct-16,3187414-CAS-09-2016-180,"1,950.00",REDACTED - PAYMENT TO INDIVIDUAL
Children and Young Peoples Services,Education,Supplies and Services,340001,Postages,04-Oct-16,3187426-CAS-10-2016-005,"1,000.00",NEOPOST CREDIFON.
Children and Young Peoples Services,Education,Income,740298,Other Income,04-Oct-16,3187448-CAS-09-2016-161,"5,867.83",PARK VIEW ACADEMY.
Children and Young Peoples Services,Childrens Services,Employees,80025,Agency Staff,04-Oct-16,3187458-27739,"1,200.00",PK EDUCATION.
Children and Young Peoples Services,Education,Construction Work,908105,Construction work,04-Oct-16,3187479-2899,"23,100.48",SAFE STRIP UK LTD.
Adult and Health Services,Planning & Service Strategy,Supplies and Services,338089,Services,04-Oct-16,3187505-130416,581,SUE WOOLMORE T/A SANDSTORIES.
Adult and Health Services,Commissioning inc Supporting People,Third Party Payments,473111,Purchase of Care,04-Oct-16,3187515-0028,"6,281.00",THE HUB OF WISHES.
Children and Young Peoples Services,Childrens Services,Premises,108301,Service Repairs and Maintenance,04-Oct-16,3187524-1266,"2,236.00",TMT BUILDING SERVICES.
Adult and Health Services,Head of Adults,Third Party Payments,470101,Purchase of Care,04-Oct-16,3187547-2336602,"6,031.16",3 RED ADMIRAL COURT.
Adult and Health Services,Head of Adults,Third Party Payments,470101,Purchase of Care,04-Oct-16,3187548-2336991,"6,397.60",368 THE RIDGE.
Adult and Health Services,Head of Adults,Third Party Payments,470101,Purchase of Care,04-Oct-16,3187549-2334324,"2,059.56",A CHARLES THOMAS (CARE) LTD.
Adult and Health Services,Head of Adults,Third Party Payments,470101,Purchase of Care,04-Oct-16,3187549-2334325,"2,059.56",A CHARLES THOMAS (CARE) LTD.
Adult and Health Services,Head of Adults,Third Party Payments,470101,Purchase of Care,04-Oct-16,3187549-2334326,"2,059.56",A CHARLES THOMAS (CARE) LTD.
Adult and Health Services,Head of Adults,Third Party Payments,470101,Purchase of Care,04-Oct-16,3187549-2334327,"2,059.56",A CHARLES THOMAS (CARE) LTD.
Adult and Health Services,Head of Adults,Third Party Payments,470101,Purchase of Care,04-Oct-16,3187549-2334328,"2,059.56",A CHARLES THOMAS (CARE) LTD.
Adult and Health Services,Head of Adults,Third Party Payments,470101,Purchase of Care,04-Oct-16,3187549-2334329,"2,059.56",A CHARLES THOMAS (CARE) LTD.
Adult and Health Services,Head of Adults,Third Party Payments,470101,Purchase of Care,04-Oct-16,3187549-2334330,"2,059.56",A CHARLES THOMAS (CARE) LTD.
Adult and Health Services,Head of Adults,Third Party Payments,470101,Purchase of Care,04-Oct-16,3187549-2334331,"2,059.56",A CHARLES THOMAS (CARE) LTD.
Adult and Health Services,Head of Adults,Third Party Payments,470101,Purchase of Care,04-Oct-16,3187549-2334332,"2,059.56",A CHARLES THOMAS (CARE) LTD.
Adult and Health Services,Head of Adults,Third Party Payments,470101,Purchase of Care,04-Oct-16,3187549-2334333,"2,059.56",A CHARLES THOMAS (CARE) LTD.
Adult and Health Services,Head of Adults,Third Party Payments,470101,Purchase of Care,04-Oct-16,3187549-2334334,"2,059.56",A CHARLES THOMAS (CARE) LTD.
Adult and Health Services,Head of Adults,Third Party Payments,470101,Purchase of Care,04-Oct-16,3187549-2334335,"1,780.04",A CHARLES THOMAS (CARE) LTD.
Adult and Health Services,Head of Adults,Third Party Payments,470101,Purchase of Care,04-Oct-16,3187549-2334336,"2,059.56",A CHARLES THOMAS (CARE) LTD.
Adult and Health Services,Head of Adults,Third Party Payments,470101,Purchase of Care,04-Oct-16,3187549-2334337,"2,059.56",A CHARLES THOMAS (CARE) LTD.
Adult and Health Services,Head of Adults,Third Party Payments,470101,Purchase of Care,04-Oct-16,3187549-2334338,"2,059.56",A CHARLES THOMAS (CARE) LTD.
Adult and Health Services,Head of Adults,Third Party Payments,470101,Purchase of Care,04-Oct-16,3187549-2334339,"2,059.56",A CHARLES THOMAS (CARE) LTD.
Adult and Health Services,Head of Adults,Third Party Payments,470101,Purchase of Care,04-Oct-16,3187549-2334340,"2,059.56",A CHARLES THOMAS (CARE) LTD.
Adult and Health Services,Head of Adults,Third Party Payments,470101,Purchase of Care,04-Oct-16,3187549-2334341,"2,059.56",A CHARLES THOMAS (CARE) LTD.
Adult and Health Services,Head of Adults,Third Party Payments,470101,Purchase of Care,04-Oct-16,3187549-2334342,"2,059.56",A CHARLES THOMAS (CARE) LTD.
Adult and Health Services,Head of Adults,Third Party Payments,474101,Purchase of Care,04-Oct-16,3187550-2335904,"2,447.40",ABBEYMOOR CLINIC.
Adult and Health Services,Head of Adults,Third Party Payments,470101,Purchase of Care,04-Oct-16,3187550-2335905,"2,000.00",ABBEYMOOR CLINIC.
Adult and Health Services,Head of Adults,Third Party Payments,470101,Purchase of Care,04-Oct-16,3187550-2335906,"2,100.00",ABBEYMOOR CLINIC.
Adult and Health Services,Head of Adults,Third Party Payments,474101,Purchase of Care,04-Oct-16,3187550-2335907,"2,447.40",ABBEYMOOR CLINIC.
Adult and Health Services,Head of Adults,Third Party Payments,474101,Purchase of Care,04-Oct-16,3187550-2335908,"2,848.00",ABBEYMOOR CLINIC.
Adult and Health Services,Head of Adults,Third Party Payments,474101,Purchase of Care,04-Oct-16,3187550-2335909,"2,848.00",ABBEYMOOR CLINIC.
Adult and Health Services,Head of Adults,Third Party Payments,474101,Purchase of Care,04-Oct-16,3187550-2335910,"2,303.28",ABBEYMOOR CLINIC.
Adult and Health Services,Head of Adults,Third Party Payments,471101,Purchase of Care,04-Oct-16,3187551-2337043,"2,026.40",ABBEYVALE CARE CENTRE.
Adult and Health Services,Head of Adults,Third Party Payments,470101,Purchase of Care,04-Oct-16,3187551-2337044,"1,949.24",ABBEYVALE CARE CENTRE.
Adult and Health Services,Head of Adults,Third Party Payments,470101,Purchase of Care,04-Oct-16,3187551-2337045,835.38,ABBEYVALE CARE CENTRE.
Adult and Health Services,Head of Adults,Third Party Payments,470101,Purchase of Care,04-Oct-16,3187551-2337046,"3,341.55",ABBEYVALE CARE CENTRE.
Adult and Health Services,Head of Adults,Third Party Payments,470101,Purchase of Care,04-Oct-16,3187551-2337047,974.62,ABBEYVALE CARE CENTRE.
Adult and Health Services,Head of Adults,Third Party Payments,471101,Purchase of Care,04-Oct-16,3187551-2337048,"2,026.40",ABBEYVALE CARE CENTRE.
Adult and Health Services,Head of Adults,Third Party Payments,470101,Purchase of Care,04-Oct-16,3187551-2337049,"1,949.24",ABBEYVALE CARE CENTRE.
Adult and Health Services,Head of Adults,Third Party Payments,471101,Purchase of Care,04-Oct-16,3187551-2337050,"2,026.40",ABBEYVALE CARE CENTRE.
Adult and Health Services,Head of Adults,Third Party Payments,471101,Purchase of Care,04-Oct-16,3187551-2337051,"2,026.40",ABBEYVALE CARE CENTRE.
Adult and Health Services,Head of Adults,Third Party Payments,470101,Purchase of Care,04-Oct-16,3187551-2337052,"1,949.24",ABBEYVALE CARE CENTRE.
Adult and Health Services,Head of Adults,Third Party Payments,470101,Purchase of Care,04-Oct-16,3187551-2337053,"1,949.24",ABBEYVALE CARE CENTRE.
Adult and Health Services,Head of Adults,Third Party Payments,471101,Purchase of Care,04-Oct-16,3187551-2337054,"2,026.40",ABBEYVALE CARE CENTRE.
Adult and Health Services,Head of Adults,Third Party Payments,470101,Purchase of Care,04-Oct-16,3187551-2337055,"1,949.24",ABBEYVALE CARE CENTRE.
Adult and Health Services,Head of Adults,Third Party Payments,470101,Purchase of Care,04-Oct-16,3187551-2337056,"1,949.24",ABBEYVALE CARE CENTRE.
Adult and Health Services,Head of Adults,Third Party Payments,470101,Purchase of Care,04-Oct-16,3187551-2337057,"1,949.24",ABBEYVALE CARE CENTRE.
Adult and Health Services,Head of Adults,Third Party Payments,471101,Purchase of Care,04-Oct-16,3187551-2337058,"2,026.40",ABBEYVALE CARE CENTRE.
Adult and Health Services,Head of Adults,Third Party Payments,470101,Purchase of Care,04-Oct-16,3187551-2337059,"1,949.24",ABBEYVALE CARE CENTRE.
Adult and Health Services,Head of Adults,Third Party Payments,470101,Purchase of Care,04-Oct-16,3187551-2337060,"1,390.00",ABBEYVALE CARE CENTRE.
Adult and Health Services,Head of Adults,Third Party Payments,470101,Purchase of Care,04-Oct-16,3187551-2337061,"1,949.24",ABBEYVALE CARE CENTRE.
Adult and Health Services,Head of Adults,Third Party Payments,471101,Purchase of Care,04-Oct-16,3187551-2337062,"2,026.40",ABBEYVALE CARE CENTRE.
Adult and Health Services,Head of Adults,Third Party Payments,471101,Purchase of Care,04-Oct-16,3187551-2337063,"1,013.20",ABBEYVALE CARE CENTRE.
Adult and Health Services,Head of Adults,Third Party Payments,470101,Purchase of Care,04-Oct-16,3187551-2337064,"2,500.00",ABBEYVALE CARE CENTRE.
Adult and Health Services,Head of Adults,Third Party Payments,470101,Purchase of Care,04-Oct-16,3187551-2337065,"1,949.24",ABBEYVALE CARE CENTRE.
Adult and Health Services,Head of Adults,Third Party Payments,470101,Purchase of Care,04-Oct-16,3187551-2337066,"1,949.24",ABBEYVALE CARE CENTRE.
Adult and Health Services,Head of Adults,Third Party Payments,471101,Purchase of Care,04-Oct-16,3187551-2337067,"2,026.40",ABBEYVALE CARE CENTRE.
Adult and Health Services,Head of Adults,Third Party Payments,471101,Purchase of Care,04-Oct-16,3187551-2337068,"2,026.40",ABBEYVALE CARE CENTRE.
Adult and Health Services,Head of Adults,Third Party Payments,471101,Purchase of Care,04-Oct-16,3187551-2337069,"2,539.28",ABBEYVALE CARE CENTRE.
Adult and Health Services,Head of Adults,Third Party Payments,470101,Purchase of Care,04-Oct-16,3187551-2337070,"1,949.24",ABBEYVALE CARE CENTRE.
Adult and Health Services,Head of Adults,Third Party Payments,471101,Purchase of Care,04-Oct-16,3187551-2337071,"1,505.33",ABBEYVALE CARE CENTRE.
Adult and Health Services,Head of Adults,Third Party Payments,470101,Purchase of Care,04-Oct-16,3187551-2337072,"1,949.24",ABBEYVALE CARE CENTRE.
Adult and Health Services,Head of Adults,Third Party Payments,470101,Purchase of Care,04-Oct-16,3187551-2337073,"2,500.00",ABBEYVALE CARE CENTRE.
Adult and Health Services,Head of Adults,Third Party Payments,470101,Purchase of Care,04-Oct-16,3187551-2337074,"1,949.24",ABBEYVALE CARE CENTRE.
Adult and Health Services,Head of Adults,Third Party Payments,470101,Purchase of Care,04-Oct-16,3187552-2337726,"1,948.04",ACOMB COURT.
Adult and Health Services,Head of Adults,Third Party Payments,471101,Purchase of Care,04-Oct-16,3187553-2334902,"2,026.40",ACORN GRANGE NURSING HOME.
Adult and Health Services,Head of Adults,Third Party Payments,471101,Purchase of Care,04-Oct-16,3187553-2334903,"2,026.40",ACORN GRANGE NURSING HOME.
Adult and Health Services,Head of Adults,Third Party Payments,470101,Purchase of Care,04-Oct-16,3187553-2334904,"1,949.24",ACORN GRANGE NURSING HOME.
Adult and Health Services,Head of Adults,Third Party Payments,471101,Purchase of Care,04-Oct-16,3187553-2334907,"2,026.40",ACORN GRANGE NURSING HOME.
Adult and Health Services,Head of Adults,Third Party Payments,470101,Purchase of Care,04-Oct-16,3187553-2334908,626.54,ACORN GRANGE NURSING HOME.
Adult and Health Services,Head of Adults,Third Party Payments,470101,Purchase of Care,04-Oct-16,3187553-2334909,"1,322.69",ACORN GRANGE NURSING HOME.
Adult and Health Services,Head of Adults,Third Party Payments,471101,Purchase of Care,04-Oct-16,3187553-2334910,"1,592.17",ACORN GRANGE NURSING HOME.
Adult and Health Services,Head of Adults,Third Party Payments,471101,Purchase of Care,04-Oct-16,3187553-2334913,"1,013.20",ACORN GRANGE NURSING HOME.
Adult and Health Services,Head of Adults,Third Party Payments,471101,Purchase of Care,04-Oct-16,3187553-2334914,"2,026.40",ACORN GRANGE NURSING HOME.
Adult and Health Services,Head of Adults,Third Party Payments,470101,Purchase of Care,04-Oct-16,3187553-2334915,"1,949.24",ACORN GRANGE NURSING HOME.
Adult and Health Services,Head of Adults,Third Party Payments,470101,Purchase of Care,04-Oct-16,3187553-2334917,"1,949.24",ACORN GRANGE NURSING HOME.
Adult and Health Services,Head of Adults,Third Party Payments,471101,Purchase of Care,04-Oct-16,3187553-2334919,"2,026.40",ACORN GRANGE NURSING HOME.
Adult and Health Services,Head of Adults,Third Party Payments,471101,Purchase of Care,04-Oct-16,3187553-2334920,"2,026.40",ACORN GRANGE NURSING HOME.
Adult and Health Services,Head of Adults,Third Party Payments,471101,Purchase of Care,04-Oct-16,3187553-2334921,"2,026.40",ACORN GRANGE NURSING HOME.
Adult and Health Services,Head of Adults,Third Party Payments,470101,Purchase of Care,04-Oct-16,3187553-2334922,"1,949.24",ACORN GRANGE NURSING HOME.
Adult and Health Services,Head of Adults,Third Party Payments,471101,Purchase of Care,04-Oct-16,3187553-2334923,"1,013.20",ACORN GRANGE NURSING HOME.
Adult and Health Services,Head of Adults,Third Party Payments,471101,Purchase of Care,04-Oct-16,3187553-2334924,"2,026.40",ACORN GRANGE NURSING HOME.
Adult and Health Services,Head of Adults,Third Party Payments,470101,Purchase of Care,04-Oct-16,3187553-2334925,"1,949.24",ACORN GRANGE NURSING HOME.
Adult and Health Services,Head of Adults,Third Party Payments,471101,Purchase of Care,04-Oct-16,3187553-2334926,"2,026.40",ACORN GRANGE NURSING HOME.
Adult and Health Services,Head of Adults,Third Party Payments,471101,Purchase of Care,04-Oct-16,3187553-2334927,"2,026.40",ACORN GRANGE NURSING HOME.
Adult and Health Services,Head of Adults,Third Party Payments,471101,Purchase of Care,04-Oct-16,3187553-2334928,"2,026.40",ACORN GRANGE NURSING HOME.
Adult and Health Services,Head of Adults,Third Party Payments,470101,Purchase of Care,04-Oct-16,3187553-2334929,"1,949.24",ACORN GRANGE NURSING HOME.
Adult and Health Services,Head of Adults,Third Party Payments,471101,Purchase of Care,04-Oct-16,3187553-2334930,"2,026.40",ACORN GRANGE NURSING HOME.
Adult and Health Services,Head of Adults,Third Party Payments,471101,Purchase of Care,04-Oct-16,3187553-2334931,"2,026.40",ACORN GRANGE NURSING HOME.
Adult and Health Services,Head of Adults,Third Party Payments,471101,Purchase of Care,04-Oct-16,3187553-2334932,"2,026.40",ACORN GRANGE NURSING HOME.
Adult and Health Services,Head of Adults,Third Party Payments,470101,Purchase of Care,04-Oct-16,3187553-2334933,"1,949.24",ACORN GRANGE NURSING HOME.
Adult and Health Services,Head of Adults,Third Party Payments,470101,Purchase of Care,04-Oct-16,3187553-2334934,"1,949.24",ACORN GRANGE NURSING HOME.
Adult and Health Services,Head of Adults,Third Party Payments,470101,Purchase of Care,04-Oct-16,3187553-2334935,556.92,ACORN GRANGE NURSING HOME.
Adult and Health Services,Head of Adults,Third Party Payments,471101,Purchase of Care,04-Oct-16,3187553-2334936,"2,026.40",ACORN GRANGE NURSING HOME.
Adult and Health Services,Head of Adults,Third Party Payments,471101,Purchase of Care,04-Oct-16,3187553-2334937,"2,026.40",ACORN GRANGE NURSING HOME.
Adult and Health Services,Head of Adults,Third Party Payments,471101,Purchase of Care,04-Oct-16,3187553-2334938,"2,026.40",ACORN GRANGE NURSING HOME.
Adult and Health Services,Head of Adults,Third Party Payments,470101,Purchase of Care,04-Oct-16,3187553-2334939,"1,949.24",ACORN GRANGE NURSING HOME.
Adult and Health Services,Head of Adults,Third Party Payments,470101,Purchase of Care,04-Oct-16,3187553-2338153,"1,392.31",ACORN GRANGE NURSING HOME.
Adult and Health Services,Head of Adults,Third Party Payments,470101,Purchase of Care,04-Oct-16,3187553-2338154,"1,949.24",ACORN GRANGE NURSING HOME.
Adult and Health Services,Head of Adults,Third Party Payments,471101,Purchase of Care,04-Oct-16,3187554-2337840,"1,892.00",AILWYN HALL RESIDENTIAL CARE HOME.
Adult and Health Services,Head of Adults,Third Party Payments,474101,Purchase of Care,04-Oct-16,3187555-2337909,"3,152.00",ALDBOURNE NURSING HOME.
Children and Young Peoples Services,Education,Transport,230006,Contract Hire,04-Oct-16,3187556-CAS-09-2016-179,560,REDACTED - PAYMENT TO INDIVIDUAL
Adult and Health Services,Head of Adults,Third Party Payments,470101,Purchase of Care,04-Oct-16,3187557-2335495,"2,059.56",ALLIANCE CARE.
Adult and Health Services,Head of Adults,Debtors,930135,Debtor Residential Care - IC+ Rehabilitation,04-Oct-16,3187557-2335496,"1,759.75",ALLIANCE CARE.
Adult and Health Services,Head of Adults,Third Party Payments,471101,Purchase of Care,04-Oct-16,3187557-2335497,"1,067.80",ALLIANCE CARE.
Adult and Health Services,Head of Adults,Third Party Payments,470101,Purchase of Care,04-Oct-16,3187557-2335498,"1,536.76",ALLIANCE CARE.
Adult and Health Services,Head of Adults,Third Party Payments,470101,Purchase of Care,04-Oct-16,3187557-2335499,"1,366.32",ALLIANCE CARE.
Adult and Health Services,Head of Adults,Debtors,930135,Debtor Residential Care - IC+ Rehabilitation,04-Oct-16,3187557-2335500,844.68,ALLIANCE CARE.
Adult and Health Services,Head of Adults,Third Party Payments,470101,Purchase of Care,04-Oct-16,3187557-2335501,662,ALLIANCE CARE.
Adult and Health Services,Head of Adults,Debtors,930135,Debtor Residential Care - IC+ Rehabilitation,04-Oct-16,3187557-2335502,"1,126.24",ALLIANCE CARE.
Adult and Health Services,Head of Adults,Third Party Payments,474101,Purchase of Care,04-Oct-16,3187557-2335503,"1,634.16",ALLIANCE CARE.
Adult and Health Services,Central/Other,Debtors,930024,Debtor-free nursing care,04-Oct-16,3187557-2335504,625,ALLIANCE CARE.
Adult and Health Services,Head of Adults,Third Party Payments,471101,Purchase of Care,04-Oct-16,3187557-2335505,"1,062.40",ALLIANCE CARE.
Adult and Health Services,Head of Adults,Third Party Payments,470101,Purchase of Care,04-Oct-16,3187557-2335506,"3,015.78",ALLIANCE CARE.
Adult and Health Services,Head of Adults,Third Party Payments,470101,Purchase of Care,04-Oct-16,3187557-2335507,"2,059.56",ALLIANCE CARE.
Adult and Health Services,Head of Adults,Third Party Payments,471101,Purchase of Care,04-Oct-16,3187557-2335508,"1,067.80",ALLIANCE CARE.
Adult and Health Services,Head of Adults,Third Party Payments,474101,Purchase of Care,04-Oct-16,3187557-2335511,"2,531.78",ALLIANCE CARE.
Adult and Health Services,Central/Other,Debtors,930024,Debtor-free nursing care,04-Oct-16,3187557-2335512,625,ALLIANCE CARE.
Adult and Health Services,Head of Adults,Third Party Payments,470101,Purchase of Care,04-Oct-16,3187557-2335513,"2,059.56",ALLIANCE CARE.
Adult and Health Services,Head of Adults,Third Party Payments,470101,Purchase of Care,04-Oct-16,3187557-2335514,"5,140.99",ALLIANCE CARE.
Adult and Health Services,Head of Adults,Third Party Payments,471101,Purchase of Care,04-Oct-16,3187557-2335515,"1,067.80",ALLIANCE CARE.
Adult and Health Services,Head of Adults,Third Party Payments,470101,Purchase of Care,04-Oct-16,3187557-2335516,"2,059.56",ALLIANCE CARE.
Adult and Health Services,Head of Adults,Third Party Payments,471101,Purchase of Care,04-Oct-16,3187557-2335517,"2,135.60",ALLIANCE CARE.
Adult and Health Services,Head of Adults,Third Party Payments,470101,Purchase of Care,04-Oct-16,3187557-2335518,"1,647.65",ALLIANCE CARE.
Adult and Health Services,Head of Adults,Third Party Payments,470101,Purchase of Care,04-Oct-16,3187557-2335519,"1,536.76",ALLIANCE CARE.
Adult and Health Services,Head of Adults,Debtors,930135,Debtor Residential Care - IC+ Rehabilitation,04-Oct-16,3187557-2335520,"2,815.60",ALLIANCE CARE.
Adult and Health Services,Head of Adults,Third Party Payments,474101,Purchase of Care,04-Oct-16,3187557-2335521,"1,550.24",ALLIANCE CARE.
Adult and Health Services,Central/Other,Debtors,930024,Debtor-free nursing care,04-Oct-16,3187557-2335522,625,ALLIANCE CARE.
Adult and Health Services,Head of Adults,Third Party Payments,470101,Purchase of Care,04-Oct-16,3187557-2335523,"6,031.56",ALLIANCE CARE.
Adult and Health Services,Head of Adults,Debtors,930135,Debtor Residential Care - IC+ Rehabilitation,04-Oct-16,3187557-2335524,"1,478.19",ALLIANCE CARE.
Adult and Health Services,Head of Adults,Debtors,930135,Debtor Residential Care - IC+ Rehabilitation,04-Oct-16,3187557-2335525,"1,126.24",ALLIANCE CARE.
Adult and Health Services,Head of Adults,Third Party Payments,471101,Purchase of Care,04-Oct-16,3187557-2335526,"2,135.60",ALLIANCE CARE.
Adult and Health Services,Head of Adults,Third Party Payments,470101,Purchase of Care,04-Oct-16,3187557-2335527,"2,059.56",ALLIANCE CARE.
Adult and Health Services,Head of Adults,Third Party Payments,470101,Purchase of Care,04-Oct-16,3187557-2335528,"2,059.56",ALLIANCE CARE.
Adult and Health Services,Head of Adults,Debtors,930135,Debtor Residential Care - IC+ Rehabilitation,04-Oct-16,3187557-2335530,774.29,ALLIANCE CARE.
Adult and Health Services,Head of Adults,Third Party Payments,474101,Purchase of Care,04-Oct-16,3187557-2335531,"2,156.96",ALLIANCE CARE.
Adult and Health Services,Central/Other,Debtors,930024,Debtor-free nursing care,04-Oct-16,3187557-2335532,625,ALLIANCE CARE.
Adult and Health Services,Head of Adults,Third Party Payments,470101,Purchase of Care,04-Oct-16,3187557-2335533,"1,080.60",ALLIANCE CARE.
Adult and Health Services,Head of Adults,Third Party Payments,471101,Purchase of Care,04-Oct-16,3187557-2335534,"2,135.60",ALLIANCE CARE.
Adult and Health Services,Head of Adults,Third Party Payments,471101,Purchase of Care,04-Oct-16,3187557-2335535,"2,135.60",ALLIANCE CARE.
Adult and Health Services,Central/Other,Debtors,930024,Debtor-free nursing care,04-Oct-16,3187557-2335536,625,ALLIANCE CARE.
Adult and Health Services,Head of Adults,Third Party Payments,471101,Purchase of Care,04-Oct-16,3187557-2335538,"2,135.60",ALLIANCE CARE.
Adult and Health Services,Head of Adults,Third Party Payments,474101,Purchase of Care,04-Oct-16,3187557-2335539,"1,462.88",ALLIANCE CARE.
Adult and Health Services,Central/Other,Debtors,930024,Debtor-free nursing care,04-Oct-16,3187557-2335540,625,ALLIANCE CARE.
Adult and Health Services,Head of Adults,Third Party Payments,471101,Purchase of Care,04-Oct-16,3187557-2335541,"1,612.80",ALLIANCE CARE.
Adult and Health Services,Head of Adults,Third Party Payments,471101,Purchase of Care,04-Oct-16,3187557-2335542,"1,067.80",ALLIANCE CARE.
Adult and Health Services,Head of Adults,Third Party Payments,470101,Purchase of Care,04-Oct-16,3187557-2335543,"1,215.84",ALLIANCE CARE.
Adult and Health Services,Head of Adults,Third Party Payments,471101,Purchase of Care,04-Oct-16,3187557-2335544,"1,535.92",ALLIANCE CARE.
Adult and Health Services,Head of Adults,Third Party Payments,471101,Purchase of Care,04-Oct-16,3187557-2335545,"2,135.60",ALLIANCE CARE.
Adult and Health Services,Head of Adults,Third Party Payments,474101,Purchase of Care,04-Oct-16,3187557-2335546,"1,634.16",ALLIANCE CARE.
Adult and Health Services,Central/Other,Debtors,930024,Debtor-free nursing care,04-Oct-16,3187557-2335547,625,ALLIANCE CARE.
Adult and Health Services,Head of Adults,Third Party Payments,471101,Purchase of Care,04-Oct-16,3187557-2335548,"2,135.60",ALLIANCE CARE.
Adult and Health Services,Head of Adults,Third Party Payments,470101,Purchase of Care,04-Oct-16,3187557-2335549,"2,059.56",ALLIANCE CARE.
Adult and Health Services,Head of Adults,Third Party Payments,470101,Purchase of Care,04-Oct-16,3187557-2335550,"2,059.56",ALLIANCE CARE.
Adult and Health Services,Head of Adults,Third Party Payments,474101,Purchase of Care,04-Oct-16,3187557-2335551,"1,478.76",ALLIANCE CARE.
Adult and Health Services,Central/Other,Debtors,930024,Debtor-free nursing care,04-Oct-16,3187557-2335552,625,ALLIANCE CARE.
Adult and Health Services,Head of Adults,Third Party Payments,470101,Purchase of Care,04-Oct-16,3187557-2335553,"2,059.56",ALLIANCE CARE.
Adult and Health Services,Head of Adults,Third Party Payments,470101,Purchase of Care,04-Oct-16,3187557-2335554,"2,059.56",ALLIANCE CARE.
Adult and Health Services,Head of Adults,Third Party Payments,470101,Purchase of Care,04-Oct-16,3187557-2335555,"1,783.72",ALLIANCE CARE.
Adult and Health Services,Head of Adults,Debtors,930135,Debtor Residential Care - IC+ Rehabilitation,04-Oct-16,3187557-2338177,985.46,ALLIANCE CARE.
Adult and Health Services,Head of Adults,Third Party Payments,470101,Purchase of Care,04-Oct-16,3187558-2331884,"1,860.00",ALLINGTON HOUSE.
Adult and Health Services,Head of Adults,Third Party Payments,470101,Purchase of Care,04-Oct-16,3187558-2336730,"1,860.00",ALLINGTON HOUSE.
Adult and Health Services,Head of Adults,Third Party Payments,471101,Purchase of Care,04-Oct-16,3187559-2337781,"2,132.08",AMERIND GROVE NURSING HOME.
Adult and Health Services,Head of Adults,Third Party Payments,470101,Purchase of Care,04-Oct-16,3187560-2336915,"1,860.00",ANCHOR CAREHOMES NE LTD T/A WYNYARD WOODS GRANGE RESIDENTIAL CARE HOME.
Adult and Health Services,Head of Adults,Third Party Payments,470101,Purchase of Care,04-Oct-16,3187560-2336916,"1,860.00",ANCHOR CAREHOMES NE LTD T/A WYNYARD WOODS GRANGE RESIDENTIAL CARE HOME.
Adult and Health Services,Head of Adults,Third Party Payments,470101,Purchase of Care,04-Oct-16,3187561-2335000,"1,972.00",ANCHOR HOUSING ASSOCIATION.
Adult and Health Services,Head of Adults,Third Party Payments,470101,Purchase of Care,04-Oct-16,3187561-2335001,"1,972.00",ANCHOR HOUSING ASSOCIATION.
Adult and Health Services,Head of Adults,Third Party Payments,470101,Purchase of Care,04-Oct-16,3187561-2335002,"1,972.00",ANCHOR HOUSING ASSOCIATION.
Adult and Health Services,Head of Adults,Third Party Payments,474101,Purchase of Care,04-Oct-16,3187562-2330803,"1,620.48",ANN CHARLTON LODGE.
Adult and Health Services,Head of Adults,Third Party Payments,474101,Purchase of Care,04-Oct-16,3187562-2335633,"1,620.48",ANN CHARLTON LODGE.
Adult and Health Services,Head of Adults,Third Party Payments,470101,Purchase of Care,04-Oct-16,3187563-2334513,"1,360.04",ASCOT CARE NORTHEAST LTD.
Adult and Health Services,Head of Adults,Third Party Payments,474101,Purchase of Care,04-Oct-16,3187563-2334514,"2,046.60",ASCOT CARE NORTHEAST LTD.
Adult and Health Services,Central/Other,Debtors,930024,Debtor-free nursing care,04-Oct-16,3187563-2334515,625,ASCOT CARE NORTHEAST LTD.
Adult and Health Services,Head of Adults,Third Party Payments,470101,Purchase of Care,04-Oct-16,3187563-2334516,"1,266.04",ASCOT CARE NORTHEAST LTD.
Adult and Health Services,Head of Adults,Third Party Payments,470101,Purchase of Care,04-Oct-16,3187563-2334517,"1,527.96",ASCOT CARE NORTHEAST LTD.
Adult and Health Services,Head of Adults,Third Party Payments,470101,Purchase of Care,04-Oct-16,3187563-2334518,"1,949.24",ASCOT CARE NORTHEAST LTD.
Adult and Health Services,Head of Adults,Third Party Payments,470101,Purchase of Care,04-Oct-16,3187563-2334519,946.76,ASCOT CARE NORTHEAST LTD.
Adult and Health Services,Head of Adults,Third Party Payments,471101,Purchase of Care,04-Oct-16,3187563-2334520,"2,533.00",ASCOT CARE NORTHEAST LTD.
Adult and Health Services,Head of Adults,Third Party Payments,474101,Purchase of Care,04-Oct-16,3187563-2334521,"2,046.60",ASCOT CARE NORTHEAST LTD.
Adult and Health Services,Central/Other,Debtors,930024,Debtor-free nursing care,04-Oct-16,3187563-2334522,625,ASCOT CARE NORTHEAST LTD.
Adult and Health Services,Head of Adults,Third Party Payments,471101,Purchase of Care,04-Oct-16,3187563-2334523,"1,098.75",ASCOT CARE NORTHEAST LTD.
Adult and Health Services,Head of Adults,Third Party Payments,474101,Purchase of Care,04-Oct-16,3187563-2334524,"1,233.48",ASCOT CARE NORTHEAST LTD.
Adult and Health Services,Central/Other,Debtors,930024,Debtor-free nursing care,04-Oct-16,3187563-2334525,625,ASCOT CARE NORTHEAST LTD.
Adult and Health Services,Head of Adults,Third Party Payments,470101,Purchase of Care,04-Oct-16,3187563-2334526,"1,949.24",ASCOT CARE NORTHEAST LTD.
Adult and Health Services,Head of Adults,Third Party Payments,470101,Purchase of Care,04-Oct-16,3187563-2334527,"1,391.76",ASCOT CARE NORTHEAST LTD.
Adult and Health Services,Head of Adults,Third Party Payments,470101,Purchase of Care,04-Oct-16,3187563-2334528,"1,426.44",ASCOT CARE NORTHEAST LTD.
Adult and Health Services,Head of Adults,Third Party Payments,474101,Purchase of Care,04-Oct-16,3187563-2334529,"1,405.08",ASCOT CARE NORTHEAST LTD.
Adult and Health Services,Central/Other,Debtors,930024,Debtor-free nursing care,04-Oct-16,3187563-2334530,625,ASCOT CARE NORTHEAST LTD.
Adult and Health Services,Head of Adults,Third Party Payments,470101,Purchase of Care,04-Oct-16,3187563-2334531,"1,471.08",ASCOT CARE NORTHEAST LTD.
Adult and Health Services,Head of Adults,Third Party Payments,470101,Purchase of Care,04-Oct-16,3187563-2334532,"1,426.44",ASCOT CARE NORTHEAST LTD.
Adult and Health Services,Head of Adults,Third Party Payments,470101,Purchase of Care,04-Oct-16,3187563-2334533,"1,408.92",ASCOT CARE NORTHEAST LTD.
Adult and Health Services,Head of Adults,Third Party Payments,471101,Purchase of Care,04-Oct-16,3187563-2334534,778.28,ASCOT CARE NORTHEAST LTD.
Adult and Health Services,Head of Adults,Third Party Payments,470101,Purchase of Care,04-Oct-16,3187563-2334535,"1,366.36",ASCOT CARE NORTHEAST LTD.
Adult and Health Services,Head of Adults,Third Party Payments,471101,Purchase of Care,04-Oct-16,3187563-2334536,"1,013.04",ASCOT CARE NORTHEAST LTD.
Adult and Health Services,Head of Adults,Third Party Payments,470101,Purchase of Care,04-Oct-16,3187563-2334537,"1,426.44",ASCOT CARE NORTHEAST LTD.
Adult and Health Services,Head of Adults,Third Party Payments,470101,Purchase of Care,04-Oct-16,3187563-2334538,"1,426.44",ASCOT CARE NORTHEAST LTD.
Adult and Health Services,Head of Adults,Third Party Payments,470101,Purchase of Care,04-Oct-16,3187563-2334539,"1,949.24",ASCOT CARE NORTHEAST LTD.
Adult and Health Services,Head of Adults,Third Party Payments,471101,Purchase of Care,04-Oct-16,3187563-2334540,"1,630.84",ASCOT CARE NORTHEAST LTD.
Adult and Health Services,Central/Other,Debtors,930024,Debtor-free nursing care,04-Oct-16,3187563-2334541,625,ASCOT CARE NORTHEAST LTD.
Adult and Health Services,Head of Adults,Third Party Payments,470101,Purchase of Care,04-Oct-16,3187563-2334542,"1,144.12",ASCOT CARE NORTHEAST LTD.
Adult and Health Services,Head of Adults,Third Party Payments,470101,Purchase of Care,04-Oct-16,3187563-2334543,"1,949.24",ASCOT CARE NORTHEAST LTD.
Adult and Health Services,Head of Adults,Third Party Payments,471101,Purchase of Care,04-Oct-16,3187563-2334544,"1,479.52",ASCOT CARE NORTHEAST LTD.
Adult and Health Services,Head of Adults,Third Party Payments,470101,Purchase of Care,04-Oct-16,3187564-2337510,"2,700.00",ASHFIELD NURSING HOME LTD.
Adult and Health Services,Head of Adults,Third Party Payments,470101,Purchase of Care,04-Oct-16,3187565-2335238,969,ASHLEIGH HOUSE CARE HOME.
Adult and Health Services,Head of Adults,Third Party Payments,470101,Purchase of Care,04-Oct-16,3187566-2330403,969,ASHLEIGH HOUSE CARE HOME.
Adult and Health Services,Head of Adults,Third Party Payments,470101,Purchase of Care,04-Oct-16,3187566-2330404,969,ASHLEIGH HOUSE CARE HOME.
Adult and Health Services,Head of Adults,Third Party Payments,470101,Purchase of Care,04-Oct-16,3187566-2330405,"1,102.00",ASHLEIGH HOUSE CARE HOME.
Adult and Health Services,Head of Adults,Third Party Payments,470101,Purchase of Care,04-Oct-16,3187566-2335239,969,ASHLEIGH HOUSE CARE HOME.
Adult and Health Services,Head of Adults,Third Party Payments,470101,Purchase of Care,04-Oct-16,3187566-2335240,"1,102.00",ASHLEIGH HOUSE CARE HOME.
Adult and Health Services,Head of Adults,Third Party Payments,470101,Purchase of Care,04-Oct-16,3187567-2337564,953.88,ASPIRE CARE GROUP.
Adult and Health Services,Head of Adults,Third Party Payments,470101,Purchase of Care,04-Oct-16,3187567-2337565,"1,907.72",ASPIRE CARE GROUP.
Adult and Health Services,Head of Adults,Third Party Payments,470101,Purchase of Care,04-Oct-16,3187567-2337566,"1,907.72",ASPIRE CARE GROUP.
Adult and Health Services,Head of Adults,Third Party Payments,470101,Purchase of Care,04-Oct-16,3187567-2337568,"1,507.12",ASPIRE CARE GROUP.
Adult and Health Services,Head of Adults,Third Party Payments,470101,Purchase of Care,04-Oct-16,3187567-2337570,"1,523.20",ASPIRE CARE GROUP.
Adult and Health Services,Head of Adults,Third Party Payments,470101,Purchase of Care,04-Oct-16,3187567-2337572,"1,384.92",ASPIRE CARE GROUP.
Adult and Health Services,Head of Adults,Third Party Payments,470101,Purchase of Care,04-Oct-16,3187567-2337574,"1,384.12",ASPIRE CARE GROUP.
Adult and Health Services,Head of Adults,Third Party Payments,470101,Purchase of Care,04-Oct-16,3187568-2336604,"3,500.00",ASPIRE CARE GROUP.
Adult and Health Services,Head of Adults,Third Party Payments,470101,Purchase of Care,04-Oct-16,3187568-2336605,"2,228.80",ASPIRE CARE GROUP.
Adult and Health Services,Head of Adults,Third Party Payments,470101,Purchase of Care,04-Oct-16,3187568-2336606,"1,750.00",ASPIRE CARE GROUP.
Adult and Health Services,Head of Adults,Third Party Payments,470101,Purchase of Care,04-Oct-16,3187568-2336607,668.64,ASPIRE CARE GROUP.
Adult and Health Services,Head of Adults,Third Party Payments,470101,Purchase of Care,04-Oct-16,3187568-2336608,"1,907.72",ASPIRE CARE GROUP.
Adult and Health Services,Head of Adults,Third Party Payments,470101,Purchase of Care,04-Oct-16,3187569-2335235,"1,907.72",ASPIRE CARE GROUP.
Adult and Health Services,Head of Adults,Third Party Payments,470101,Purchase of Care,04-Oct-16,3187569-2335236,"1,907.72",ASPIRE CARE GROUP.
Adult and Health Services,Head of Adults,Third Party Payments,470101,Purchase of Care,04-Oct-16,3187569-2335237,"1,907.72",ASPIRE CARE GROUP.
Adult and Health Services,Head of Adults,Third Party Payments,474101,Purchase of Care,04-Oct-16,3187570-2337761,"1,715.08",ASTONBROOK CARE HOMES LTD T/A MOORLANDS CARE HOME.
Adult and Health Services,Head of Adults,Third Party Payments,470101,Purchase of Care,04-Oct-16,3187571-2336954,"3,900.00",ATLAS HEALTHCARE LTD.
Adult and Health Services,Head of Adults,Third Party Payments,470101,Purchase of Care,04-Oct-16,3187571-2336955,"7,440.00",ATLAS HEALTHCARE LTD.
Adult and Health Services,Head of Adults,Third Party Payments,470101,Purchase of Care,04-Oct-16,3187573-2336909,"4,244.80",AUTISM CARE UK (4) LTD.
Adult and Health Services,Head of Adults,Third Party Payments,470101,Purchase of Care,04-Oct-16,3187573-2336910,"1,742.44",AUTISM CARE UK (4) LTD.
Adult and Health Services,Head of Adults,Third Party Payments,470101,Purchase of Care,04-Oct-16,3187573-2336911,568.96,AUTISM CARE UK (4) LTD.
Adult and Health Services,Head of Adults,Third Party Payments,470101,Purchase of Care,04-Oct-16,3187573-2336912,"3,564.00",AUTISM CARE UK (4) LTD.
Adult and Health Services,Head of Adults,Third Party Payments,470101,Purchase of Care,04-Oct-16,3187574-2337513,"3,400.00",AUTISM NORTH.
Adult and Health Services,Head of Adults,Third Party Payments,470101,Purchase of Care,04-Oct-16,3187574-2337515,"4,560.00",AUTISM NORTH.
Adult and Health Services,Head of Adults,Third Party Payments,470101,Purchase of Care,04-Oct-16,3187574-2337516,"2,610.72",AUTISM NORTH.
Adult and Health Services,Head of Adults,Third Party Payments,470101,Purchase of Care,04-Oct-16,3187574-2337517,"9,318.00",AUTISM NORTH.
Adult and Health Services,Head of Adults,Third Party Payments,470101,Purchase of Care,04-Oct-16,3187575-2336913,"6,478.68",AUTISM NORTH.
Adult and Health Services,Head of Adults,Third Party Payments,470101,Purchase of Care,04-Oct-16,3187576-2337149,"1,949.24",AYCLIFFE CARE HOME.
Adult and Health Services,Head of Adults,Third Party Payments,474101,Purchase of Care,04-Oct-16,3187576-2337150,"1,023.28",AYCLIFFE CARE HOME.
Adult and Health Services,Head of Adults,Third Party Payments,470101,Purchase of Care,04-Oct-16,3187576-2337152,"1,183.46",AYCLIFFE CARE HOME.
Adult and Health Services,Head of Adults,Third Party Payments,470101,Purchase of Care,04-Oct-16,3187576-2337153,"1,949.24",AYCLIFFE CARE HOME.
Adult and Health Services,Head of Adults,Third Party Payments,470101,Purchase of Care,04-Oct-16,3187576-2337154,"1,949.24",AYCLIFFE CARE HOME.
Adult and Health Services,Central/Other,Debtors,930024,Debtor-free nursing care,04-Oct-16,3187576-2337155,625,AYCLIFFE CARE HOME.
Adult and Health Services,Head of Adults,Third Party Payments,471101,Purchase of Care,04-Oct-16,3187576-2337156,"2,026.40",AYCLIFFE CARE HOME.
Adult and Health Services,Head of Adults,Third Party Payments,470101,Purchase of Care,04-Oct-16,3187576-2337157,"1,949.24",AYCLIFFE CARE HOME.
Adult and Health Services,Head of Adults,Third Party Payments,470101,Purchase of Care,04-Oct-16,3187576-2337158,626.54,AYCLIFFE CARE HOME.
Adult and Health Services,Central/Other,Debtors,930024,Debtor-free nursing care,04-Oct-16,3187576-2337159,625,AYCLIFFE CARE HOME.
Adult and Health Services,Head of Adults,Third Party Payments,470101,Purchase of Care,04-Oct-16,3187576-2337160,"1,949.24",AYCLIFFE CARE HOME.
Adult and Health Services,Head of Adults,Third Party Payments,471101,Purchase of Care,04-Oct-16,3187576-2337161,"2,026.40",AYCLIFFE CARE HOME.
Adult and Health Services,Head of Adults,Third Party Payments,474101,Purchase of Care,04-Oct-16,3187576-2337162,"1,023.32",AYCLIFFE CARE HOME.
Adult and Health Services,Head of Adults,Third Party Payments,474999,Purchase of Care,04-Oct-16,3187576-2337163,609.63,AYCLIFFE CARE HOME.
Adult and Health Services,Head of Adults,Third Party Payments,470101,Purchase of Care,04-Oct-16,3187576-2337164,"1,949.24",AYCLIFFE CARE HOME.
Adult and Health Services,Head of Adults,Third Party Payments,471101,Purchase of Care,04-Oct-16,3187576-2337165,"2,026.40",AYCLIFFE CARE HOME.
Adult and Health Services,Head of Adults,Third Party Payments,474101,Purchase of Care,04-Oct-16,3187576-2337166,"2,046.60",AYCLIFFE CARE HOME.
Adult and Health Services,Central/Other,Debtors,930024,Debtor-free nursing care,04-Oct-16,3187576-2337167,625,AYCLIFFE CARE HOME.
Adult and Health Services,Head of Adults,Third Party Payments,471101,Purchase of Care,04-Oct-16,3187576-2337168,"2,026.40",AYCLIFFE CARE HOME.
Adult and Health Services,Head of Adults,Third Party Payments,474101,Purchase of Care,04-Oct-16,3187576-2337169,"2,046.60",AYCLIFFE CARE HOME.
Adult and Health Services,Central/Other,Debtors,930024,Debtor-free nursing care,04-Oct-16,3187576-2337170,625,AYCLIFFE CARE HOME.
Adult and Health Services,Head of Adults,Third Party Payments,470101,Purchase of Care,04-Oct-16,3187576-2337171,974.64,AYCLIFFE CARE HOME.
Adult and Health Services,Head of Adults,Third Party Payments,471101,Purchase of Care,04-Oct-16,3187576-2337172,"2,026.40",AYCLIFFE CARE HOME.
Adult and Health Services,Head of Adults,Third Party Payments,471101,Purchase of Care,04-Oct-16,3187576-2337173,"2,026.40",AYCLIFFE CARE HOME.
Adult and Health Services,Head of Adults,Third Party Payments,474101,Purchase of Care,04-Oct-16,3187576-2337174,"2,046.60",AYCLIFFE CARE HOME.
Adult and Health Services,Central/Other,Debtors,930024,Debtor-free nursing care,04-Oct-16,3187576-2337175,625,AYCLIFFE CARE HOME.
Adult and Health Services,Head of Adults,Third Party Payments,471101,Purchase of Care,04-Oct-16,3187576-2337176,"2,026.40",AYCLIFFE CARE HOME.
Adult and Health Services,Head of Adults,Third Party Payments,474101,Purchase of Care,04-Oct-16,3187576-2337177,"2,046.60",AYCLIFFE CARE HOME.
Adult and Health Services,Central/Other,Debtors,930024,Debtor-free nursing care,04-Oct-16,3187576-2337178,625,AYCLIFFE CARE HOME.
Adult and Health Services,Head of Adults,Third Party Payments,470101,Purchase of Care,04-Oct-16,3187576-2337179,"1,949.24",AYCLIFFE CARE HOME.
Adult and Health Services,Head of Adults,Third Party Payments,471101,Purchase of Care,04-Oct-16,3187576-2337180,"2,026.40",AYCLIFFE CARE HOME.
Adult and Health Services,Central/Other,Debtors,930024,Debtor-free nursing care,04-Oct-16,3187576-2337181,625,AYCLIFFE CARE HOME.
Adult and Health Services,Head of Adults,Third Party Payments,474101,Purchase of Care,04-Oct-16,3187576-2337182,"2,046.60",AYCLIFFE CARE HOME.
Adult and Health Services,Central/Other,Debtors,930024,Debtor-free nursing care,04-Oct-16,3187576-2337183,625,AYCLIFFE CARE HOME.
Adult and Health Services,Head of Adults,Third Party Payments,471101,Purchase of Care,04-Oct-16,3187576-2337184,"2,026.40",AYCLIFFE CARE HOME.
Adult and Health Services,Head of Adults,Third Party Payments,471101,Purchase of Care,04-Oct-16,3187576-2337185,"2,026.40",AYCLIFFE CARE HOME.
Adult and Health Services,Head of Adults,Third Party Payments,471101,Purchase of Care,04-Oct-16,3187576-2337186,"2,026.40",AYCLIFFE CARE HOME.
Adult and Health Services,Head of Adults,Third Party Payments,470101,Purchase of Care,04-Oct-16,3187576-2337187,"1,949.24",AYCLIFFE CARE HOME.
Adult and Health Services,Head of Adults,Third Party Payments,474101,Purchase of Care,04-Oct-16,3187576-2337188,"2,046.60",AYCLIFFE CARE HOME.
Adult and Health Services,Central/Other,Debtors,930024,Debtor-free nursing care,04-Oct-16,3187576-2337189,625,AYCLIFFE CARE HOME.
Adult and Health Services,Head of Adults,Third Party Payments,470101,Purchase of Care,04-Oct-16,3187576-2337190,"1,949.24",AYCLIFFE CARE HOME.
Adult and Health Services,Head of Adults,Third Party Payments,471101,Purchase of Care,04-Oct-16,3187576-2337191,"2,026.40",AYCLIFFE CARE HOME.
Adult and Health Services,Head of Adults,Third Party Payments,474101,Purchase of Care,04-Oct-16,3187576-2337192,"1,023.32",AYCLIFFE CARE HOME.
Adult and Health Services,Head of Adults,Third Party Payments,474999,Purchase of Care,04-Oct-16,3187576-2337193,609.63,AYCLIFFE CARE HOME.
Adult and Health Services,Head of Adults,Third Party Payments,471101,Purchase of Care,04-Oct-16,3187576-2337194,"2,026.40",AYCLIFFE CARE HOME.
Adult and Health Services,Head of Adults,Third Party Payments,470101,Purchase of Care,04-Oct-16,3187576-2337195,"1,949.24",AYCLIFFE CARE HOME.
Adult and Health Services,Head of Adults,Third Party Payments,474101,Purchase of Care,04-Oct-16,3187576-2337196,"2,046.60",AYCLIFFE CARE HOME.
Adult and Health Services,Central/Other,Debtors,930024,Debtor-free nursing care,04-Oct-16,3187576-2337197,625,AYCLIFFE CARE HOME.
Adult and Health Services,Head of Adults,Third Party Payments,470101,Purchase of Care,04-Oct-16,3187576-2337198,"1,949.24",AYCLIFFE CARE HOME.
Adult and Health Services,Head of Adults,Third Party Payments,474101,Purchase of Care,04-Oct-16,3187576-2337199,"1,023.32",AYCLIFFE CARE HOME.
Adult and Health Services,Head of Adults,Third Party Payments,474999,Purchase of Care,04-Oct-16,3187576-2337200,609.63,AYCLIFFE CARE HOME.
Adult and Health Services,Head of Adults,Third Party Payments,470101,Purchase of Care,04-Oct-16,3187576-2337201,"1,949.24",AYCLIFFE CARE HOME.
Adult and Health Services,Head of Adults,Third Party Payments,471101,Purchase of Care,04-Oct-16,3187576-2337202,"2,026.40",AYCLIFFE CARE HOME.
Adult and Health Services,Head of Adults,Third Party Payments,470101,Purchase of Care,04-Oct-16,3187576-2337203,"1,949.24",AYCLIFFE CARE HOME.
Adult and Health Services,Head of Adults,Third Party Payments,471101,Purchase of Care,04-Oct-16,3187576-2337204,"2,026.40",AYCLIFFE CARE HOME.
Adult and Health Services,Head of Adults,Third Party Payments,471101,Purchase of Care,04-Oct-16,3187576-2337205,"2,026.40",AYCLIFFE CARE HOME.
Adult and Health Services,Head of Adults,Third Party Payments,470101,Purchase of Care,04-Oct-16,3187577-2336084,"1,860.00",AYRESOME COURT NURSING HOME.
Adult and Health Services,Head of Adults,Third Party Payments,471101,Purchase of Care,04-Oct-16,3187578-2312734,"1,100.00",BARCHESTER HEALTHCARE HOMES LTD.
Adult and Health Services,Head of Adults,Third Party Payments,471101,Purchase of Care,04-Oct-16,3187578-2322905,"1,100.00",BARCHESTER HEALTHCARE HOMES LTD.
Adult and Health Services,Head of Adults,Third Party Payments,471101,Purchase of Care,04-Oct-16,3187578-2332920,"1,199.36",BARCHESTER HEALTHCARE HOMES LTD.
Adult and Health Services,Head of Adults,Third Party Payments,471101,Purchase of Care,04-Oct-16,3187578-2337768,"1,199.36",BARCHESTER HEALTHCARE HOMES LTD.
Adult and Health Services,Central/Other,Debtors,930024,Debtor-free nursing care,04-Oct-16,3187579-2335082,625,BARCHESTER HEALTHCARE HOMES LTD.
Adult and Health Services,Central/Other,Debtors,930024,Debtor-free nursing care,04-Oct-16,3187579-2335083,"1,219.21",BARCHESTER HEALTHCARE HOMES LTD.
Adult and Health Services,Head of Adults,Third Party Payments,474101,Purchase of Care,04-Oct-16,3187579-2335084,"2,046.60",BARCHESTER HEALTHCARE HOMES LTD.
Adult and Health Services,Central/Other,Debtors,930024,Debtor-free nursing care,04-Oct-16,3187579-2335085,625,BARCHESTER HEALTHCARE HOMES LTD.
Adult and Health Services,Head of Adults,Third Party Payments,474101,Purchase of Care,04-Oct-16,3187579-2335088,"1,973.51",BARCHESTER HEALTHCARE HOMES LTD.
Adult and Health Services,Central/Other,Debtors,930024,Debtor-free nursing care,04-Oct-16,3187579-2335089,602.68,BARCHESTER HEALTHCARE HOMES LTD.
Adult and Health Services,Head of Adults,Third Party Payments,474101,Purchase of Care,04-Oct-16,3187579-2335090,"2,046.60",BARCHESTER HEALTHCARE HOMES LTD.
Adult and Health Services,Central/Other,Debtors,930024,Debtor-free nursing care,04-Oct-16,3187579-2335091,625,BARCHESTER HEALTHCARE HOMES LTD.
Adult and Health Services,Head of Adults,Third Party Payments,474101,Purchase of Care,04-Oct-16,3187579-2335093,"2,046.60",BARCHESTER HEALTHCARE HOMES LTD.
Adult and Health Services,Central/Other,Debtors,930024,Debtor-free nursing care,04-Oct-16,3187579-2335094,625,BARCHESTER HEALTHCARE HOMES LTD.
Adult and Health Services,Head of Adults,Third Party Payments,474101,Purchase of Care,04-Oct-16,3187579-2335096,"2,046.60",BARCHESTER HEALTHCARE HOMES LTD.
Adult and Health Services,Central/Other,Debtors,930024,Debtor-free nursing care,04-Oct-16,3187579-2335097,625,BARCHESTER HEALTHCARE HOMES LTD.
Adult and Health Services,Head of Adults,Third Party Payments,474101,Purchase of Care,04-Oct-16,3187579-2335099,"2,046.60",BARCHESTER HEALTHCARE HOMES LTD.
Adult and Health Services,Central/Other,Debtors,930024,Debtor-free nursing care,04-Oct-16,3187579-2335100,625,BARCHESTER HEALTHCARE HOMES LTD.
Adult and Health Services,Head of Adults,Third Party Payments,474101,Purchase of Care,04-Oct-16,3187579-2335102,"2,046.60",BARCHESTER HEALTHCARE HOMES LTD.
Adult and Health Services,Central/Other,Debtors,930024,Debtor-free nursing care,04-Oct-16,3187579-2335103,625,BARCHESTER HEALTHCARE HOMES LTD.
Adult and Health Services,Head of Adults,Third Party Payments,474101,Purchase of Care,04-Oct-16,3187579-2335105,"1,023.28",BARCHESTER HEALTHCARE HOMES LTD.
Adult and Health Services,Head of Adults,Third Party Payments,474101,Purchase of Care,04-Oct-16,3187579-2335106,"1,177.00",BARCHESTER HEALTHCARE HOMES LTD.
Adult and Health Services,Head of Adults,Third Party Payments,474999,Purchase of Care,04-Oct-16,3187579-2335107,609.63,BARCHESTER HEALTHCARE HOMES LTD.
Adult and Health Services,Central/Other,Debtors,930024,Debtor-free nursing care,04-Oct-16,3187579-2335108,625,BARCHESTER HEALTHCARE HOMES LTD.
Adult and Health Services,Head of Adults,Third Party Payments,474101,Purchase of Care,04-Oct-16,3187579-2335109,"2,046.60",BARCHESTER HEALTHCARE HOMES LTD.
Adult and Health Services,Central/Other,Debtors,930024,Debtor-free nursing care,04-Oct-16,3187579-2335110,625,BARCHESTER HEALTHCARE HOMES LTD.
Adult and Health Services,Head of Adults,Third Party Payments,474101,Purchase of Care,04-Oct-16,3187579-2335112,"1,023.28",BARCHESTER HEALTHCARE HOMES LTD.
Adult and Health Services,Head of Adults,Third Party Payments,474999,Purchase of Care,04-Oct-16,3187579-2335113,609.63,BARCHESTER HEALTHCARE HOMES LTD.
Adult and Health Services,Head of Adults,Third Party Payments,474101,Purchase of Care,04-Oct-16,3187579-2335114,"2,046.60",BARCHESTER HEALTHCARE HOMES LTD.
Adult and Health Services,Central/Other,Debtors,930024,Debtor-free nursing care,04-Oct-16,3187579-2335115,625,BARCHESTER HEALTHCARE HOMES LTD.
Adult and Health Services,Head of Adults,Third Party Payments,474101,Purchase of Care,04-Oct-16,3187579-2335117,694.36,BARCHESTER HEALTHCARE HOMES LTD.
Adult and Health Services,Head of Adults,Third Party Payments,474999,Purchase of Care,04-Oct-16,3187579-2335118,509.18,BARCHESTER HEALTHCARE HOMES LTD.
Adult and Health Services,Head of Adults,Third Party Payments,474101,Purchase of Care,04-Oct-16,3187579-2335119,"1,023.28",BARCHESTER HEALTHCARE HOMES LTD.
Adult and Health Services,Head of Adults,Third Party Payments,474999,Purchase of Care,04-Oct-16,3187579-2335120,609.63,BARCHESTER HEALTHCARE HOMES LTD.
Adult and Health Services,Head of Adults,Third Party Payments,474101,Purchase of Care,04-Oct-16,3187579-2335121,"2,046.60",BARCHESTER HEALTHCARE HOMES LTD.
Adult and Health Services,Central/Other,Debtors,930024,Debtor-free nursing care,04-Oct-16,3187579-2335122,625,BARCHESTER HEALTHCARE HOMES LTD.
Adult and Health Services,Head of Adults,Third Party Payments,474101,Purchase of Care,04-Oct-16,3187579-2335124,"2,232.12",BARCHESTER HEALTHCARE HOMES LTD.
Adult and Health Services,Central/Other,Debtors,930024,Debtor-free nursing care,04-Oct-16,3187579-2335125,625,BARCHESTER HEALTHCARE HOMES LTD.
Adult and Health Services,Head of Adults,Third Party Payments,474101,Purchase of Care,04-Oct-16,3187579-2335127,"2,046.60",BARCHESTER HEALTHCARE HOMES LTD.
Adult and Health Services,Central/Other,Debtors,930024,Debtor-free nursing care,04-Oct-16,3187579-2335128,625,BARCHESTER HEALTHCARE HOMES LTD.
Adult and Health Services,Head of Adults,Third Party Payments,474101,Purchase of Care,04-Oct-16,3187579-2335130,"2,046.60",BARCHESTER HEALTHCARE HOMES LTD.
Adult and Health Services,Central/Other,Debtors,930024,Debtor-free nursing care,04-Oct-16,3187579-2335131,625,BARCHESTER HEALTHCARE HOMES LTD.
Adult and Health Services,Head of Adults,Third Party Payments,474101,Purchase of Care,04-Oct-16,3187579-2335133,"2,046.60",BARCHESTER HEALTHCARE HOMES LTD.
Adult and Health Services,Central/Other,Debtors,930024,Debtor-free nursing care,04-Oct-16,3187579-2335134,625,BARCHESTER HEALTHCARE HOMES LTD.
Adult and Health Services,Head of Adults,Third Party Payments,474101,Purchase of Care,04-Oct-16,3187579-2335136,"2,046.60",BARCHESTER HEALTHCARE HOMES LTD.
Adult and Health Services,Central/Other,Debtors,930024,Debtor-free nursing care,04-Oct-16,3187579-2335137,625,BARCHESTER HEALTHCARE HOMES LTD.
Adult and Health Services,Head of Adults,Third Party Payments,474101,Purchase of Care,04-Oct-16,3187579-2335138,"2,046.60",BARCHESTER HEALTHCARE HOMES LTD.
Adult and Health Services,Central/Other,Debtors,930024,Debtor-free nursing care,04-Oct-16,3187579-2335139,"1,219.21",BARCHESTER HEALTHCARE HOMES LTD.
Adult and Health Services,Head of Adults,Third Party Payments,474101,Purchase of Care,04-Oct-16,3187579-2335141,"2,046.60",BARCHESTER HEALTHCARE HOMES LTD.
Adult and Health Services,Central/Other,Debtors,930024,Debtor-free nursing care,04-Oct-16,3187579-2335142,625,BARCHESTER HEALTHCARE HOMES LTD.
Adult and Health Services,Central/Other,Debtors,930024,Debtor-free nursing care,04-Oct-16,3187579-2335144,625,BARCHESTER HEALTHCARE HOMES LTD.
Adult and Health Services,Head of Adults,Third Party Payments,474101,Purchase of Care,04-Oct-16,3187579-2335145,"2,046.60",BARCHESTER HEALTHCARE HOMES LTD.
Adult and Health Services,Central/Other,Debtors,930024,Debtor-free nursing care,04-Oct-16,3187579-2335146,625,BARCHESTER HEALTHCARE HOMES LTD.
Adult and Health Services,Head of Adults,Third Party Payments,474101,Purchase of Care,04-Oct-16,3187579-2335148,"2,232.12",BARCHESTER HEALTHCARE HOMES LTD.
Adult and Health Services,Central/Other,Debtors,930024,Debtor-free nursing care,04-Oct-16,3187579-2335149,625,BARCHESTER HEALTHCARE HOMES LTD.
Adult and Health Services,Head of Adults,Third Party Payments,470101,Purchase of Care,04-Oct-16,3187580-2336085,"2,048.00",BARCHESTER HEALTHCARE HOMES LTD.
Adult and Health Services,Head of Adults,Third Party Payments,471101,Purchase of Care,04-Oct-16,3187580-2336086,"2,116.00",BARCHESTER HEALTHCARE HOMES LTD.
Adult and Health Services,Head of Adults,Third Party Payments,470101,Purchase of Care,04-Oct-16,3187580-2336087,"2,048.00",BARCHESTER HEALTHCARE HOMES LTD.
Adult and Health Services,Head of Adults,Third Party Payments,470101,Purchase of Care,04-Oct-16,3187580-2336088,"2,048.00",BARCHESTER HEALTHCARE HOMES LTD.
Adult and Health Services,Head of Adults,Third Party Payments,470101,Purchase of Care,04-Oct-16,3187580-2336089,"2,048.00",BARCHESTER HEALTHCARE HOMES LTD.
Adult and Health Services,Head of Adults,Third Party Payments,471101,Purchase of Care,04-Oct-16,3187580-2336090,"2,116.00",BARCHESTER HEALTHCARE HOMES LTD.
Adult and Health Services,Head of Adults,Third Party Payments,471101,Purchase of Care,04-Oct-16,3187580-2336091,"2,116.00",BARCHESTER HEALTHCARE HOMES LTD.
Adult and Health Services,Head of Adults,Third Party Payments,471101,Purchase of Care,04-Oct-16,3187580-2336092,"2,116.00",BARCHESTER HEALTHCARE HOMES LTD.
Adult and Health Services,Head of Adults,Third Party Payments,471101,Purchase of Care,04-Oct-16,3187581-2335976,"2,016.00",BARCHESTER HEALTHCARE HOMES LTD.
Adult and Health Services,Head of Adults,Third Party Payments,474101,Purchase of Care,04-Oct-16,3187582-2337775,"2,152.00",BARCHESTER HEALTHCARE HOMES LTD.
Adult and Health Services,Head of Adults,Third Party Payments,471101,Purchase of Care,04-Oct-16,3187583-2337714,"1,967.56",BARCHESTER HEALTHCARE HOMES LTD.
Adult and Health Services,Head of Adults,Third Party Payments,474101,Purchase of Care,04-Oct-16,3187584-2310933,"1,820.92",BARNES COURT NURSING HOME.
Adult and Health Services,Head of Adults,Third Party Payments,474101,Purchase of Care,04-Oct-16,3187584-2321113,"1,820.92",BARNES COURT NURSING HOME.
Adult and Health Services,Head of Adults,Third Party Payments,474101,Purchase of Care,04-Oct-16,3187584-2335978,"1,820.92",BARNES COURT NURSING HOME.
Adult and Health Services,Head of Adults,Third Party Payments,470101,Purchase of Care,04-Oct-16,3187585-2335286,556.92,BEACONSFIELD COURT.
Adult and Health Services,Head of Adults,Third Party Payments,470101,Purchase of Care,04-Oct-16,3187585-2335287,"1,949.24",BEACONSFIELD COURT.
Adult and Health Services,Head of Adults,Third Party Payments,470101,Purchase of Care,04-Oct-16,3187585-2335288,"1,949.24",BEACONSFIELD COURT.
Adult and Health Services,Head of Adults,Third Party Payments,470101,Purchase of Care,04-Oct-16,3187585-2335289,"1,949.24",BEACONSFIELD COURT.
Adult and Health Services,Head of Adults,Third Party Payments,470101,Purchase of Care,04-Oct-16,3187585-2335290,"1,949.24",BEACONSFIELD COURT.
Adult and Health Services,Head of Adults,Third Party Payments,470101,Purchase of Care,04-Oct-16,3187585-2335291,"1,949.24",BEACONSFIELD COURT.
Adult and Health Services,Head of Adults,Third Party Payments,470101,Purchase of Care,04-Oct-16,3187585-2335292,"1,949.24",BEACONSFIELD COURT.
Adult and Health Services,Head of Adults,Third Party Payments,470101,Purchase of Care,04-Oct-16,3187585-2335293,"1,949.24",BEACONSFIELD COURT.
Adult and Health Services,Head of Adults,Third Party Payments,470101,Purchase of Care,04-Oct-16,3187585-2335294,"1,949.24",BEACONSFIELD COURT.
Adult and Health Services,Head of Adults,Third Party Payments,470101,Purchase of Care,04-Oct-16,3187585-2335295,"1,949.24",BEACONSFIELD COURT.
Adult and Health Services,Head of Adults,Third Party Payments,470101,Purchase of Care,04-Oct-16,3187585-2335296,"1,949.24",BEACONSFIELD COURT.
Adult and Health Services,Head of Adults,Third Party Payments,470101,Purchase of Care,04-Oct-16,3187585-2335297,"1,949.24",BEACONSFIELD COURT.
Adult and Health Services,Head of Adults,Third Party Payments,470101,Purchase of Care,04-Oct-16,3187585-2335298,"1,949.24",BEACONSFIELD COURT.
Adult and Health Services,Head of Adults,Third Party Payments,470101,Purchase of Care,04-Oct-16,3187585-2335299,"1,949.24",BEACONSFIELD COURT.
Adult and Health Services,Head of Adults,Third Party Payments,470101,Purchase of Care,04-Oct-16,3187585-2335300,"1,949.24",BEACONSFIELD COURT.
Adult and Health Services,Head of Adults,Third Party Payments,470101,Purchase of Care,04-Oct-16,3187585-2335301,"1,949.24",BEACONSFIELD COURT.
Adult and Health Services,Head of Adults,Third Party Payments,471101,Purchase of Care,04-Oct-16,3187586-2336993,"2,026.40",BEAMISH RESIDENTIAL HOME.
Adult and Health Services,Head of Adults,Third Party Payments,470101,Purchase of Care,04-Oct-16,3187586-2336995,"1,949.24",BEAMISH RESIDENTIAL HOME.
Adult and Health Services,Head of Adults,Third Party Payments,470101,Purchase of Care,04-Oct-16,3187586-2336996,"1,949.24",BEAMISH RESIDENTIAL HOME.
Adult and Health Services,Head of Adults,Third Party Payments,471101,Purchase of Care,04-Oct-16,3187586-2336998,"1,503.60",BEAMISH RESIDENTIAL HOME.
Adult and Health Services,Head of Adults,Third Party Payments,470101,Purchase of Care,04-Oct-16,3187586-2336999,"1,949.24",BEAMISH RESIDENTIAL HOME.
Adult and Health Services,Head of Adults,Third Party Payments,470101,Purchase of Care,04-Oct-16,3187586-2337000,"1,407.36",BEAMISH RESIDENTIAL HOME.
Adult and Health Services,Head of Adults,Third Party Payments,470101,Purchase of Care,04-Oct-16,3187586-2337001,974.64,BEAMISH RESIDENTIAL HOME.
Adult and Health Services,Head of Adults,Third Party Payments,470101,Purchase of Care,04-Oct-16,3187586-2337002,"1,949.24",BEAMISH RESIDENTIAL HOME.
Adult and Health Services,Head of Adults,Third Party Payments,470101,Purchase of Care,04-Oct-16,3187586-2337003,"1,949.24",BEAMISH RESIDENTIAL HOME.
Adult and Health Services,Head of Adults,Third Party Payments,470101,Purchase of Care,04-Oct-16,3187586-2337004,"1,176.80",BEAMISH RESIDENTIAL HOME.
Adult and Health Services,Head of Adults,Third Party Payments,470101,Purchase of Care,04-Oct-16,3187586-2337005,974.64,BEAMISH RESIDENTIAL HOME.
Adult and Health Services,Head of Adults,Third Party Payments,470101,Purchase of Care,04-Oct-16,3187586-2337006,"1,949.24",BEAMISH RESIDENTIAL HOME.
Adult and Health Services,Head of Adults,Third Party Payments,470101,Purchase of Care,04-Oct-16,3187586-2337007,931.4,BEAMISH RESIDENTIAL HOME.
Adult and Health Services,Head of Adults,Third Party Payments,470101,Purchase of Care,04-Oct-16,3187586-2337008,"1,387.96",BEAMISH RESIDENTIAL HOME.
Adult and Health Services,Head of Adults,Third Party Payments,470101,Purchase of Care,04-Oct-16,3187586-2337009,"1,428.12",BEAMISH RESIDENTIAL HOME.
Adult and Health Services,Head of Adults,Third Party Payments,470101,Purchase of Care,04-Oct-16,3187586-2337010,"1,949.24",BEAMISH RESIDENTIAL HOME.
Adult and Health Services,Head of Adults,Third Party Payments,471101,Purchase of Care,04-Oct-16,3187586-2338065,"1,129.00",BEAMISH RESIDENTIAL HOME.
Adult and Health Services,Head of Adults,Third Party Payments,471101,Purchase of Care,04-Oct-16,3187586-2338158,"2,388.26",BEAMISH RESIDENTIAL HOME.
Adult and Health Services,Head of Adults,Third Party Payments,470101,Purchase of Care,04-Oct-16,3187587-2334277,813.6,BEAULEY LODGE CARE HOME.
Adult and Health Services,Head of Adults,Third Party Payments,471101,Purchase of Care,04-Oct-16,3187587-2334278,"1,345.53",BEAULEY LODGE CARE HOME.
Adult and Health Services,Head of Adults,Third Party Payments,471101,Purchase of Care,04-Oct-16,3187587-2334279,"1,811.24",BEAULEY LODGE CARE HOME.
Adult and Health Services,Head of Adults,Third Party Payments,470101,Purchase of Care,04-Oct-16,3187587-2334281,"1,137.96",BEAULEY LODGE CARE HOME.
Adult and Health Services,Head of Adults,Third Party Payments,470101,Purchase of Care,04-Oct-16,3187588-2335175,"2,059.56",BEDDELL HOUSE.
Adult and Health Services,Head of Adults,Third Party Payments,470101,Purchase of Care,04-Oct-16,3187588-2335176,"2,059.56",BEDDELL HOUSE.
Adult and Health Services,Head of Adults,Third Party Payments,470101,Purchase of Care,04-Oct-16,3187588-2335179,"2,059.56",BEDDELL HOUSE.
Adult and Health Services,Head of Adults,Third Party Payments,470101,Purchase of Care,04-Oct-16,3187588-2335180,"2,059.56",BEDDELL HOUSE.
Adult and Health Services,Head of Adults,Third Party Payments,470101,Purchase of Care,04-Oct-16,3187588-2335181,"2,059.56",BEDDELL HOUSE.
Adult and Health Services,Head of Adults,Third Party Payments,470101,Purchase of Care,04-Oct-16,3187588-2335182,"2,059.56",BEDDELL HOUSE.
Adult and Health Services,Head of Adults,Third Party Payments,470101,Purchase of Care,04-Oct-16,3187588-2335183,"2,059.56",BEDDELL HOUSE.
Adult and Health Services,Head of Adults,Third Party Payments,470101,Purchase of Care,04-Oct-16,3187588-2335184,"2,059.56",BEDDELL HOUSE.
Adult and Health Services,Head of Adults,Third Party Payments,470101,Purchase of Care,04-Oct-16,3187588-2335185,"2,059.56",BEDDELL HOUSE.
Adult and Health Services,Head of Adults,Third Party Payments,470101,Purchase of Care,04-Oct-16,3187588-2335186,"2,059.56",BEDDELL HOUSE.
Adult and Health Services,Head of Adults,Third Party Payments,470101,Purchase of Care,04-Oct-16,3187588-2335187,"2,059.56",BEDDELL HOUSE.
Adult and Health Services,Head of Adults,Third Party Payments,470101,Purchase of Care,04-Oct-16,3187588-2335188,"2,059.56",BEDDELL HOUSE.
Adult and Health Services,Head of Adults,Third Party Payments,470101,Purchase of Care,04-Oct-16,3187588-2335189,"2,059.56",BEDDELL HOUSE.
Adult and Health Services,Head of Adults,Third Party Payments,470101,Purchase of Care,04-Oct-16,3187588-2335190,"2,059.56",BEDDELL HOUSE.
Adult and Health Services,Head of Adults,Third Party Payments,470101,Purchase of Care,04-Oct-16,3187588-2335191,"2,059.56",BEDDELL HOUSE.
Adult and Health Services,Head of Adults,Third Party Payments,470101,Purchase of Care,04-Oct-16,3187588-2335192,"2,059.56",BEDDELL HOUSE.
Adult and Health Services,Head of Adults,Third Party Payments,470101,Purchase of Care,04-Oct-16,3187588-2335193,"2,059.56",BEDDELL HOUSE.
Adult and Health Services,Head of Adults,Third Party Payments,470101,Purchase of Care,04-Oct-16,3187588-2338291,"1,103.34",BEDDELL HOUSE.
Adult and Health Services,Head of Adults,Third Party Payments,470101,Purchase of Care,04-Oct-16,3187588-2338296,"2,206.67",BEDDELL HOUSE.
Adult and Health Services,Head of Adults,Third Party Payments,470101,Purchase of Care,04-Oct-16,3187588-2338335,"1,324.00",BEDDELL HOUSE.
Adult and Health Services,Head of Adults,Third Party Payments,470101,Purchase of Care,04-Oct-16,3187588-2338336,588.44,BEDDELL HOUSE.
Adult and Health Services,Head of Adults,Third Party Payments,470101,Purchase of Care,04-Oct-16,3187589-2336095,"1,900.00",BELLE VUE HEALTHCARE LTD.
Adult and Health Services,Head of Adults,Third Party Payments,470101,Purchase of Care,04-Oct-16,3187590-2335991,"1,907.72",BENAMY HOUSE.
Adult and Health Services,Head of Adults,Third Party Payments,470101,Purchase of Care,04-Oct-16,3187590-2335992,"1,907.72",BENAMY HOUSE.
Adult and Health Services,Head of Adults,Third Party Payments,470101,Purchase of Care,04-Oct-16,3187590-2335993,"1,907.72",BENAMY HOUSE.
Adult and Health Services,Head of Adults,Third Party Payments,470101,Purchase of Care,04-Oct-16,3187590-2335994,"1,907.72",BENAMY HOUSE.
Adult and Health Services,Head of Adults,Third Party Payments,470101,Purchase of Care,04-Oct-16,3187590-2335995,"1,907.72",BENAMY HOUSE.
Adult and Health Services,Head of Adults,Third Party Payments,470101,Purchase of Care,04-Oct-16,3187591-2334864,922.2,BENFIELD HALL RESIDENTIAL CARE.
Adult and Health Services,Head of Adults,Third Party Payments,474101,Purchase of Care,04-Oct-16,3187591-2334865,"1,536.56",BENFIELD HALL RESIDENTIAL CARE.
Adult and Health Services,Head of Adults,Third Party Payments,474101,Purchase of Care,04-Oct-16,3187591-2334866,"1,937.16",BENFIELD HALL RESIDENTIAL CARE.
Adult and Health Services,Central/Other,Debtors,930024,Debtor-free nursing care,04-Oct-16,3187591-2334867,625,BENFIELD HALL RESIDENTIAL CARE.
Adult and Health Services,Head of Adults,Third Party Payments,470101,Purchase of Care,04-Oct-16,3187591-2334868,"1,844.36",BENFIELD HALL RESIDENTIAL CARE.
Adult and Health Services,Head of Adults,Third Party Payments,474101,Purchase of Care,04-Oct-16,3187591-2334869,968.6,BENFIELD HALL RESIDENTIAL CARE.
Adult and Health Services,Head of Adults,Third Party Payments,474999,Purchase of Care,04-Oct-16,3187591-2334870,609.63,BENFIELD HALL RESIDENTIAL CARE.
Adult and Health Services,Head of Adults,Third Party Payments,474101,Purchase of Care,04-Oct-16,3187591-2334871,"1,414.36",BENFIELD HALL RESIDENTIAL CARE.
Adult and Health Services,Central/Other,Debtors,930024,Debtor-free nursing care,04-Oct-16,3187591-2334872,625,BENFIELD HALL RESIDENTIAL CARE.
Adult and Health Services,Head of Adults,Third Party Payments,474101,Purchase of Care,04-Oct-16,3187591-2334873,968.6,BENFIELD HALL RESIDENTIAL CARE.
Adult and Health Services,Head of Adults,Third Party Payments,474999,Purchase of Care,04-Oct-16,3187591-2334874,609.63,BENFIELD HALL RESIDENTIAL CARE.
Adult and Health Services,Head of Adults,Third Party Payments,474101,Purchase of Care,04-Oct-16,3187591-2334875,"1,937.16",BENFIELD HALL RESIDENTIAL CARE.
Adult and Health Services,Central/Other,Debtors,930024,Debtor-free nursing care,04-Oct-16,3187591-2334876,625,BENFIELD HALL RESIDENTIAL CARE.
Adult and Health Services,Head of Adults,Third Party Payments,474101,Purchase of Care,04-Oct-16,3187591-2334877,968.6,BENFIELD HALL RESIDENTIAL CARE.
Adult and Health Services,Head of Adults,Third Party Payments,474999,Purchase of Care,04-Oct-16,3187591-2334878,609.63,BENFIELD HALL RESIDENTIAL CARE.
Adult and Health Services,Head of Adults,Third Party Payments,474101,Purchase of Care,04-Oct-16,3187591-2334879,968.6,BENFIELD HALL RESIDENTIAL CARE.
Adult and Health Services,Head of Adults,Third Party Payments,474999,Purchase of Care,04-Oct-16,3187591-2334880,609.63,BENFIELD HALL RESIDENTIAL CARE.
Adult and Health Services,Head of Adults,Third Party Payments,474101,Purchase of Care,04-Oct-16,3187591-2334881,968.6,BENFIELD HALL RESIDENTIAL CARE.
Adult and Health Services,Head of Adults,Third Party Payments,474999,Purchase of Care,04-Oct-16,3187591-2334883,609.63,BENFIELD HALL RESIDENTIAL CARE.
Adult and Health Services,Head of Adults,Third Party Payments,470101,Purchase of Care,04-Oct-16,3187592-2334840,"3,059.04",BENTON CARE SERVICES LTD.
Adult and Health Services,Head of Adults,Third Party Payments,470101,Purchase of Care,04-Oct-16,3187592-2334841,"3,059.04",BENTON CARE SERVICES LTD.
Adult and Health Services,Head of Adults,Third Party Payments,470101,Purchase of Care,04-Oct-16,3187592-2334842,"3,059.04",BENTON CARE SERVICES LTD.
Adult and Health Services,Head of Adults,Third Party Payments,470101,Purchase of Care,04-Oct-16,3187592-2334843,"3,059.04",BENTON CARE SERVICES LTD.
Adult and Health Services,Head of Adults,Third Party Payments,470101,Purchase of Care,04-Oct-16,3187592-2334844,"3,059.04",BENTON CARE SERVICES LTD.
Adult and Health Services,Head of Adults,Third Party Payments,470101,Purchase of Care,04-Oct-16,3187592-2334845,"3,059.04",BENTON CARE SERVICES LTD.
Adult and Health Services,Head of Adults,Third Party Payments,470101,Purchase of Care,04-Oct-16,3187592-2337720,953.84,BENTON CARE SERVICES LTD.
Adult and Health Services,Head of Adults,Third Party Payments,470101,Purchase of Care,04-Oct-16,3187592-2337721,"1,907.72",BENTON CARE SERVICES LTD.
Adult and Health Services,Head of Adults,Third Party Payments,478101,Purchase of Care,04-Oct-16,3187593-2336289,"1,396.24",REDACTED - PAYMENT TO INDIVIDUAL
Adult and Health Services,Head of Adults,Third Party Payments,478101,Purchase of Care,04-Oct-16,3187593-2336290,"1,396.24",REDACTED - PAYMENT TO INDIVIDUAL
Adult and Health Services,Head of Adults,Third Party Payments,470101,Purchase of Care,04-Oct-16,3187594-2333809,"1,949.24",BISHOPSGATE LODGE.
Adult and Health Services,Head of Adults,Third Party Payments,470101,Purchase of Care,04-Oct-16,3187594-2333810,"1,949.24",BISHOPSGATE LODGE.
Adult and Health Services,Head of Adults,Third Party Payments,471101,Purchase of Care,04-Oct-16,3187594-2333811,"2,026.40",BISHOPSGATE LODGE.
Adult and Health Services,Head of Adults,Third Party Payments,470101,Purchase of Care,04-Oct-16,3187594-2333812,"1,949.24",BISHOPSGATE LODGE.
Adult and Health Services,Head of Adults,Third Party Payments,474101,Purchase of Care,04-Oct-16,3187594-2333814,"2,046.60",BISHOPSGATE LODGE.
Adult and Health Services,Central/Other,Debtors,930024,Debtor-free nursing care,04-Oct-16,3187594-2333815,625,BISHOPSGATE LODGE.
Adult and Health Services,Head of Adults,Third Party Payments,474101,Purchase of Care,04-Oct-16,3187594-2333816,"2,046.60",BISHOPSGATE LODGE.
Adult and Health Services,Central/Other,Debtors,930024,Debtor-free nursing care,04-Oct-16,3187594-2333817,625,BISHOPSGATE LODGE.
Adult and Health Services,Central/Other,Debtors,930024,Debtor-free nursing care,04-Oct-16,3187594-2333818,738.87,BISHOPSGATE LODGE.
Adult and Health Services,Head of Adults,Third Party Payments,470101,Purchase of Care,04-Oct-16,3187594-2333819,"1,949.24",BISHOPSGATE LODGE.
Adult and Health Services,Head of Adults,Third Party Payments,470101,Purchase of Care,04-Oct-16,3187594-2333820,"1,949.24",BISHOPSGATE LODGE.
Adult and Health Services,Head of Adults,Third Party Payments,471101,Purchase of Care,04-Oct-16,3187594-2333821,"2,026.40",BISHOPSGATE LODGE.
Adult and Health Services,Head of Adults,Third Party Payments,471101,Purchase of Care,04-Oct-16,3187594-2333822,"2,026.40",BISHOPSGATE LODGE.
Adult and Health Services,Head of Adults,Third Party Payments,471101,Purchase of Care,04-Oct-16,3187594-2333825,"1,013.20",BISHOPSGATE LODGE.
Adult and Health Services,Head of Adults,Third Party Payments,474101,Purchase of Care,04-Oct-16,3187594-2333827,"2,046.60",BISHOPSGATE LODGE.
Adult and Health Services,Central/Other,Debtors,930024,Debtor-free nursing care,04-Oct-16,3187594-2333828,625,BISHOPSGATE LODGE.
Adult and Health Services,Head of Adults,Third Party Payments,470101,Purchase of Care,04-Oct-16,3187594-2333829,"1,949.24",BISHOPSGATE LODGE.
Adult and Health Services,Head of Adults,Third Party Payments,471101,Purchase of Care,04-Oct-16,3187594-2333830,"2,026.40",BISHOPSGATE LODGE.
Adult and Health Services,Head of Adults,Third Party Payments,470101,Purchase of Care,04-Oct-16,3187594-2333831,"1,960.89",BISHOPSGATE LODGE.
Adult and Health Services,Head of Adults,Third Party Payments,474101,Purchase of Care,04-Oct-16,3187594-2333832,"2,046.60",BISHOPSGATE LODGE.
Adult and Health Services,Central/Other,Debtors,930024,Debtor-free nursing care,04-Oct-16,3187594-2333833,625,BISHOPSGATE LODGE.
Adult and Health Services,Head of Adults,Third Party Payments,474101,Purchase of Care,04-Oct-16,3187594-2333835,"2,046.60",BISHOPSGATE LODGE.
Adult and Health Services,Central/Other,Debtors,930024,Debtor-free nursing care,04-Oct-16,3187594-2333836,625,BISHOPSGATE LODGE.
Adult and Health Services,Head of Adults,Third Party Payments,470101,Purchase of Care,04-Oct-16,3187594-2333837,"1,949.24",BISHOPSGATE LODGE.
Adult and Health Services,Head of Adults,Third Party Payments,470101,Purchase of Care,04-Oct-16,3187594-2333838,"1,949.24",BISHOPSGATE LODGE.
Adult and Health Services,Head of Adults,Third Party Payments,471101,Purchase of Care,04-Oct-16,3187594-2333839,"2,026.40",BISHOPSGATE LODGE.
Adult and Health Services,Head of Adults,Third Party Payments,474101,Purchase of Care,04-Oct-16,3187594-2333840,"2,046.60",BISHOPSGATE LODGE.
Adult and Health Services,Central/Other,Debtors,930024,Debtor-free nursing care,04-Oct-16,3187594-2333841,625,BISHOPSGATE LODGE.
Adult and Health Services,Head of Adults,Third Party Payments,471101,Purchase of Care,04-Oct-16,3187594-2333842,"2,026.40",BISHOPSGATE LODGE.
Adult and Health Services,Head of Adults,Third Party Payments,470101,Purchase of Care,04-Oct-16,3187594-2333843,"1,949.24",BISHOPSGATE LODGE.
Adult and Health Services,Head of Adults,Third Party Payments,470101,Purchase of Care,04-Oct-16,3187594-2333844,"1,949.24",BISHOPSGATE LODGE.
Adult and Health Services,Head of Adults,Third Party Payments,471101,Purchase of Care,04-Oct-16,3187594-2333845,"2,026.40",BISHOPSGATE LODGE.
Adult and Health Services,Head of Adults,Third Party Payments,471101,Purchase of Care,04-Oct-16,3187594-2333846,"2,026.40",BISHOPSGATE LODGE.
Adult and Health Services,Head of Adults,Third Party Payments,470101,Purchase of Care,04-Oct-16,3187594-2333847,"1,949.24",BISHOPSGATE LODGE.
Adult and Health Services,Head of Adults,Third Party Payments,470101,Purchase of Care,04-Oct-16,3187594-2333848,"1,949.24",BISHOPSGATE LODGE.
Adult and Health Services,Head of Adults,Third Party Payments,474101,Purchase of Care,04-Oct-16,3187594-2333849,"2,046.60",BISHOPSGATE LODGE.
Adult and Health Services,Central/Other,Debtors,930024,Debtor-free nursing care,04-Oct-16,3187594-2333850,625,BISHOPSGATE LODGE.
Adult and Health Services,Head of Adults,Third Party Payments,470101,Purchase of Care,04-Oct-16,3187594-2333851,"1,949.24",BISHOPSGATE LODGE.
Adult and Health Services,Head of Adults,Third Party Payments,470101,Purchase of Care,04-Oct-16,3187594-2333852,"1,949.24",BISHOPSGATE LODGE.
Adult and Health Services,Head of Adults,Third Party Payments,474101,Purchase of Care,04-Oct-16,3187594-2333853,"2,046.60",BISHOPSGATE LODGE.
Adult and Health Services,Central/Other,Debtors,930024,Debtor-free nursing care,04-Oct-16,3187594-2333854,625,BISHOPSGATE LODGE.
Adult and Health Services,Head of Adults,Third Party Payments,470101,Purchase of Care,04-Oct-16,3187594-2333855,"1,949.24",BISHOPSGATE LODGE.
Adult and Health Services,Head of Adults,Debtors,930134,Debtor Nursing Care - IC+ Time to Think,04-Oct-16,3187594-2338259,810.92,BISHOPSGATE LODGE.
Adult and Health Services,Head of Adults,Third Party Payments,470101,Purchase of Care,04-Oct-16,3187594-2338261,"1,392.31",BISHOPSGATE LODGE.
Adult and Health Services,Head of Adults,Third Party Payments,474101,Purchase of Care,04-Oct-16,3187594-2338456,"1,995.80",BISHOPSGATE LODGE.
Adult and Health Services,Central/Other,Debtors,930024,Debtor-free nursing care,04-Oct-16,3187594-2338457,625,BISHOPSGATE LODGE.
Adult and Health Services,Central/Other,Debtors,930024,Debtor-free nursing care,04-Oct-16,3187594-2338459,513.39,BISHOPSGATE LODGE.
Adult and Health Services,Head of Adults,Third Party Payments,470101,Purchase of Care,04-Oct-16,3187595-2337887,"2,600.00",BONHOMIE HOUSE.
Adult and Health Services,Head of Adults,Third Party Payments,474101,Purchase of Care,04-Oct-16,3187596-2336731,"2,500.00",BOWES COURT CARE HOME.
Adult and Health Services,Head of Adults,Third Party Payments,470101,Purchase of Care,04-Oct-16,3187596-2336734,"2,222.00",BOWES COURT CARE HOME.
Adult and Health Services,Head of Adults,Third Party Payments,470101,Purchase of Care,04-Oct-16,3187596-2336735,"1,008.00",BOWES COURT CARE HOME.
Adult and Health Services,Head of Adults,Third Party Payments,470101,Purchase of Care,04-Oct-16,3187596-2336736,"2,300.00",BOWES COURT CARE HOME.
Adult and Health Services,Head of Adults,Third Party Payments,470101,Purchase of Care,04-Oct-16,3187596-2336737,"5,082.00",BOWES COURT CARE HOME.
Adult and Health Services,Central/Other,Debtors,930024,Debtor-free nursing care,04-Oct-16,3187596-2336738,625,BOWES COURT CARE HOME.
Adult and Health Services,Central/Other,Debtors,930024,Debtor-free nursing care,04-Oct-16,3187596-2336739,625,BOWES COURT CARE HOME.
Adult and Health Services,Head of Adults,Third Party Payments,474101,Purchase of Care,04-Oct-16,3187596-2336740,"2,400.00",BOWES COURT CARE HOME.
Adult and Health Services,Head of Adults,Third Party Payments,474101,Purchase of Care,04-Oct-16,3187596-2336741,"4,800.00",BOWES COURT CARE HOME.
Adult and Health Services,Central/Other,Debtors,930024,Debtor-free nursing care,04-Oct-16,3187596-2336742,625,BOWES COURT CARE HOME.
Adult and Health Services,Head of Adults,Third Party Payments,470101,Purchase of Care,04-Oct-16,3187596-2336743,"3,672.00",BOWES COURT CARE HOME.
Adult and Health Services,Head of Adults,Third Party Payments,474101,Purchase of Care,04-Oct-16,3187597-2333620,"2,156.96",BRANCEPETH COURT.
Adult and Health Services,Central/Other,Debtors,930024,Debtor-free nursing care,04-Oct-16,3187597-2333621,625,BRANCEPETH COURT.
Adult and Health Services,Head of Adults,Third Party Payments,470101,Purchase of Care,04-Oct-16,3187597-2333622,"2,059.56",BRANCEPETH COURT.
Adult and Health Services,Head of Adults,Third Party Payments,474101,Purchase of Care,04-Oct-16,3187597-2333623,616.27,BRANCEPETH COURT.
Adult and Health Services,Head of Adults,Third Party Payments,470101,Purchase of Care,04-Oct-16,3187597-2333625,"2,353.78",BRANCEPETH COURT.
Adult and Health Services,Head of Adults,Third Party Payments,470101,Purchase of Care,04-Oct-16,3187597-2333626,"2,124.52",BRANCEPETH COURT.
Adult and Health Services,Head of Adults,Third Party Payments,474101,Purchase of Care,04-Oct-16,3187597-2333628,"2,156.96",BRANCEPETH COURT.
Adult and Health Services,Central/Other,Debtors,930024,Debtor-free nursing care,04-Oct-16,3187597-2333629,669.64,BRANCEPETH COURT.
Adult and Health Services,Head of Adults,Third Party Payments,474101,Purchase of Care,04-Oct-16,3187597-2333630,"2,156.96",BRANCEPETH COURT.
Adult and Health Services,Central/Other,Debtors,930024,Debtor-free nursing care,04-Oct-16,3187597-2333631,625,BRANCEPETH COURT.
Adult and Health Services,Head of Adults,Third Party Payments,470101,Purchase of Care,04-Oct-16,3187597-2333632,"2,059.56",BRANCEPETH COURT.
Adult and Health Services,Head of Adults,Third Party Payments,470101,Purchase of Care,04-Oct-16,3187597-2333633,"2,059.56",BRANCEPETH COURT.
Adult and Health Services,Head of Adults,Third Party Payments,474101,Purchase of Care,04-Oct-16,3187597-2333634,"2,156.96",BRANCEPETH COURT.
Adult and Health Services,Central/Other,Debtors,930024,Debtor-free nursing care,04-Oct-16,3187597-2333635,827.27,BRANCEPETH COURT.
Adult and Health Services,Head of Adults,Third Party Payments,474101,Purchase of Care,04-Oct-16,3187597-2333636,"2,156.96",BRANCEPETH COURT.
Adult and Health Services,Central/Other,Debtors,930024,Debtor-free nursing care,04-Oct-16,3187597-2333637,625,BRANCEPETH COURT.
Adult and Health Services,Head of Adults,Third Party Payments,474101,Purchase of Care,04-Oct-16,3187597-2333639,"2,166.20",BRANCEPETH COURT.
Adult and Health Services,Central/Other,Debtors,930024,Debtor-free nursing care,04-Oct-16,3187597-2333640,625,BRANCEPETH COURT.
Adult and Health Services,Head of Adults,Third Party Payments,470101,Purchase of Care,04-Oct-16,3187597-2333641,"2,059.56",BRANCEPETH COURT.
Adult and Health Services,Central/Other,Debtors,930024,Debtor-free nursing care,04-Oct-16,3187597-2333644,625,BRANCEPETH COURT.
Adult and Health Services,Head of Adults,Third Party Payments,470101,Purchase of Care,04-Oct-16,3187597-2333645,"2,059.56",BRANCEPETH COURT.
Adult and Health Services,Head of Adults,Third Party Payments,470101,Purchase of Care,04-Oct-16,3187597-2333646,"2,059.56",BRANCEPETH COURT.
Adult and Health Services,Head of Adults,Third Party Payments,470101,Purchase of Care,04-Oct-16,3187597-2333647,"2,124.52",BRANCEPETH COURT.
Adult and Health Services,Head of Adults,Third Party Payments,474101,Purchase of Care,04-Oct-16,3187597-2333648,"2,156.96",BRANCEPETH COURT.
Adult and Health Services,Central/Other,Debtors,930024,Debtor-free nursing care,04-Oct-16,3187597-2333649,625,BRANCEPETH COURT.
Adult and Health Services,Head of Adults,Third Party Payments,470101,Purchase of Care,04-Oct-16,3187597-2333650,"2,059.56",BRANCEPETH COURT.
Adult and Health Services,Head of Adults,Third Party Payments,474101,Purchase of Care,04-Oct-16,3187597-2333651,"2,156.96",BRANCEPETH COURT.
Adult and Health Services,Central/Other,Debtors,930024,Debtor-free nursing care,04-Oct-16,3187597-2333652,625,BRANCEPETH COURT.
Adult and Health Services,Head of Adults,Third Party Payments,470101,Purchase of Care,04-Oct-16,3187597-2333653,"2,059.56",BRANCEPETH COURT.
Adult and Health Services,Head of Adults,Third Party Payments,470101,Purchase of Care,04-Oct-16,3187597-2333654,"2,124.52",BRANCEPETH COURT.
Adult and Health Services,Head of Adults,Third Party Payments,474101,Purchase of Care,04-Oct-16,3187597-2333655,"2,156.96",BRANCEPETH COURT.
Adult and Health Services,Central/Other,Debtors,930024,Debtor-free nursing care,04-Oct-16,3187597-2333656,"1,219.21",BRANCEPETH COURT.
Adult and Health Services,Head of Adults,Third Party Payments,470101,Purchase of Care,04-Oct-16,3187597-2333657,"2,124.52",BRANCEPETH COURT.
Adult and Health Services,Head of Adults,Third Party Payments,470101,Purchase of Care,04-Oct-16,3187597-2333658,"2,124.52",BRANCEPETH COURT.
Adult and Health Services,Head of Adults,Third Party Payments,470101,Purchase of Care,04-Oct-16,3187597-2333659,"2,124.52",BRANCEPETH COURT.
Adult and Health Services,Head of Adults,Third Party Payments,470101,Purchase of Care,04-Oct-16,3187597-2333660,"2,124.52",BRANCEPETH COURT.
Adult and Health Services,Head of Adults,Third Party Payments,470101,Purchase of Care,04-Oct-16,3187597-2333661,"2,124.52",BRANCEPETH COURT.
Adult and Health Services,Head of Adults,Third Party Payments,474101,Purchase of Care,04-Oct-16,3187597-2338067,"2,342.44",BRANCEPETH COURT.
Adult and Health Services,Central/Other,Debtors,930024,Debtor-free nursing care,04-Oct-16,3187597-2338069,625,BRANCEPETH COURT.
Adult and Health Services,Head of Adults,Third Party Payments,470101,Purchase of Care,04-Oct-16,3187597-2338161,514.89,BRANCEPETH COURT.
Adult and Health Services,Head of Adults,Third Party Payments,474101,Purchase of Care,04-Oct-16,3187597-2338163,770.34,BRANCEPETH COURT.
Adult and Health Services,Head of Adults,Third Party Payments,471101,Purchase of Care,04-Oct-16,3187597-2338172,"1,906.78",BRANCEPETH COURT.
Adult and Health Services,Head of Adults,Third Party Payments,471101,Purchase of Care,04-Oct-16,3187598-2334307,"2,135.60",BROOMHOUSE CARE LTD.
Adult and Health Services,Head of Adults,Third Party Payments,471101,Purchase of Care,04-Oct-16,3187598-2334308,"1,356.88",BROOMHOUSE CARE LTD.
Adult and Health Services,Head of Adults,Third Party Payments,470101,Purchase of Care,04-Oct-16,3187598-2334309,"2,059.56",BROOMHOUSE CARE LTD.
Adult and Health Services,Head of Adults,Third Party Payments,471101,Purchase of Care,04-Oct-16,3187598-2334310,"1,593.60",BROOMHOUSE CARE LTD.
Adult and Health Services,Head of Adults,Third Party Payments,471101,Purchase of Care,04-Oct-16,3187598-2334311,533.9,BROOMHOUSE CARE LTD.
Adult and Health Services,Head of Adults,Third Party Payments,471101,Purchase of Care,04-Oct-16,3187598-2334312,"2,135.60",BROOMHOUSE CARE LTD.
Adult and Health Services,Head of Adults,Third Party Payments,470101,Purchase of Care,04-Oct-16,3187598-2334313,"1,621.04",BROOMHOUSE CARE LTD.
Adult and Health Services,Head of Adults,Third Party Payments,471101,Purchase of Care,04-Oct-16,3187598-2334314,"2,135.60",BROOMHOUSE CARE LTD.
Adult and Health Services,Head of Adults,Third Party Payments,471101,Purchase of Care,04-Oct-16,3187598-2334315,"2,135.60",BROOMHOUSE CARE LTD.
Adult and Health Services,Head of Adults,Third Party Payments,470101,Purchase of Care,04-Oct-16,3187598-2334316,"1,453.96",BROOMHOUSE CARE LTD.
Adult and Health Services,Head of Adults,Third Party Payments,471101,Purchase of Care,04-Oct-16,3187598-2334317,"1,312.40",BROOMHOUSE CARE LTD.
Adult and Health Services,Head of Adults,Third Party Payments,470101,Purchase of Care,04-Oct-16,3187598-2334318,"1,301.36",BROOMHOUSE CARE LTD.
Adult and Health Services,Head of Adults,Third Party Payments,471101,Purchase of Care,04-Oct-16,3187598-2334319,"1,417.72",BROOMHOUSE CARE LTD.
Adult and Health Services,Head of Adults,Third Party Payments,470101,Purchase of Care,04-Oct-16,3187598-2334320,"2,059.56",BROOMHOUSE CARE LTD.
Adult and Health Services,Head of Adults,Third Party Payments,471101,Purchase of Care,04-Oct-16,3187598-2334321,"1,672.80",BROOMHOUSE CARE LTD.
Adult and Health Services,Head of Adults,Third Party Payments,470101,Purchase of Care,04-Oct-16,3187598-2334322,"1,536.76",BROOMHOUSE CARE LTD.
Adult and Health Services,Head of Adults,Third Party Payments,471101,Purchase of Care,04-Oct-16,3187598-2334323,"1,187.16",BROOMHOUSE CARE LTD.
Adult and Health Services,Head of Adults,Third Party Payments,470101,Purchase of Care,04-Oct-16,3187598-2338205,"1,838.89",BROOMHOUSE CARE LTD.
Adult and Health Services,Head of Adults,Third Party Payments,474101,Purchase of Care,04-Oct-16,3187599-2335627,"1,961.12",BURLINGTON CARE LTD T/A MAPLE LODGE CARE HOME.
Adult and Health Services,Head of Adults,Third Party Payments,478101,Purchase of Care,04-Oct-16,3187600-2337518,"1,396.24",REDACTED - PAYMENT TO INDIVIDUAL
Adult and Health Services,Head of Adults,Third Party Payments,470101,Purchase of Care,04-Oct-16,3187601-2335221,"1,684.00",CARE UK..
Adult and Health Services,Head of Adults,Third Party Payments,470101,Purchase of Care,04-Oct-16,3187602-2333614,"1,901.57",CARE UK..
Adult and Health Services,Head of Adults,Third Party Payments,474101,Purchase of Care,04-Oct-16,3187602-2333615,"1,972.00",CARE UK..
Adult and Health Services,Head of Adults,Third Party Payments,470101,Purchase of Care,04-Oct-16,3187602-2333616,"1,972.00",CARE UK..
Adult and Health Services,Head of Adults,Third Party Payments,470101,Purchase of Care,04-Oct-16,3187602-2333618,"1,972.00",CARE UK..
Adult and Health Services,Head of Adults,Third Party Payments,470101,Purchase of Care,04-Oct-16,3187603-2337311,"1,655.20",CARE UK..
Adult and Health Services,Head of Adults,Third Party Payments,471101,Purchase of Care,04-Oct-16,3187603-2337312,"1,818.96",CARE UK..
Adult and Health Services,Head of Adults,Third Party Payments,471101,Purchase of Care,04-Oct-16,3187603-2337313,"1,818.96",CARE UK..
Adult and Health Services,Head of Adults,Third Party Payments,474101,Purchase of Care,04-Oct-16,3187604-2337764,"6,954.40",CARELINE LIFESTYLES (UK) LTD.
Adult and Health Services,Head of Adults,Third Party Payments,474101,Purchase of Care,04-Oct-16,3187604-2337765,"3,908.00",CARELINE LIFESTYLES (UK) LTD.
Adult and Health Services,Head of Adults,Third Party Payments,474101,Purchase of Care,04-Oct-16,3187604-2337766,"5,400.00",CARELINE LIFESTYLES (UK) LTD.
Adult and Health Services,Head of Adults,Third Party Payments,474101,Purchase of Care,04-Oct-16,3187604-2337767,"2,300.00",CARELINE LIFESTYLES (UK) LTD.
Adult and Health Services,Head of Adults,Third Party Payments,470101,Purchase of Care,04-Oct-16,3187605-2336366,"2,461.68",CARELINE LIFESTYLES (UK) LTD.
Adult and Health Services,Head of Adults,Third Party Payments,474101,Purchase of Care,04-Oct-16,3187606-2336711,"2,694.00",CARELINE LIFESTYLES (UK) LTD.
Adult and Health Services,Central/Other,Debtors,930024,Debtor-free nursing care,04-Oct-16,3187606-2336712,625,CARELINE LIFESTYLES (UK) LTD.
Adult and Health Services,Head of Adults,Third Party Payments,470101,Purchase of Care,04-Oct-16,3187606-2336713,"2,500.00",CARELINE LIFESTYLES (UK) LTD.
Adult and Health Services,Head of Adults,Third Party Payments,470101,Purchase of Care,04-Oct-16,3187606-2336714,"2,016.00",CARELINE LIFESTYLES (UK) LTD.
Adult and Health Services,Head of Adults,Third Party Payments,474101,Purchase of Care,04-Oct-16,3187607-2337511,"4,800.00",CARELINE LIFESTYLES (UK) LTD.
Adult and Health Services,Head of Adults,Third Party Payments,474101,Purchase of Care,04-Oct-16,3187607-2337512,"2,808.00",CARELINE LIFESTYLES (UK) LTD.
Adult and Health Services,Head of Adults,Third Party Payments,471101,Purchase of Care,04-Oct-16,3187608-2337907,"1,909.84",CHHG LTD T/A GILDAWOOD COURT CARE HOME.
Adult and Health Services,Head of Adults,Third Party Payments,470101,Purchase of Care,04-Oct-16,3187609-2336611,"1,496.03",CHILTON CARE CENTRE.
Adult and Health Services,Head of Adults,Third Party Payments,471101,Purchase of Care,04-Oct-16,3187609-2336612,"1,612.80",CHILTON CARE CENTRE.
Adult and Health Services,Head of Adults,Third Party Payments,470101,Purchase of Care,04-Oct-16,3187609-2336613,"2,059.56",CHILTON CARE CENTRE.
Adult and Health Services,Head of Adults,Third Party Payments,471101,Purchase of Care,04-Oct-16,3187609-2336614,"1,547.00",CHILTON CARE CENTRE.
Adult and Health Services,Head of Adults,Third Party Payments,470101,Purchase of Care,04-Oct-16,3187609-2336615,"1,281.96",CHILTON CARE CENTRE.
Adult and Health Services,Head of Adults,Third Party Payments,471101,Purchase of Care,04-Oct-16,3187609-2336616,"2,135.60",CHILTON CARE CENTRE.
Adult and Health Services,Head of Adults,Third Party Payments,470101,Purchase of Care,04-Oct-16,3187609-2336617,"2,059.56",CHILTON CARE CENTRE.
Adult and Health Services,Head of Adults,Third Party Payments,471101,Purchase of Care,04-Oct-16,3187609-2336618,"1,635.80",CHILTON CARE CENTRE.
Adult and Health Services,Head of Adults,Third Party Payments,470101,Purchase of Care,04-Oct-16,3187609-2336620,"1,250.44",CHILTON CARE CENTRE.
Adult and Health Services,Head of Adults,Third Party Payments,471101,Purchase of Care,04-Oct-16,3187609-2336621,"2,326.61",CHILTON CARE CENTRE.
Adult and Health Services,Head of Adults,Third Party Payments,471101,Purchase of Care,04-Oct-16,3187609-2336623,"2,135.60",CHILTON CARE CENTRE.
Adult and Health Services,Head of Adults,Third Party Payments,470101,Purchase of Care,04-Oct-16,3187609-2336625,"1,717.07",CHILTON CARE CENTRE.
Adult and Health Services,Head of Adults,Third Party Payments,471101,Purchase of Care,04-Oct-16,3187609-2336626,"1,367.84",CHILTON CARE CENTRE.
Adult and Health Services,Head of Adults,Third Party Payments,470101,Purchase of Care,04-Oct-16,3187609-2336627,"2,059.56",CHILTON CARE CENTRE.
Adult and Health Services,Head of Adults,Third Party Payments,471101,Purchase of Care,04-Oct-16,3187609-2336629,"1,454.28",CHILTON CARE CENTRE.
Adult and Health Services,Head of Adults,Third Party Payments,470101,Purchase of Care,04-Oct-16,3187609-2336630,514.89,CHILTON CARE CENTRE.
Adult and Health Services,Head of Adults,Third Party Payments,471101,Purchase of Care,04-Oct-16,3187609-2336631,"1,249.76",CHILTON CARE CENTRE.
Adult and Health Services,Head of Adults,Third Party Payments,470101,Purchase of Care,04-Oct-16,3187609-2336632,"1,536.76",CHILTON CARE CENTRE.
Adult and Health Services,Head of Adults,Third Party Payments,471101,Purchase of Care,04-Oct-16,3187609-2336633,"1,595.12",CHILTON CARE CENTRE.
Adult and Health Services,Head of Adults,Third Party Payments,470101,Purchase of Care,04-Oct-16,3187609-2336634,"1,492.16",CHILTON CARE CENTRE.
Adult and Health Services,Head of Adults,Third Party Payments,471101,Purchase of Care,04-Oct-16,3187609-2336635,"1,445.20",CHILTON CARE CENTRE.
Adult and Health Services,Head of Adults,Third Party Payments,471101,Purchase of Care,04-Oct-16,3187609-2336636,"2,135.60",CHILTON CARE CENTRE.
Adult and Health Services,Head of Adults,Third Party Payments,471101,Purchase of Care,04-Oct-16,3187609-2336637,"2,135.60",CHILTON CARE CENTRE.
Adult and Health Services,Head of Adults,Third Party Payments,471101,Purchase of Care,04-Oct-16,3187609-2336638,"1,298.40",CHILTON CARE CENTRE.
Adult and Health Services,Head of Adults,Third Party Payments,470101,Purchase of Care,04-Oct-16,3187609-2336639,"1,467.96",CHILTON CARE CENTRE.
Adult and Health Services,Head of Adults,Third Party Payments,470101,Purchase of Care,04-Oct-16,3187609-2336640,"1,505.28",CHILTON CARE CENTRE.
Adult and Health Services,Head of Adults,Third Party Payments,470101,Purchase of Care,04-Oct-16,3187609-2336641,"1,289.72",CHILTON CARE CENTRE.
Adult and Health Services,Head of Adults,Third Party Payments,470101,Purchase of Care,04-Oct-16,3187609-2336642,"2,059.56",CHILTON CARE CENTRE.
Adult and Health Services,Head of Adults,Third Party Payments,471101,Purchase of Care,04-Oct-16,3187609-2336643,"1,612.80",CHILTON CARE CENTRE.
Adult and Health Services,Head of Adults,Third Party Payments,471101,Purchase of Care,04-Oct-16,3187609-2336644,"1,305.24",CHILTON CARE CENTRE.
Adult and Health Services,Head of Adults,Third Party Payments,471101,Purchase of Care,04-Oct-16,3187609-2336645,"2,135.60",CHILTON CARE CENTRE.
Adult and Health Services,Head of Adults,Third Party Payments,471101,Purchase of Care,04-Oct-16,3187609-2336646,"2,135.60",CHILTON CARE CENTRE.
Adult and Health Services,Head of Adults,Third Party Payments,471101,Purchase of Care,04-Oct-16,3187609-2336647,"1,612.80",CHILTON CARE CENTRE.
Adult and Health Services,Head of Adults,Third Party Payments,471101,Purchase of Care,04-Oct-16,3187609-2336648,"1,612.80",CHILTON CARE CENTRE.
Adult and Health Services,Head of Adults,Third Party Payments,470101,Purchase of Care,04-Oct-16,3187609-2336649,"1,408.56",CHILTON CARE CENTRE.
Adult and Health Services,Head of Adults,Third Party Payments,470101,Purchase of Care,04-Oct-16,3187609-2338305,956.22,CHILTON CARE CENTRE.
Adult and Health Services,Head of Adults,Third Party Payments,470101,Purchase of Care,04-Oct-16,3187609-2338311,"7,574.45",CHILTON CARE CENTRE.
Adult and Health Services,Head of Adults,Third Party Payments,471101,Purchase of Care,04-Oct-16,3187610-2337898,"2,252.00",CHRISTIAN HEAD CARE HOME.
Adult and Health Services,Head of Adults,Third Party Payments,470101,Purchase of Care,04-Oct-16,3187611-2336341,"2,059.56",CHURCH VIEW CARE HOME.
Adult and Health Services,Head of Adults,Third Party Payments,471101,Purchase of Care,04-Oct-16,3187611-2336342,"2,135.60",CHURCH VIEW CARE HOME.
Adult and Health Services,Head of Adults,Third Party Payments,471101,Purchase of Care,04-Oct-16,3187611-2336343,"1,983.05",CHURCH VIEW CARE HOME.
Adult and Health Services,Head of Adults,Third Party Payments,471101,Purchase of Care,04-Oct-16,3187611-2336344,"2,135.60",CHURCH VIEW CARE HOME.
Adult and Health Services,Head of Adults,Third Party Payments,471101,Purchase of Care,04-Oct-16,3187611-2336345,"2,135.60",CHURCH VIEW CARE HOME.
Adult and Health Services,Head of Adults,Third Party Payments,470101,Purchase of Care,04-Oct-16,3187611-2336346,"2,059.56",CHURCH VIEW CARE HOME.
Adult and Health Services,Head of Adults,Third Party Payments,470101,Purchase of Care,04-Oct-16,3187611-2336347,"2,059.56",CHURCH VIEW CARE HOME.
Adult and Health Services,Head of Adults,Third Party Payments,471101,Purchase of Care,04-Oct-16,3187611-2336348,"2,135.60",CHURCH VIEW CARE HOME.
Adult and Health Services,Head of Adults,Third Party Payments,470101,Purchase of Care,04-Oct-16,3187611-2336349,"2,059.56",CHURCH VIEW CARE HOME.
Adult and Health Services,Head of Adults,Third Party Payments,471101,Purchase of Care,04-Oct-16,3187611-2336350,"2,135.60",CHURCH VIEW CARE HOME.
Adult and Health Services,Head of Adults,Third Party Payments,471101,Purchase of Care,04-Oct-16,3187611-2336351,"2,135.60",CHURCH VIEW CARE HOME.
Adult and Health Services,Head of Adults,Third Party Payments,471101,Purchase of Care,04-Oct-16,3187611-2336352,"2,135.60",CHURCH VIEW CARE HOME.
Adult and Health Services,Head of Adults,Third Party Payments,470101,Purchase of Care,04-Oct-16,3187611-2336353,956.22,CHURCH VIEW CARE HOME.
Adult and Health Services,Head of Adults,Third Party Payments,471101,Purchase of Care,04-Oct-16,3187611-2336354,"2,135.60",CHURCH VIEW CARE HOME.
Adult and Health Services,Head of Adults,Third Party Payments,470101,Purchase of Care,04-Oct-16,3187611-2336355,"1,912.44",CHURCH VIEW CARE HOME.
Adult and Health Services,Head of Adults,Third Party Payments,470101,Purchase of Care,04-Oct-16,3187611-2336356,"2,059.56",CHURCH VIEW CARE HOME.
Adult and Health Services,Head of Adults,Third Party Payments,470101,Purchase of Care,04-Oct-16,3187611-2336357,"2,059.56",CHURCH VIEW CARE HOME.
Adult and Health Services,Head of Adults,Third Party Payments,470101,Purchase of Care,04-Oct-16,3187611-2336358,"2,059.56",CHURCH VIEW CARE HOME.
Adult and Health Services,Head of Adults,Third Party Payments,471101,Purchase of Care,04-Oct-16,3187611-2336359,"2,135.60",CHURCH VIEW CARE HOME.
Adult and Health Services,Head of Adults,Third Party Payments,470101,Purchase of Care,04-Oct-16,3187611-2336360,"2,059.56",CHURCH VIEW CARE HOME.
Adult and Health Services,Head of Adults,Third Party Payments,471101,Purchase of Care,04-Oct-16,3187611-2336361,"2,135.60",CHURCH VIEW CARE HOME.
Adult and Health Services,Head of Adults,Third Party Payments,470101,Purchase of Care,04-Oct-16,3187611-2336362,"2,059.56",CHURCH VIEW CARE HOME.
Adult and Health Services,Head of Adults,Third Party Payments,470101,Purchase of Care,04-Oct-16,3187611-2336363,"1,000.36",CHURCH VIEW CARE HOME.
Adult and Health Services,Head of Adults,Third Party Payments,470101,Purchase of Care,04-Oct-16,3187611-2336365,"2,059.56",CHURCH VIEW CARE HOME.
Adult and Health Services,Head of Adults,Third Party Payments,471101,Purchase of Care,04-Oct-16,3187611-2338137,"2,135.60",CHURCH VIEW CARE HOME.
Adult and Health Services,Head of Adults,Third Party Payments,471101,Purchase of Care,04-Oct-16,3187612-2337272,"2,026.40",CHURCH VIEW RESIDENTIAL CARE HOME.
Adult and Health Services,Head of Adults,Third Party Payments,470101,Purchase of Care,04-Oct-16,3187612-2337273,"1,949.24",CHURCH VIEW RESIDENTIAL CARE HOME.
Adult and Health Services,Head of Adults,Third Party Payments,471101,Purchase of Care,04-Oct-16,3187612-2337274,"2,026.40",CHURCH VIEW RESIDENTIAL CARE HOME.
Adult and Health Services,Head of Adults,Third Party Payments,470101,Purchase of Care,04-Oct-16,3187612-2337275,"1,949.24",CHURCH VIEW RESIDENTIAL CARE HOME.
Adult and Health Services,Head of Adults,Third Party Payments,471101,Purchase of Care,04-Oct-16,3187612-2337278,"2,026.40",CHURCH VIEW RESIDENTIAL CARE HOME.
Adult and Health Services,Head of Adults,Third Party Payments,471101,Purchase of Care,04-Oct-16,3187612-2337279,"2,026.40",CHURCH VIEW RESIDENTIAL CARE HOME.
Adult and Health Services,Head of Adults,Third Party Payments,471101,Purchase of Care,04-Oct-16,3187612-2337280,"2,026.40",CHURCH VIEW RESIDENTIAL CARE HOME.
Adult and Health Services,Head of Adults,Third Party Payments,470101,Purchase of Care,04-Oct-16,3187612-2337281,974.64,CHURCH VIEW RESIDENTIAL CARE HOME.
Adult and Health Services,Head of Adults,Third Party Payments,471101,Purchase of Care,04-Oct-16,3187612-2337282,"2,026.40",CHURCH VIEW RESIDENTIAL CARE HOME.
Adult and Health Services,Head of Adults,Third Party Payments,471101,Purchase of Care,04-Oct-16,3187612-2337283,"1,013.20",CHURCH VIEW RESIDENTIAL CARE HOME.
Adult and Health Services,Head of Adults,Third Party Payments,471101,Purchase of Care,04-Oct-16,3187612-2337284,"2,026.40",CHURCH VIEW RESIDENTIAL CARE HOME.
Adult and Health Services,Head of Adults,Third Party Payments,470101,Purchase of Care,04-Oct-16,3187612-2337285,"1,949.24",CHURCH VIEW RESIDENTIAL CARE HOME.
Adult and Health Services,Head of Adults,Third Party Payments,471101,Purchase of Care,04-Oct-16,3187612-2337286,"2,026.40",CHURCH VIEW RESIDENTIAL CARE HOME.
Adult and Health Services,Head of Adults,Third Party Payments,471101,Purchase of Care,04-Oct-16,3187612-2337287,"2,026.40",CHURCH VIEW RESIDENTIAL CARE HOME.
Adult and Health Services,Head of Adults,Third Party Payments,470101,Purchase of Care,04-Oct-16,3187612-2337288,"1,949.24",CHURCH VIEW RESIDENTIAL CARE HOME.
Adult and Health Services,Head of Adults,Third Party Payments,471101,Purchase of Care,04-Oct-16,3187612-2337289,"2,026.40",CHURCH VIEW RESIDENTIAL CARE HOME.
Adult and Health Services,Head of Adults,Third Party Payments,470101,Purchase of Care,04-Oct-16,3187612-2337290,"1,949.24",CHURCH VIEW RESIDENTIAL CARE HOME.
Adult and Health Services,Head of Adults,Third Party Payments,470101,Purchase of Care,04-Oct-16,3187612-2337291,"1,949.24",CHURCH VIEW RESIDENTIAL CARE HOME.
Adult and Health Services,Head of Adults,Third Party Payments,471101,Purchase of Care,04-Oct-16,3187612-2337292,"2,026.40",CHURCH VIEW RESIDENTIAL CARE HOME.
Adult and Health Services,Head of Adults,Third Party Payments,471101,Purchase of Care,04-Oct-16,3187612-2337293,"2,026.40",CHURCH VIEW RESIDENTIAL CARE HOME.
Adult and Health Services,Head of Adults,Third Party Payments,470101,Purchase of Care,04-Oct-16,3187612-2337294,"1,949.24",CHURCH VIEW RESIDENTIAL CARE HOME.
Adult and Health Services,Head of Adults,Third Party Payments,470101,Purchase of Care,04-Oct-16,3187612-2337295,"1,949.24",CHURCH VIEW RESIDENTIAL CARE HOME.
Adult and Health Services,Head of Adults,Third Party Payments,470101,Purchase of Care,04-Oct-16,3187612-2337296,"1,949.24",CHURCH VIEW RESIDENTIAL CARE HOME.
Adult and Health Services,Head of Adults,Third Party Payments,471101,Purchase of Care,04-Oct-16,3187612-2337297,"2,026.40",CHURCH VIEW RESIDENTIAL CARE HOME.
Adult and Health Services,Head of Adults,Third Party Payments,470101,Purchase of Care,04-Oct-16,3187612-2337298,"1,949.24",CHURCH VIEW RESIDENTIAL CARE HOME.
Adult and Health Services,Head of Adults,Third Party Payments,471101,Purchase of Care,04-Oct-16,3187612-2337299,"2,026.40",CHURCH VIEW RESIDENTIAL CARE HOME.
Adult and Health Services,Head of Adults,Third Party Payments,471101,Purchase of Care,04-Oct-16,3187612-2337300,"2,026.40",CHURCH VIEW RESIDENTIAL CARE HOME.
Adult and Health Services,Head of Adults,Third Party Payments,471101,Purchase of Care,04-Oct-16,3187612-2337301,"2,026.40",CHURCH VIEW RESIDENTIAL CARE HOME.
Adult and Health Services,Head of Adults,Third Party Payments,470101,Purchase of Care,04-Oct-16,3187612-2337302,"1,949.24",CHURCH VIEW RESIDENTIAL CARE HOME.
Adult and Health Services,Head of Adults,Third Party Payments,471101,Purchase of Care,04-Oct-16,3187612-2337303,"2,026.40",CHURCH VIEW RESIDENTIAL CARE HOME.
Adult and Health Services,Head of Adults,Third Party Payments,470101,Purchase of Care,04-Oct-16,3187612-2337304,"1,949.24",CHURCH VIEW RESIDENTIAL CARE HOME.
Adult and Health Services,Head of Adults,Third Party Payments,470101,Purchase of Care,04-Oct-16,3187612-2337305,"1,949.24",CHURCH VIEW RESIDENTIAL CARE HOME.
Adult and Health Services,Head of Adults,Third Party Payments,471101,Purchase of Care,04-Oct-16,3187612-2337306,"2,026.40",CHURCH VIEW RESIDENTIAL CARE HOME.
Adult and Health Services,Head of Adults,Third Party Payments,470101,Purchase of Care,04-Oct-16,3187612-2337307,"1,949.24",CHURCH VIEW RESIDENTIAL CARE HOME.
Adult and Health Services,Head of Adults,Third Party Payments,471101,Purchase of Care,04-Oct-16,3187612-2337308,"2,026.40",CHURCH VIEW RESIDENTIAL CARE HOME.
Adult and Health Services,Head of Adults,Third Party Payments,470101,Purchase of Care,04-Oct-16,3187612-2337309,"1,949.24",CHURCH VIEW RESIDENTIAL CARE HOME.
Adult and Health Services,Head of Adults,Third Party Payments,471101,Purchase of Care,04-Oct-16,3187612-2337310,"2,026.40",CHURCH VIEW RESIDENTIAL CARE HOME.
Adult and Health Services,Head of Adults,Third Party Payments,471101,Purchase of Care,04-Oct-16,3187612-2338271,651.34,CHURCH VIEW RESIDENTIAL CARE HOME.
Adult and Health Services,Head of Adults,Third Party Payments,471101,Purchase of Care,04-Oct-16,3187612-2338272,868.45,CHURCH VIEW RESIDENTIAL CARE HOME.
Adult and Health Services,Head of Adults,Third Party Payments,474101,Purchase of Care,04-Oct-16,3187614-2337921,"1,950.76",COUNTRYWIDE CARE HOMES T/A HOWGATE HOUSE CARE HOME.
Adult and Health Services,Head of Adults,Third Party Payments,474101,Purchase of Care,04-Oct-16,3187615-2337691,846.4,COVENT HOUSE.
Adult and Health Services,Head of Adults,Third Party Payments,471101,Purchase of Care,04-Oct-16,3187615-2337692,"1,020.21",COVENT HOUSE.
Adult and Health Services,Head of Adults,Third Party Payments,474101,Purchase of Care,04-Oct-16,3187615-2337693,"2,116.00",COVENT HOUSE.
Adult and Health Services,Head of Adults,Third Party Payments,471101,Purchase of Care,04-Oct-16,3187615-2337698,"1,058.00",COVENT HOUSE.
Adult and Health Services,Head of Adults,Third Party Payments,470101,Purchase of Care,04-Oct-16,3187615-2337699,"2,048.00",COVENT HOUSE.
Adult and Health Services,Head of Adults,Third Party Payments,474101,Purchase of Care,04-Oct-16,3187615-2337700,"2,116.00",COVENT HOUSE.
Adult and Health Services,Head of Adults,Third Party Payments,474101,Purchase of Care,04-Oct-16,3187615-2337701,"2,048.00",COVENT HOUSE.
Adult and Health Services,Head of Adults,Third Party Payments,470101,Purchase of Care,04-Oct-16,3187615-2337702,"2,048.00",COVENT HOUSE.
Adult and Health Services,Head of Adults,Third Party Payments,474101,Purchase of Care,04-Oct-16,3187615-2337703,"2,048.00",COVENT HOUSE.
Adult and Health Services,Head of Adults,Third Party Payments,474101,Purchase of Care,04-Oct-16,3187615-2337704,"2,048.00",COVENT HOUSE.
Adult and Health Services,Head of Adults,Third Party Payments,471101,Purchase of Care,04-Oct-16,3187615-2337705,"1,058.00",COVENT HOUSE.
Adult and Health Services,Head of Adults,Third Party Payments,474101,Purchase of Care,04-Oct-16,3187615-2337706,"2,116.00",COVENT HOUSE.
Adult and Health Services,Head of Adults,Third Party Payments,474101,Purchase of Care,04-Oct-16,3187615-2338399,982.42,COVENT HOUSE.
Adult and Health Services,Head of Adults,Third Party Payments,471101,Purchase of Care,04-Oct-16,3187615-2338402,"1,360.28",COVENT HOUSE.
Adult and Health Services,Head of Adults,Third Party Payments,471101,Purchase of Care,04-Oct-16,3187616-2336914,"1,896.00",COVERAGE CARE SERVICES LTD/COTON HILL HOUSE.
Adult and Health Services,Head of Adults,Third Party Payments,474101,Purchase of Care,04-Oct-16,3187617-2335427,"1,078.48",CRAIGARRAN CARE HOME WITH NURSING.
Adult and Health Services,Head of Adults,Third Party Payments,474999,Purchase of Care,04-Oct-16,3187617-2335428,609.63,CRAIGARRAN CARE HOME WITH NURSING.
Adult and Health Services,Head of Adults,Third Party Payments,474101,Purchase of Care,04-Oct-16,3187617-2335429,"2,156.96",CRAIGARRAN CARE HOME WITH NURSING.
Adult and Health Services,Central/Other,Debtors,930024,Debtor-free nursing care,04-Oct-16,3187617-2335430,625,CRAIGARRAN CARE HOME WITH NURSING.
Adult and Health Services,Head of Adults,Third Party Payments,470101,Purchase of Care,04-Oct-16,3187617-2335431,"2,059.56",CRAIGARRAN CARE HOME WITH NURSING.
Adult and Health Services,Head of Adults,Third Party Payments,474101,Purchase of Care,04-Oct-16,3187617-2335432,"2,156.96",CRAIGARRAN CARE HOME WITH NURSING.
Adult and Health Services,Central/Other,Debtors,930024,Debtor-free nursing care,04-Oct-16,3187617-2335433,625,CRAIGARRAN CARE HOME WITH NURSING.
Adult and Health Services,Head of Adults,Third Party Payments,471101,Purchase of Care,04-Oct-16,3187617-2335434,"1,067.80",CRAIGARRAN CARE HOME WITH NURSING.
Adult and Health Services,Head of Adults,Third Party Payments,474101,Purchase of Care,04-Oct-16,3187617-2335435,"1,078.48",CRAIGARRAN CARE HOME WITH NURSING.
Adult and Health Services,Head of Adults,Third Party Payments,474999,Purchase of Care,04-Oct-16,3187617-2335436,609.63,CRAIGARRAN CARE HOME WITH NURSING.
Adult and Health Services,Head of Adults,Third Party Payments,474101,Purchase of Care,04-Oct-16,3187617-2335437,"2,156.96",CRAIGARRAN CARE HOME WITH NURSING.
Adult and Health Services,Central/Other,Debtors,930024,Debtor-free nursing care,04-Oct-16,3187617-2335438,625,CRAIGARRAN CARE HOME WITH NURSING.
Adult and Health Services,Head of Adults,Third Party Payments,474101,Purchase of Care,04-Oct-16,3187617-2335439,"1,078.48",CRAIGARRAN CARE HOME WITH NURSING.
Adult and Health Services,Head of Adults,Third Party Payments,474101,Purchase of Care,04-Oct-16,3187617-2335440,"4,773.60",CRAIGARRAN CARE HOME WITH NURSING.
Adult and Health Services,Head of Adults,Third Party Payments,474999,Purchase of Care,04-Oct-16,3187617-2335441,543.25,CRAIGARRAN CARE HOME WITH NURSING.
Adult and Health Services,Head of Adults,Third Party Payments,474101,Purchase of Care,04-Oct-16,3187617-2335442,"2,156.96",CRAIGARRAN CARE HOME WITH NURSING.
Adult and Health Services,Central/Other,Debtors,930024,Debtor-free nursing care,04-Oct-16,3187617-2335443,625,CRAIGARRAN CARE HOME WITH NURSING.
Adult and Health Services,Head of Adults,Third Party Payments,474101,Purchase of Care,04-Oct-16,3187617-2335444,"2,156.96",CRAIGARRAN CARE HOME WITH NURSING.
Adult and Health Services,Central/Other,Debtors,930024,Debtor-free nursing care,04-Oct-16,3187617-2335445,625,CRAIGARRAN CARE HOME WITH NURSING.
Adult and Health Services,Head of Adults,Third Party Payments,474101,Purchase of Care,04-Oct-16,3187617-2335446,"2,156.96",CRAIGARRAN CARE HOME WITH NURSING.
Adult and Health Services,Central/Other,Debtors,930024,Debtor-free nursing care,04-Oct-16,3187617-2335447,625,CRAIGARRAN CARE HOME WITH NURSING.
Adult and Health Services,Head of Adults,Third Party Payments,471101,Purchase of Care,04-Oct-16,3187617-2335448,"2,135.60",CRAIGARRAN CARE HOME WITH NURSING.
Adult and Health Services,Central/Other,Debtors,930024,Debtor-free nursing care,04-Oct-16,3187617-2335449,625,CRAIGARRAN CARE HOME WITH NURSING.
Adult and Health Services,Head of Adults,Third Party Payments,474101,Purchase of Care,04-Oct-16,3187617-2335450,"2,156.96",CRAIGARRAN CARE HOME WITH NURSING.
Adult and Health Services,Central/Other,Debtors,930024,Debtor-free nursing care,04-Oct-16,3187617-2335451,625,CRAIGARRAN CARE HOME WITH NURSING.
Adult and Health Services,Head of Adults,Third Party Payments,470101,Purchase of Care,04-Oct-16,3187617-2335452,"2,059.56",CRAIGARRAN CARE HOME WITH NURSING.
Adult and Health Services,Head of Adults,Third Party Payments,470101,Purchase of Care,04-Oct-16,3187617-2335453,"2,059.56",CRAIGARRAN CARE HOME WITH NURSING.
Adult and Health Services,Central/Other,Debtors,930024,Debtor-free nursing care,04-Oct-16,3187617-2335454,625,CRAIGARRAN CARE HOME WITH NURSING.
Adult and Health Services,Head of Adults,Third Party Payments,474101,Purchase of Care,04-Oct-16,3187617-2335455,"2,156.96",CRAIGARRAN CARE HOME WITH NURSING.
Adult and Health Services,Central/Other,Debtors,930024,Debtor-free nursing care,04-Oct-16,3187617-2335456,625,CRAIGARRAN CARE HOME WITH NURSING.
Adult and Health Services,Head of Adults,Third Party Payments,470101,Purchase of Care,04-Oct-16,3187617-2335458,"2,059.56",CRAIGARRAN CARE HOME WITH NURSING.
Adult and Health Services,Head of Adults,Third Party Payments,474101,Purchase of Care,04-Oct-16,3187617-2335459,"2,156.96",CRAIGARRAN CARE HOME WITH NURSING.
Adult and Health Services,Central/Other,Debtors,930024,Debtor-free nursing care,04-Oct-16,3187617-2335460,625,CRAIGARRAN CARE HOME WITH NURSING.
Adult and Health Services,Head of Adults,Third Party Payments,474101,Purchase of Care,04-Oct-16,3187617-2335461,"2,156.96",CRAIGARRAN CARE HOME WITH NURSING.
Adult and Health Services,Central/Other,Debtors,930024,Debtor-free nursing care,04-Oct-16,3187617-2335462,625,CRAIGARRAN CARE HOME WITH NURSING.
Adult and Health Services,Head of Adults,Third Party Payments,470101,Purchase of Care,04-Oct-16,3187617-2335463,"2,059.56",CRAIGARRAN CARE HOME WITH NURSING.
Adult and Health Services,Head of Adults,Third Party Payments,471101,Purchase of Care,04-Oct-16,3187617-2335464,"2,135.60",CRAIGARRAN CARE HOME WITH NURSING.
Adult and Health Services,Head of Adults,Third Party Payments,474101,Purchase of Care,04-Oct-16,3187617-2335465,"2,156.96",CRAIGARRAN CARE HOME WITH NURSING.
Adult and Health Services,Central/Other,Debtors,930024,Debtor-free nursing care,04-Oct-16,3187617-2335466,625,CRAIGARRAN CARE HOME WITH NURSING.
Adult and Health Services,Head of Adults,Third Party Payments,470101,Purchase of Care,04-Oct-16,3187617-2335467,"2,059.56",CRAIGARRAN CARE HOME WITH NURSING.
Adult and Health Services,Head of Adults,Third Party Payments,470101,Purchase of Care,04-Oct-16,3187617-2338180,"1,618.22",CRAIGARRAN CARE HOME WITH NURSING.
Adult and Health Services,Head of Adults,Third Party Payments,470101,Purchase of Care,04-Oct-16,3187618-2337014,"2,059.56",CROFT HOUSE RESIDENTIAL HOME.
Adult and Health Services,Head of Adults,Third Party Payments,471101,Purchase of Care,04-Oct-16,3187618-2337015,"2,135.60",CROFT HOUSE RESIDENTIAL HOME.
Adult and Health Services,Head of Adults,Third Party Payments,470101,Purchase of Care,04-Oct-16,3187618-2337016,"2,059.56",CROFT HOUSE RESIDENTIAL HOME.
Adult and Health Services,Head of Adults,Third Party Payments,470101,Purchase of Care,04-Oct-16,3187618-2337017,"2,059.56",CROFT HOUSE RESIDENTIAL HOME.
Adult and Health Services,Head of Adults,Third Party Payments,470101,Purchase of Care,04-Oct-16,3187618-2337018,"2,059.56",CROFT HOUSE RESIDENTIAL HOME.
Adult and Health Services,Head of Adults,Third Party Payments,474101,Purchase of Care,04-Oct-16,3187618-2337019,"2,156.96",CROFT HOUSE RESIDENTIAL HOME.
Adult and Health Services,Central/Other,Debtors,930024,Debtor-free nursing care,04-Oct-16,3187618-2337020,625,CROFT HOUSE RESIDENTIAL HOME.
Adult and Health Services,Head of Adults,Third Party Payments,474101,Purchase of Care,04-Oct-16,3187618-2337021,"2,156.96",CROFT HOUSE RESIDENTIAL HOME.
Adult and Health Services,Central/Other,Debtors,930024,Debtor-free nursing care,04-Oct-16,3187618-2337022,625,CROFT HOUSE RESIDENTIAL HOME.
Adult and Health Services,Head of Adults,Third Party Payments,474101,Purchase of Care,04-Oct-16,3187618-2337023,"2,156.96",CROFT HOUSE RESIDENTIAL HOME.
Adult and Health Services,Central/Other,Debtors,930024,Debtor-free nursing care,04-Oct-16,3187618-2337024,625,CROFT HOUSE RESIDENTIAL HOME.
Adult and Health Services,Head of Adults,Third Party Payments,471101,Purchase of Care,04-Oct-16,3187618-2337025,"2,135.60",CROFT HOUSE RESIDENTIAL HOME.
Adult and Health Services,Head of Adults,Third Party Payments,471101,Purchase of Care,04-Oct-16,3187618-2337026,"1,042.24",CROFT HOUSE RESIDENTIAL HOME.
Adult and Health Services,Head of Adults,Third Party Payments,470101,Purchase of Care,04-Oct-16,3187618-2337027,"2,059.56",CROFT HOUSE RESIDENTIAL HOME.
Adult and Health Services,Head of Adults,Third Party Payments,474101,Purchase of Care,04-Oct-16,3187618-2337028,"1,052.68",CROFT HOUSE RESIDENTIAL HOME.
Adult and Health Services,Head of Adults,Third Party Payments,474999,Purchase of Care,04-Oct-16,3187618-2337029,609.63,CROFT HOUSE RESIDENTIAL HOME.
Adult and Health Services,Head of Adults,Third Party Payments,474101,Purchase of Care,04-Oct-16,3187618-2337030,"2,342.44",CROFT HOUSE RESIDENTIAL HOME.
Adult and Health Services,Central/Other,Debtors,930024,Debtor-free nursing care,04-Oct-16,3187618-2337031,625,CROFT HOUSE RESIDENTIAL HOME.
Adult and Health Services,Head of Adults,Third Party Payments,474101,Purchase of Care,04-Oct-16,3187618-2337034,"1,052.68",CROFT HOUSE RESIDENTIAL HOME.
Adult and Health Services,Head of Adults,Third Party Payments,474999,Purchase of Care,04-Oct-16,3187618-2337035,609.63,CROFT HOUSE RESIDENTIAL HOME.
Adult and Health Services,Head of Adults,Third Party Payments,470101,Purchase of Care,04-Oct-16,3187618-2337036,"1,536.76",CROFT HOUSE RESIDENTIAL HOME.
Adult and Health Services,Head of Adults,Third Party Payments,470101,Purchase of Care,04-Oct-16,3187618-2337037,"1,184.60",CROFT HOUSE RESIDENTIAL HOME.
Adult and Health Services,Head of Adults,Third Party Payments,471101,Purchase of Care,04-Oct-16,3187618-2337038,"1,319.48",CROFT HOUSE RESIDENTIAL HOME.
Adult and Health Services,Head of Adults,Third Party Payments,470101,Purchase of Care,04-Oct-16,3187618-2337039,"2,309.64",CROFT HOUSE RESIDENTIAL HOME.
Adult and Health Services,Head of Adults,Third Party Payments,474101,Purchase of Care,04-Oct-16,3187618-2337041,"2,156.96",CROFT HOUSE RESIDENTIAL HOME.
Adult and Health Services,Central/Other,Debtors,930024,Debtor-free nursing care,04-Oct-16,3187618-2337042,625,CROFT HOUSE RESIDENTIAL HOME.
Adult and Health Services,Head of Adults,Third Party Payments,471101,Purchase of Care,04-Oct-16,3187618-2338203,"1,220.34",CROFT HOUSE RESIDENTIAL HOME.
Adult and Health Services,Head of Adults,Third Party Payments,474101,Purchase of Care,04-Oct-16,3187618-2338282,"2,002.89",CROFT HOUSE RESIDENTIAL HOME.
Adult and Health Services,Central/Other,Debtors,930024,Debtor-free nursing care,04-Oct-16,3187618-2338283,580.36,CROFT HOUSE RESIDENTIAL HOME.
Adult and Health Services,Head of Adults,Third Party Payments,474101,Purchase of Care,04-Oct-16,3187618-2338490,"3,023.88",CROFT HOUSE RESIDENTIAL HOME.
Adult and Health Services,Central/Other,Debtors,930024,Debtor-free nursing care,04-Oct-16,3187618-2338491,"1,163.03",CROFT HOUSE RESIDENTIAL HOME.
Adult and Health Services,Head of Adults,Third Party Payments,471101,Purchase of Care,04-Oct-16,3187618-2338497,610.17,CROFT HOUSE RESIDENTIAL HOME.
Adult and Health Services,Head of Adults,Third Party Payments,470101,Purchase of Care,04-Oct-16,3187619-2334884,"1,379.92",CROFT UNIT.
Adult and Health Services,Head of Adults,Third Party Payments,470101,Purchase of Care,04-Oct-16,3187619-2334885,"2,428.00",CROFT UNIT.
Adult and Health Services,Head of Adults,Third Party Payments,470101,Purchase of Care,04-Oct-16,3187619-2334886,"1,492.32",CROFT UNIT.
Adult and Health Services,Head of Adults,Third Party Payments,470101,Purchase of Care,04-Oct-16,3187619-2334887,"1,492.32",CROFT UNIT.
Adult and Health Services,Head of Adults,Third Party Payments,470101,Purchase of Care,04-Oct-16,3187619-2334888,"1,214.00",CROFT UNIT.
Adult and Health Services,Head of Adults,Third Party Payments,470101,Purchase of Care,04-Oct-16,3187619-2334889,"2,211.32",CROFT UNIT.
Adult and Health Services,Head of Adults,Third Party Payments,470101,Purchase of Care,04-Oct-16,3187619-2334890,"2,100.00",CROFT UNIT.
Adult and Health Services,Head of Adults,Third Party Payments,470101,Purchase of Care,04-Oct-16,3187619-2334892,"2,428.00",CROFT UNIT.
Adult and Health Services,Head of Adults,Third Party Payments,470101,Purchase of Care,04-Oct-16,3187619-2334893,"1,214.00",CROFT UNIT.
Adult and Health Services,Head of Adults,Third Party Payments,470101,Purchase of Care,04-Oct-16,3187619-2334895,"2,428.00",CROFT UNIT.
Adult and Health Services,Head of Adults,Third Party Payments,470101,Purchase of Care,04-Oct-16,3187619-2334896,"2,755.88",CROFT UNIT.
Adult and Health Services,Head of Adults,Third Party Payments,470101,Purchase of Care,04-Oct-16,3187619-2334897,"1,826.12",CROFT UNIT.
Adult and Health Services,Head of Adults,Third Party Payments,470101,Purchase of Care,04-Oct-16,3187619-2334898,"1,125.88",CROFT UNIT.
Adult and Health Services,Head of Adults,Third Party Payments,470101,Purchase of Care,04-Oct-16,3187619-2334899,"1,844.36",CROFT UNIT.
Adult and Health Services,Head of Adults,Third Party Payments,470101,Purchase of Care,04-Oct-16,3187619-2334901,"1,321.56",CROFT UNIT.
Adult and Health Services,Head of Adults,Third Party Payments,470101,Purchase of Care,04-Oct-16,3187620-2335624,986,DARLINGTON MANOR CARE HOME.
Adult and Health Services,Head of Adults,Third Party Payments,470101,Purchase of Care,04-Oct-16,3187621-2332990,"6,027.08",DARWIN PLACE CARE HOME.
Adult and Health Services,Head of Adults,Third Party Payments,470101,Purchase of Care,04-Oct-16,3187621-2337839,"6,027.08",DARWIN PLACE CARE HOME.
Adult and Health Services,Head of Adults,Third Party Payments,470101,Purchase of Care,04-Oct-16,3187622-2335922,"2,309.64",DEFOE COURT.
Adult and Health Services,Central/Other,Debtors,930024,Debtor-free nursing care,04-Oct-16,3187622-2335923,688.33,DEFOE COURT.
Adult and Health Services,Head of Adults,Third Party Payments,470101,Purchase of Care,04-Oct-16,3187622-2335924,"1,397.55",DEFOE COURT.
Adult and Health Services,Head of Adults,Third Party Payments,474101,Purchase of Care,04-Oct-16,3187622-2335927,"2,156.96",DEFOE COURT.
Adult and Health Services,Central/Other,Debtors,930024,Debtor-free nursing care,04-Oct-16,3187622-2335928,625,DEFOE COURT.
Adult and Health Services,Head of Adults,Third Party Payments,471101,Purchase of Care,04-Oct-16,3187622-2335929,"2,135.60",DEFOE COURT.
Adult and Health Services,Head of Adults,Third Party Payments,474101,Purchase of Care,04-Oct-16,3187622-2335930,"2,156.96",DEFOE COURT.
Adult and Health Services,Central/Other,Debtors,930024,Debtor-free nursing care,04-Oct-16,3187622-2335931,688.33,DEFOE COURT.
Adult and Health Services,Central/Other,Debtors,930024,Debtor-free nursing care,04-Oct-16,3187622-2335932,625,DEFOE COURT.
Adult and Health Services,Head of Adults,Third Party Payments,470101,Purchase of Care,04-Oct-16,3187622-2335933,662,DEFOE COURT.
Adult and Health Services,Head of Adults,Third Party Payments,470101,Purchase of Care,04-Oct-16,3187622-2335934,"2,059.56",DEFOE COURT.
Adult and Health Services,Head of Adults,Third Party Payments,474101,Purchase of Care,04-Oct-16,3187622-2335935,"2,156.96",DEFOE COURT.
Adult and Health Services,Central/Other,Debtors,930024,Debtor-free nursing care,04-Oct-16,3187622-2335936,625,DEFOE COURT.
Adult and Health Services,Head of Adults,Third Party Payments,470101,Purchase of Care,04-Oct-16,3187622-2335937,"2,059.56",DEFOE COURT.
Adult and Health Services,Head of Adults,Third Party Payments,474101,Purchase of Care,04-Oct-16,3187622-2335938,"2,156.96",DEFOE COURT.
Adult and Health Services,Central/Other,Debtors,930024,Debtor-free nursing care,04-Oct-16,3187622-2335939,625,DEFOE COURT.
Adult and Health Services,Head of Adults,Third Party Payments,470101,Purchase of Care,04-Oct-16,3187622-2335940,"2,059.56",DEFOE COURT.
Adult and Health Services,Head of Adults,Third Party Payments,474101,Purchase of Care,04-Oct-16,3187622-2335941,"2,156.96",DEFOE COURT.
Adult and Health Services,Central/Other,Debtors,930024,Debtor-free nursing care,04-Oct-16,3187622-2335942,625,DEFOE COURT.
Adult and Health Services,Head of Adults,Third Party Payments,471101,Purchase of Care,04-Oct-16,3187622-2335943,"1,067.80",DEFOE COURT.
Adult and Health Services,Head of Adults,Third Party Payments,474101,Purchase of Care,04-Oct-16,3187622-2335944,"2,156.96",DEFOE COURT.
Adult and Health Services,Central/Other,Debtors,930024,Debtor-free nursing care,04-Oct-16,3187622-2335945,625,DEFOE COURT.
Adult and Health Services,Head of Adults,Third Party Payments,474101,Purchase of Care,04-Oct-16,3187622-2335946,"2,156.96",DEFOE COURT.
Adult and Health Services,Central/Other,Debtors,930024,Debtor-free nursing care,04-Oct-16,3187622-2335947,625,DEFOE COURT.
Adult and Health Services,Head of Adults,Third Party Payments,474101,Purchase of Care,04-Oct-16,3187622-2335948,"2,156.96",DEFOE COURT.
Adult and Health Services,Central/Other,Debtors,930024,Debtor-free nursing care,04-Oct-16,3187622-2335949,625,DEFOE COURT.
Adult and Health Services,Head of Adults,Third Party Payments,470101,Purchase of Care,04-Oct-16,3187622-2335950,"2,059.56",DEFOE COURT.
Adult and Health Services,Head of Adults,Third Party Payments,470101,Purchase of Care,04-Oct-16,3187622-2335951,"2,059.56",DEFOE COURT.
Adult and Health Services,Head of Adults,Third Party Payments,474101,Purchase of Care,04-Oct-16,3187622-2335952,"2,156.96",DEFOE COURT.
Adult and Health Services,Central/Other,Debtors,930024,Debtor-free nursing care,04-Oct-16,3187622-2335953,625,DEFOE COURT.
Adult and Health Services,Head of Adults,Third Party Payments,470101,Purchase of Care,04-Oct-16,3187622-2335954,"2,059.56",DEFOE COURT.
Adult and Health Services,Central/Other,Debtors,930024,Debtor-free nursing care,04-Oct-16,3187622-2335955,625,DEFOE COURT.
Adult and Health Services,Head of Adults,Third Party Payments,470101,Purchase of Care,04-Oct-16,3187622-2335956,"1,029.80",DEFOE COURT.
Adult and Health Services,Head of Adults,Third Party Payments,474101,Purchase of Care,04-Oct-16,3187622-2335957,"2,156.96",DEFOE COURT.
Adult and Health Services,Central/Other,Debtors,930024,Debtor-free nursing care,04-Oct-16,3187622-2335958,625,DEFOE COURT.
Adult and Health Services,Head of Adults,Third Party Payments,470101,Purchase of Care,04-Oct-16,3187622-2335959,"2,059.56",DEFOE COURT.
Adult and Health Services,Head of Adults,Third Party Payments,470101,Purchase of Care,04-Oct-16,3187622-2335960,"2,059.56",DEFOE COURT.
Adult and Health Services,Head of Adults,Third Party Payments,474101,Purchase of Care,04-Oct-16,3187622-2337938,"1,924.15",DEFOE COURT.
Adult and Health Services,Head of Adults,Third Party Payments,470101,Purchase of Care,04-Oct-16,3187623-2336716,"2,059.56",DERWENT CARE HOME.
Adult and Health Services,Head of Adults,Third Party Payments,470101,Purchase of Care,04-Oct-16,3187623-2336717,"2,059.56",DERWENT CARE HOME.
Adult and Health Services,Head of Adults,Third Party Payments,470101,Purchase of Care,04-Oct-16,3187623-2336718,"2,059.56",DERWENT CARE HOME.
Adult and Health Services,Head of Adults,Third Party Payments,471101,Purchase of Care,04-Oct-16,3187623-2336719,"2,135.60",DERWENT CARE HOME.
Adult and Health Services,Head of Adults,Third Party Payments,470101,Purchase of Care,04-Oct-16,3187623-2336720,"2,059.56",DERWENT CARE HOME.
Adult and Health Services,Head of Adults,Third Party Payments,470101,Purchase of Care,04-Oct-16,3187623-2336721,"2,059.56",DERWENT CARE HOME.
Adult and Health Services,Head of Adults,Third Party Payments,471101,Purchase of Care,04-Oct-16,3187623-2336722,"2,135.60",DERWENT CARE HOME.
Adult and Health Services,Head of Adults,Third Party Payments,471101,Purchase of Care,04-Oct-16,3187623-2336723,"1,042.24",DERWENT CARE HOME.
Adult and Health Services,Head of Adults,Third Party Payments,471101,Purchase of Care,04-Oct-16,3187623-2336724,"2,135.60",DERWENT CARE HOME.
Adult and Health Services,Head of Adults,Third Party Payments,471101,Purchase of Care,04-Oct-16,3187623-2336725,"2,135.60",DERWENT CARE HOME.
Adult and Health Services,Head of Adults,Third Party Payments,470101,Purchase of Care,04-Oct-16,3187623-2336726,"2,059.56",DERWENT CARE HOME.
Adult and Health Services,Head of Adults,Third Party Payments,470101,Purchase of Care,04-Oct-16,3187624-2333717,"2,124.52",DEVONSHIRE HOUSE.
Adult and Health Services,Head of Adults,Third Party Payments,474101,Purchase of Care,04-Oct-16,3187624-2333718,"2,156.96",DEVONSHIRE HOUSE.
Adult and Health Services,Central/Other,Debtors,930024,Debtor-free nursing care,04-Oct-16,3187624-2333719,625,DEVONSHIRE HOUSE.
Adult and Health Services,Head of Adults,Third Party Payments,474101,Purchase of Care,04-Oct-16,3187624-2333720,"2,850.27",DEVONSHIRE HOUSE.
Adult and Health Services,Central/Other,Debtors,930024,Debtor-free nursing care,04-Oct-16,3187624-2333721,825.89,DEVONSHIRE HOUSE.
Adult and Health Services,Head of Adults,Third Party Payments,470101,Purchase of Care,04-Oct-16,3187624-2333722,"2,059.56",DEVONSHIRE HOUSE.
Adult and Health Services,Head of Adults,Third Party Payments,470101,Purchase of Care,04-Oct-16,3187624-2333723,"2,124.52",DEVONSHIRE HOUSE.
Adult and Health Services,Head of Adults,Third Party Payments,471101,Purchase of Care,04-Oct-16,3187624-2333724,"2,135.60",DEVONSHIRE HOUSE.
Adult and Health Services,Head of Adults,Third Party Payments,474101,Purchase of Care,04-Oct-16,3187624-2333725,"1,391.16",DEVONSHIRE HOUSE.
Adult and Health Services,Central/Other,Debtors,930024,Debtor-free nursing care,04-Oct-16,3187624-2333726,625,DEVONSHIRE HOUSE.
Adult and Health Services,Head of Adults,Third Party Payments,470101,Purchase of Care,04-Oct-16,3187624-2333727,"1,505.92",DEVONSHIRE HOUSE.
Adult and Health Services,Head of Adults,Third Party Payments,474101,Purchase of Care,04-Oct-16,3187624-2333728,"1,662.76",DEVONSHIRE HOUSE.
Adult and Health Services,Central/Other,Debtors,930024,Debtor-free nursing care,04-Oct-16,3187624-2333729,625,DEVONSHIRE HOUSE.
Adult and Health Services,Head of Adults,Third Party Payments,470101,Purchase of Care,04-Oct-16,3187624-2333730,"1,536.76",DEVONSHIRE HOUSE.
Adult and Health Services,Head of Adults,Third Party Payments,474101,Purchase of Care,04-Oct-16,3187624-2333731,"2,156.96",DEVONSHIRE HOUSE.
Adult and Health Services,Central/Other,Debtors,930024,Debtor-free nursing care,04-Oct-16,3187624-2333732,625,DEVONSHIRE HOUSE.
Adult and Health Services,Head of Adults,Third Party Payments,470101,Purchase of Care,04-Oct-16,3187624-2333733,"1,601.72",DEVONSHIRE HOUSE.
Adult and Health Services,Central/Other,Debtors,930024,Debtor-free nursing care,04-Oct-16,3187624-2333734,625,DEVONSHIRE HOUSE.
Adult and Health Services,Central/Other,Debtors,930024,Debtor-free nursing care,04-Oct-16,3187624-2333735,625,DEVONSHIRE HOUSE.
Adult and Health Services,Head of Adults,Third Party Payments,470101,Purchase of Care,04-Oct-16,3187624-2333736,"1,536.76",DEVONSHIRE HOUSE.
Adult and Health Services,Head of Adults,Third Party Payments,470101,Purchase of Care,04-Oct-16,3187624-2333737,"1,532.28",DEVONSHIRE HOUSE.
Adult and Health Services,Head of Adults,Third Party Payments,470101,Purchase of Care,04-Oct-16,3187624-2333738,"1,541.00",DEVONSHIRE HOUSE.
Adult and Health Services,Head of Adults,Third Party Payments,470101,Purchase of Care,04-Oct-16,3187624-2333739,"1,535.92",DEVONSHIRE HOUSE.
Adult and Health Services,Head of Adults,Third Party Payments,470101,Purchase of Care,04-Oct-16,3187624-2333740,"2,059.56",DEVONSHIRE HOUSE.
Adult and Health Services,Head of Adults,Third Party Payments,474101,Purchase of Care,04-Oct-16,3187624-2333741,"2,166.20",DEVONSHIRE HOUSE.
Adult and Health Services,Central/Other,Debtors,930024,Debtor-free nursing care,04-Oct-16,3187624-2333742,625,DEVONSHIRE HOUSE.
Adult and Health Services,Head of Adults,Third Party Payments,474101,Purchase of Care,04-Oct-16,3187625-2337783,"2,156.96",DIPTON CARE HOME LTD.
Adult and Health Services,Central/Other,Debtors,930024,Debtor-free nursing care,04-Oct-16,3187625-2337784,625,DIPTON CARE HOME LTD.
Adult and Health Services,Head of Adults,Third Party Payments,474101,Purchase of Care,04-Oct-16,3187625-2337785,"2,156.96",DIPTON CARE HOME LTD.
Adult and Health Services,Central/Other,Debtors,930024,Debtor-free nursing care,04-Oct-16,3187625-2337786,625,DIPTON CARE HOME LTD.
Adult and Health Services,Head of Adults,Third Party Payments,474101,Purchase of Care,04-Oct-16,3187625-2337791,"2,156.96",DIPTON CARE HOME LTD.
Adult and Health Services,Central/Other,Debtors,930024,Debtor-free nursing care,04-Oct-16,3187625-2337792,625,DIPTON CARE HOME LTD.
Adult and Health Services,Head of Adults,Third Party Payments,470101,Purchase of Care,04-Oct-16,3187625-2337793,"4,413.34",DIPTON CARE HOME LTD.
Adult and Health Services,Head of Adults,Third Party Payments,471101,Purchase of Care,04-Oct-16,3187625-2337794,533.9,DIPTON CARE HOME LTD.
Adult and Health Services,Head of Adults,Third Party Payments,471101,Purchase of Care,04-Oct-16,3187625-2337798,"2,135.60",DIPTON CARE HOME LTD.
Adult and Health Services,Head of Adults,Third Party Payments,474101,Purchase of Care,04-Oct-16,3187625-2337799,"2,156.96",DIPTON CARE HOME LTD.
Adult and Health Services,Central/Other,Debtors,930024,Debtor-free nursing care,04-Oct-16,3187625-2337800,625,DIPTON CARE HOME LTD.
Adult and Health Services,Head of Adults,Third Party Payments,470101,Purchase of Care,04-Oct-16,3187625-2337801,"2,059.56",DIPTON CARE HOME LTD.
Adult and Health Services,Central/Other,Debtors,930024,Debtor-free nursing care,04-Oct-16,3187625-2337802,625,DIPTON CARE HOME LTD.
Adult and Health Services,Head of Adults,Third Party Payments,474101,Purchase of Care,04-Oct-16,3187625-2337803,"2,156.96",DIPTON CARE HOME LTD.
Adult and Health Services,Central/Other,Debtors,930024,Debtor-free nursing care,04-Oct-16,3187625-2337804,625,DIPTON CARE HOME LTD.
Adult and Health Services,Central/Other,Debtors,930024,Debtor-free nursing care,04-Oct-16,3187625-2337805,625,DIPTON CARE HOME LTD.
Adult and Health Services,Head of Adults,Third Party Payments,470101,Purchase of Care,04-Oct-16,3187625-2337806,"2,059.56",DIPTON CARE HOME LTD.
Adult and Health Services,Head of Adults,Third Party Payments,471101,Purchase of Care,04-Oct-16,3187625-2337807,"2,135.60",DIPTON CARE HOME LTD.
Adult and Health Services,Head of Adults,Third Party Payments,471101,Purchase of Care,04-Oct-16,3187625-2337808,"2,135.60",DIPTON CARE HOME LTD.
Adult and Health Services,Head of Adults,Third Party Payments,470101,Purchase of Care,04-Oct-16,3187625-2337809,"2,059.56",DIPTON CARE HOME LTD.
Adult and Health Services,Head of Adults,Third Party Payments,470101,Purchase of Care,04-Oct-16,3187625-2337810,"2,059.56",DIPTON CARE HOME LTD.
Adult and Health Services,Head of Adults,Third Party Payments,470101,Purchase of Care,04-Oct-16,3187625-2337811,"2,059.56",DIPTON CARE HOME LTD.
Adult and Health Services,Head of Adults,Third Party Payments,471101,Purchase of Care,04-Oct-16,3187625-2337812,"2,135.60",DIPTON CARE HOME LTD.
Adult and Health Services,Head of Adults,Third Party Payments,471101,Purchase of Care,04-Oct-16,3187625-2337813,"2,135.60",DIPTON CARE HOME LTD.
Adult and Health Services,Head of Adults,Third Party Payments,470101,Purchase of Care,04-Oct-16,3187625-2337814,"2,059.56",DIPTON CARE HOME LTD.
Adult and Health Services,Head of Adults,Third Party Payments,470101,Purchase of Care,04-Oct-16,3187625-2337815,"2,059.56",DIPTON CARE HOME LTD.
Adult and Health Services,Head of Adults,Third Party Payments,474101,Purchase of Care,04-Oct-16,3187625-2337816,"1,078.48",DIPTON CARE HOME LTD.
Adult and Health Services,Head of Adults,Third Party Payments,474999,Purchase of Care,04-Oct-16,3187625-2337817,609.63,DIPTON CARE HOME LTD.
Adult and Health Services,Head of Adults,Third Party Payments,471101,Purchase of Care,04-Oct-16,3187625-2337818,"2,135.60",DIPTON CARE HOME LTD.
Adult and Health Services,Head of Adults,Third Party Payments,470101,Purchase of Care,04-Oct-16,3187625-2337819,"2,059.56",DIPTON CARE HOME LTD.
Adult and Health Services,Head of Adults,Third Party Payments,470101,Purchase of Care,04-Oct-16,3187625-2337820,"2,059.56",DIPTON CARE HOME LTD.
Adult and Health Services,Central/Other,Debtors,930024,Debtor-free nursing care,04-Oct-16,3187625-2337821,625,DIPTON CARE HOME LTD.
Adult and Health Services,Head of Adults,Third Party Payments,470101,Purchase of Care,04-Oct-16,3187625-2337822,"2,059.56",DIPTON CARE HOME LTD.
Adult and Health Services,Head of Adults,Third Party Payments,470101,Purchase of Care,04-Oct-16,3187625-2337823,"1,029.76",DIPTON CARE HOME LTD.
Adult and Health Services,Head of Adults,Third Party Payments,471101,Purchase of Care,04-Oct-16,3187625-2337824,"2,135.60",DIPTON CARE HOME LTD.
Adult and Health Services,Head of Adults,Third Party Payments,471101,Purchase of Care,04-Oct-16,3187625-2337825,"2,135.60",DIPTON CARE HOME LTD.
Adult and Health Services,Head of Adults,Third Party Payments,470101,Purchase of Care,04-Oct-16,3187625-2337826,"2,059.56",DIPTON CARE HOME LTD.
Adult and Health Services,Head of Adults,Third Party Payments,470101,Purchase of Care,04-Oct-16,3187625-2337827,"2,059.56",DIPTON CARE HOME LTD.
Adult and Health Services,Head of Adults,Third Party Payments,470101,Purchase of Care,04-Oct-16,3187625-2337828,"2,059.56",DIPTON CARE HOME LTD.
Adult and Health Services,Head of Adults,Third Party Payments,471101,Purchase of Care,04-Oct-16,3187625-2337829,"2,135.60",DIPTON CARE HOME LTD.
Adult and Health Services,Head of Adults,Third Party Payments,470101,Purchase of Care,04-Oct-16,3187625-2337830,"2,059.56",DIPTON CARE HOME LTD.
Adult and Health Services,Head of Adults,Third Party Payments,470101,Purchase of Care,04-Oct-16,3187625-2337831,"2,059.56",DIPTON CARE HOME LTD.
Adult and Health Services,Head of Adults,Third Party Payments,471101,Purchase of Care,04-Oct-16,3187625-2338318,991.52,DIPTON CARE HOME LTD.
Adult and Health Services,Head of Adults,Third Party Payments,470101,Purchase of Care,04-Oct-16,3187625-2338320,514.89,DIPTON CARE HOME LTD.
Adult and Health Services,Head of Adults,Third Party Payments,470101,Purchase of Care,04-Oct-16,3187625-2338321,"1,544.67",DIPTON CARE HOME LTD.
Adult and Health Services,Head of Adults,Third Party Payments,471101,Purchase of Care,04-Oct-16,3187625-2338322,"2,059.32",DIPTON CARE HOME LTD.
Adult and Health Services,Public Health,Third Party Payments,460802,Contract Payments,04-Oct-16,3187626-215/17/1207,"11,845.00",DISC LTD.
Adult and Health Services,Head of Adults,Third Party Payments,470101,Purchase of Care,04-Oct-16,3187627-2335987,"2,116.16",DONWELL DAY CARE CENTRE.
Adult and Health Services,Head of Adults,Third Party Payments,470101,Purchase of Care,04-Oct-16,3187627-2335988,"2,116.16",DONWELL DAY CARE CENTRE.
Adult and Health Services,Head of Adults,Third Party Payments,470101,Purchase of Care,04-Oct-16,3187627-2335989,"2,116.16",DONWELL DAY CARE CENTRE.
Adult and Health Services,Head of Adults,Third Party Payments,474101,Purchase of Care,04-Oct-16,3187627-2335990,"2,116.16",DONWELL DAY CARE CENTRE.
Adult and Health Services,Head of Adults,Third Party Payments,470101,Purchase of Care,04-Oct-16,3187627-2338184,"1,058.08",DONWELL DAY CARE CENTRE.
Adult and Health Services,Head of Adults,Third Party Payments,478101,Purchase of Care,04-Oct-16,3187628-2336100,"1,396.24",REDACTED - PAYMENT TO INDIVIDUAL
Adult and Health Services,Head of Adults,Third Party Payments,470101,Purchase of Care,04-Oct-16,3187629-2333683,"1,461.93",DR ANDREW ASHDOWN (DENEHURST NURSING HOME).
Adult and Health Services,Head of Adults,Third Party Payments,474101,Purchase of Care,04-Oct-16,3187629-2333684,"2,046.60",DR ANDREW ASHDOWN (DENEHURST NURSING HOME).
Adult and Health Services,Central/Other,Debtors,930024,Debtor-free nursing care,04-Oct-16,3187629-2333685,625,DR ANDREW ASHDOWN (DENEHURST NURSING HOME).
Adult and Health Services,Central/Other,Debtors,930024,Debtor-free nursing care,04-Oct-16,3187629-2333686,625,DR ANDREW ASHDOWN (DENEHURST NURSING HOME).
Adult and Health Services,Head of Adults,Third Party Payments,470101,Purchase of Care,04-Oct-16,3187629-2333687,"1,078.28",DR ANDREW ASHDOWN (DENEHURST NURSING HOME).
Adult and Health Services,Head of Adults,Third Party Payments,474101,Purchase of Care,04-Oct-16,3187629-2333688,"1,527.68",DR ANDREW ASHDOWN (DENEHURST NURSING HOME).
Adult and Health Services,Central/Other,Debtors,930024,Debtor-free nursing care,04-Oct-16,3187629-2333689,625,DR ANDREW ASHDOWN (DENEHURST NURSING HOME).
Adult and Health Services,Head of Adults,Third Party Payments,470101,Purchase of Care,04-Oct-16,3187629-2333690,"1,949.24",DR ANDREW ASHDOWN (DENEHURST NURSING HOME).
Adult and Health Services,Head of Adults,Third Party Payments,470101,Purchase of Care,04-Oct-16,3187629-2333691,"1,173.72",DR ANDREW ASHDOWN (DENEHURST NURSING HOME).
Adult and Health Services,Head of Adults,Third Party Payments,474101,Purchase of Care,04-Oct-16,3187629-2333692,"1,023.32",DR ANDREW ASHDOWN (DENEHURST NURSING HOME).
Adult and Health Services,Head of Adults,Third Party Payments,470101,Purchase of Care,04-Oct-16,3187629-2333694,"1,949.24",DR ANDREW ASHDOWN (DENEHURST NURSING HOME).
Adult and Health Services,Head of Adults,Third Party Payments,470101,Purchase of Care,04-Oct-16,3187629-2333695,"1,949.24",DR ANDREW ASHDOWN (DENEHURST NURSING HOME).
Adult and Health Services,Head of Adults,Third Party Payments,471101,Purchase of Care,04-Oct-16,3187629-2333696,"1,282.88",DR ANDREW ASHDOWN (DENEHURST NURSING HOME).
Adult and Health Services,Head of Adults,Third Party Payments,474101,Purchase of Care,04-Oct-16,3187629-2333697,842.56,DR ANDREW ASHDOWN (DENEHURST NURSING HOME).
Adult and Health Services,Central/Other,Debtors,930024,Debtor-free nursing care,04-Oct-16,3187629-2333698,625,DR ANDREW ASHDOWN (DENEHURST NURSING HOME).
Adult and Health Services,Head of Adults,Third Party Payments,474101,Purchase of Care,04-Oct-16,3187629-2333699,"2,046.60",DR ANDREW ASHDOWN (DENEHURST NURSING HOME).
Adult and Health Services,Central/Other,Debtors,930024,Debtor-free nursing care,04-Oct-16,3187629-2333700,625,DR ANDREW ASHDOWN (DENEHURST NURSING HOME).
Adult and Health Services,Head of Adults,Third Party Payments,474101,Purchase of Care,04-Oct-16,3187629-2333701,"1,023.28",DR ANDREW ASHDOWN (DENEHURST NURSING HOME).
Adult and Health Services,Head of Adults,Third Party Payments,474999,Purchase of Care,04-Oct-16,3187629-2333702,609.63,DR ANDREW ASHDOWN (DENEHURST NURSING HOME).
Adult and Health Services,Head of Adults,Third Party Payments,471101,Purchase of Care,04-Oct-16,3187629-2333703,"1,314.64",DR ANDREW ASHDOWN (DENEHURST NURSING HOME).
Adult and Health Services,Head of Adults,Third Party Payments,474101,Purchase of Care,04-Oct-16,3187629-2333704,"2,046.60",DR ANDREW ASHDOWN (DENEHURST NURSING HOME).
Adult and Health Services,Central/Other,Debtors,930024,Debtor-free nursing care,04-Oct-16,3187629-2333705,625,DR ANDREW ASHDOWN (DENEHURST NURSING HOME).
Adult and Health Services,Head of Adults,Third Party Payments,470101,Purchase of Care,04-Oct-16,3187629-2333706,"1,426.44",DR ANDREW ASHDOWN (DENEHURST NURSING HOME).
Adult and Health Services,Head of Adults,Third Party Payments,474101,Purchase of Care,04-Oct-16,3187629-2333707,"1,023.28",DR ANDREW ASHDOWN (DENEHURST NURSING HOME).
Adult and Health Services,Head of Adults,Third Party Payments,474999,Purchase of Care,04-Oct-16,3187629-2333708,609.63,DR ANDREW ASHDOWN (DENEHURST NURSING HOME).
Adult and Health Services,Head of Adults,Third Party Payments,470101,Purchase of Care,04-Oct-16,3187629-2333709,"1,253.92",DR ANDREW ASHDOWN (DENEHURST NURSING HOME).
Adult and Health Services,Head of Adults,Third Party Payments,471101,Purchase of Care,04-Oct-16,3187629-2333710,"1,104.96",DR ANDREW ASHDOWN (DENEHURST NURSING HOME).
Adult and Health Services,Head of Adults,Third Party Payments,474101,Purchase of Care,04-Oct-16,3187629-2333711,"1,219.88",DR ANDREW ASHDOWN (DENEHURST NURSING HOME).
Adult and Health Services,Central/Other,Debtors,930024,Debtor-free nursing care,04-Oct-16,3187629-2333712,625,DR ANDREW ASHDOWN (DENEHURST NURSING HOME).
Adult and Health Services,Head of Adults,Third Party Payments,474101,Purchase of Care,04-Oct-16,3187629-2333713,"1,215.80",DR ANDREW ASHDOWN (DENEHURST NURSING HOME).
Adult and Health Services,Central/Other,Debtors,930024,Debtor-free nursing care,04-Oct-16,3187629-2333714,625,DR ANDREW ASHDOWN (DENEHURST NURSING HOME).
Adult and Health Services,Head of Adults,Third Party Payments,474101,Purchase of Care,04-Oct-16,3187629-2333715,"1,709.32",DR ANDREW ASHDOWN (DENEHURST NURSING HOME).
Adult and Health Services,Central/Other,Debtors,930024,Debtor-free nursing care,04-Oct-16,3187629-2333716,625,DR ANDREW ASHDOWN (DENEHURST NURSING HOME).
Adult and Health Services,Head of Adults,Third Party Payments,470101,Purchase of Care,04-Oct-16,3187630-2334738,"2,059.56",DR ANDREW ASHDOWN (STOCKTON LODGE CARE HOME).
Adult and Health Services,Head of Adults,Third Party Payments,470101,Purchase of Care,04-Oct-16,3187630-2334739,"2,059.56",DR ANDREW ASHDOWN (STOCKTON LODGE CARE HOME).
Adult and Health Services,Head of Adults,Third Party Payments,471101,Purchase of Care,04-Oct-16,3187630-2334740,"2,135.60",DR ANDREW ASHDOWN (STOCKTON LODGE CARE HOME).
Adult and Health Services,Head of Adults,Third Party Payments,470101,Purchase of Care,04-Oct-16,3187630-2334741,"1,491.56",DR ANDREW ASHDOWN (STOCKTON LODGE CARE HOME).
Adult and Health Services,Head of Adults,Third Party Payments,471101,Purchase of Care,04-Oct-16,3187630-2334742,"2,135.60",DR ANDREW ASHDOWN (STOCKTON LODGE CARE HOME).
Adult and Health Services,Head of Adults,Third Party Payments,470101,Purchase of Care,04-Oct-16,3187630-2334744,"2,059.56",DR ANDREW ASHDOWN (STOCKTON LODGE CARE HOME).
Adult and Health Services,Head of Adults,Third Party Payments,470101,Purchase of Care,04-Oct-16,3187630-2334745,"1,471.96",DR ANDREW ASHDOWN (STOCKTON LODGE CARE HOME).
Adult and Health Services,Head of Adults,Third Party Payments,470101,Purchase of Care,04-Oct-16,3187630-2334746,"1,510.36",DR ANDREW ASHDOWN (STOCKTON LODGE CARE HOME).
Adult and Health Services,Head of Adults,Third Party Payments,471101,Purchase of Care,04-Oct-16,3187630-2334747,"2,135.60",DR ANDREW ASHDOWN (STOCKTON LODGE CARE HOME).
Adult and Health Services,Head of Adults,Third Party Payments,470101,Purchase of Care,04-Oct-16,3187630-2334748,"1,536.76",DR ANDREW ASHDOWN (STOCKTON LODGE CARE HOME).
Adult and Health Services,Head of Adults,Third Party Payments,471101,Purchase of Care,04-Oct-16,3187630-2334749,"1,564.72",DR ANDREW ASHDOWN (STOCKTON LODGE CARE HOME).
Adult and Health Services,Head of Adults,Third Party Payments,470101,Purchase of Care,04-Oct-16,3187630-2334750,"2,059.56",DR ANDREW ASHDOWN (STOCKTON LODGE CARE HOME).
Adult and Health Services,Head of Adults,Third Party Payments,471101,Purchase of Care,04-Oct-16,3187630-2334751,"2,135.60",DR ANDREW ASHDOWN (STOCKTON LODGE CARE HOME).
Adult and Health Services,Head of Adults,Third Party Payments,470101,Purchase of Care,04-Oct-16,3187630-2334752,"2,059.56",DR ANDREW ASHDOWN (STOCKTON LODGE CARE HOME).
Adult and Health Services,Head of Adults,Third Party Payments,470101,Purchase of Care,04-Oct-16,3187630-2334753,"2,059.56",DR ANDREW ASHDOWN (STOCKTON LODGE CARE HOME).
Adult and Health Services,Head of Adults,Third Party Payments,471101,Purchase of Care,04-Oct-16,3187630-2334754,"1,541.56",DR ANDREW ASHDOWN (STOCKTON LODGE CARE HOME).
Adult and Health Services,Head of Adults,Third Party Payments,474101,Purchase of Care,04-Oct-16,3187631-2337871,"4,744.68",DUCKS HALT CARE HOME
Adult and Health Services,Head of Adults,Third Party Payments,474101,Purchase of Care,04-Oct-16,3187632-2337897,"8,400.00",DUNLUCE HOUSE T/A BOHILL BUNGALOWS.
Adult and Health Services,Head of Adults,Third Party Payments,470101,Purchase of Care,04-Oct-16,3187633-2337583,"2,200.00",DURHAM CARELINE LTD.
Adult and Health Services,Head of Adults,Third Party Payments,470101,Purchase of Care,04-Oct-16,3187634-2334999,"1,972.00",EDEN COTTAGE RESIDENTIAL HOME.
Adult and Health Services,Head of Adults,Third Party Payments,470101,Purchase of Care,04-Oct-16,3187635-2337841,"2,059.56",ELBA CARE LTD T/A DIVINE CARE CENTRE.
Adult and Health Services,Head of Adults,Debtors,930135,Debtor Residential Care - IC+ Rehabilitation,04-Oct-16,3187635-2337842,985.46,ELBA CARE LTD T/A DIVINE CARE CENTRE.
Adult and Health Services,Head of Adults,Debtors,930135,Debtor Residential Care - IC+ Rehabilitation,04-Oct-16,3187635-2337843,"1,970.92",ELBA CARE LTD T/A DIVINE CARE CENTRE.
Adult and Health Services,Head of Adults,Third Party Payments,470102,Purchase of Care,04-Oct-16,3187635-2337844,563.12,ELBA CARE LTD T/A DIVINE CARE CENTRE.
Adult and Health Services,Head of Adults,Third Party Payments,470102,Purchase of Care,04-Oct-16,3187635-2337845,"1,196.63",ELBA CARE LTD T/A DIVINE CARE CENTRE.
Adult and Health Services,Head of Adults,Third Party Payments,474101,Purchase of Care,04-Oct-16,3187635-2337846,"2,156.96",ELBA CARE LTD T/A DIVINE CARE CENTRE.
Adult and Health Services,Central/Other,Debtors,930024,Debtor-free nursing care,04-Oct-16,3187635-2337847,625,ELBA CARE LTD T/A DIVINE CARE CENTRE.
Adult and Health Services,Head of Adults,Third Party Payments,470102,Purchase of Care,04-Oct-16,3187635-2337848,915.07,ELBA CARE LTD T/A DIVINE CARE CENTRE.
Adult and Health Services,Central/Other,Debtors,930024,Debtor-free nursing care,04-Oct-16,3187635-2337849,625,ELBA CARE LTD T/A DIVINE CARE CENTRE.
Adult and Health Services,Head of Adults,Debtors,930135,Debtor Residential Care - IC+ Rehabilitation,04-Oct-16,3187635-2337852,774.29,ELBA CARE LTD T/A DIVINE CARE CENTRE.
Adult and Health Services,Head of Adults,Third Party Payments,471101,Purchase of Care,04-Oct-16,3187635-2337853,"2,135.60",ELBA CARE LTD T/A DIVINE CARE CENTRE.
Adult and Health Services,Head of Adults,Third Party Payments,470101,Purchase of Care,04-Oct-16,3187635-2337854,"2,059.56",ELBA CARE LTD T/A DIVINE CARE CENTRE.
Adult and Health Services,Head of Adults,Third Party Payments,474101,Purchase of Care,04-Oct-16,3187635-2337856,"2,156.96",ELBA CARE LTD T/A DIVINE CARE CENTRE.
Adult and Health Services,Central/Other,Debtors,930024,Debtor-free nursing care,04-Oct-16,3187635-2337857,625,ELBA CARE LTD T/A DIVINE CARE CENTRE.
Adult and Health Services,Head of Adults,Third Party Payments,474101,Purchase of Care,04-Oct-16,3187635-2337858,"2,156.96",ELBA CARE LTD T/A DIVINE CARE CENTRE.
Adult and Health Services,Central/Other,Debtors,930024,Debtor-free nursing care,04-Oct-16,3187635-2337859,625,ELBA CARE LTD T/A DIVINE CARE CENTRE.
Adult and Health Services,Head of Adults,Third Party Payments,470101,Purchase of Care,04-Oct-16,3187635-2337860,"2,059.56",ELBA CARE LTD T/A DIVINE CARE CENTRE.
Adult and Health Services,Head of Adults,Third Party Payments,471101,Purchase of Care,04-Oct-16,3187635-2337861,"2,135.60",ELBA CARE LTD T/A DIVINE CARE CENTRE.
Adult and Health Services,Head of Adults,Third Party Payments,470101,Purchase of Care,04-Oct-16,3187635-2337862,"4,221.34",ELBA CARE LTD T/A DIVINE CARE CENTRE.
Adult and Health Services,Head of Adults,Third Party Payments,470101,Purchase of Care,04-Oct-16,3187635-2337863,"2,059.56",ELBA CARE LTD T/A DIVINE CARE CENTRE.
Adult and Health Services,Head of Adults,Third Party Payments,470101,Purchase of Care,04-Oct-16,3187635-2337864,"2,059.56",ELBA CARE LTD T/A DIVINE CARE CENTRE.
Adult and Health Services,Head of Adults,Third Party Payments,470101,Purchase of Care,04-Oct-16,3187635-2337865,"2,059.56",ELBA CARE LTD T/A DIVINE CARE CENTRE.
Adult and Health Services,Head of Adults,Third Party Payments,470101,Purchase of Care,04-Oct-16,3187635-2337866,"2,059.56",ELBA CARE LTD T/A DIVINE CARE CENTRE.
Adult and Health Services,Head of Adults,Third Party Payments,470101,Purchase of Care,04-Oct-16,3187635-2337867,"2,059.56",ELBA CARE LTD T/A DIVINE CARE CENTRE.
Adult and Health Services,Head of Adults,Third Party Payments,470101,Purchase of Care,04-Oct-16,3187635-2337868,"2,059.56",ELBA CARE LTD T/A DIVINE CARE CENTRE.
Adult and Health Services,Head of Adults,Third Party Payments,471101,Purchase of Care,04-Oct-16,3187635-2337869,"2,135.60",ELBA CARE LTD T/A DIVINE CARE CENTRE.
Adult and Health Services,Head of Adults,Third Party Payments,470101,Purchase of Care,04-Oct-16,3187635-2337870,"2,059.56",ELBA CARE LTD T/A DIVINE CARE CENTRE.
Adult and Health Services,Head of Adults,Debtors,930135,Debtor Residential Care - IC+ Rehabilitation,04-Oct-16,3187635-2338185,844.68,ELBA CARE LTD T/A DIVINE CARE CENTRE.
Adult and Health Services,Head of Adults,Third Party Payments,474101,Purchase of Care,04-Oct-16,3187635-2338189,539.24,ELBA CARE LTD T/A DIVINE CARE CENTRE.
Adult and Health Services,Central/Other,Debtors,930024,Debtor-free nursing care,04-Oct-16,3187635-2338193,937.5,ELBA CARE LTD T/A DIVINE CARE CENTRE.
Adult and Health Services,Head of Adults,Third Party Payments,478101,Purchase of Care,04-Oct-16,3187636-2336006,"1,396.24",REDACTED - PAYMENT TO INDIVIDUAL
Adult and Health Services,Head of Adults,Third Party Payments,474101,Purchase of Care,04-Oct-16,3187637-2335228,"1,047.28",ELIZABETH FLEMMING CARE HOME.
Adult and Health Services,Central/Other,Debtors,930024,Debtor-free nursing care,04-Oct-16,3187637-2335229,625,ELIZABETH FLEMMING CARE HOME.
Adult and Health Services,Head of Adults,Third Party Payments,474101,Purchase of Care,04-Oct-16,3187637-2335230,"2,094.56",ELIZABETH FLEMMING CARE HOME.
Adult and Health Services,Head of Adults,Third Party Payments,474101,Purchase of Care,04-Oct-16,3187637-2335231,"2,094.56",ELIZABETH FLEMMING CARE HOME.
Adult and Health Services,Central/Other,Debtors,930024,Debtor-free nursing care,04-Oct-16,3187637-2335232,625,ELIZABETH FLEMMING CARE HOME.
Adult and Health Services,Head of Adults,Third Party Payments,471101,Purchase of Care,04-Oct-16,3187637-2335233,"1,151.36",ELIZABETH FLEMMING CARE HOME.
Adult and Health Services,Head of Adults,Third Party Payments,474101,Purchase of Care,04-Oct-16,3187637-2335234,"2,094.56",ELIZABETH FLEMMING CARE HOME.
Adult and Health Services,Head of Adults,Third Party Payments,470101,Purchase of Care,04-Oct-16,3187638-2336255,"11,023.16",ELLERSHAW HOUSE.
Adult and Health Services,Head of Adults,Third Party Payments,470101,Purchase of Care,04-Oct-16,3187639-2335645,"2,574.60",ELPHA LODGE LTD.
Adult and Health Services,Head of Adults,Third Party Payments,474101,Purchase of Care,04-Oct-16,3187640-2337874,"2,074.44",ELSWICK HALL CARE HOME.
Adult and Health Services,Head of Adults,Third Party Payments,470101,Purchase of Care,04-Oct-16,3187640-2337875,"1,102.56",ELSWICK HALL CARE HOME.
Adult and Health Services,Head of Adults,Third Party Payments,471101,Purchase of Care,04-Oct-16,3187641-2336367,"2,100.00",ELWICK GRANGE.
Adult and Health Services,Head of Adults,Third Party Payments,471101,Purchase of Care,04-Oct-16,3187642-2336017,"2,135.60",EMBRACE ALL LTD.
Adult and Health Services,Head of Adults,Third Party Payments,474101,Purchase of Care,04-Oct-16,3187642-2336018,"2,156.96",EMBRACE ALL LTD.
Adult and Health Services,Central/Other,Debtors,930024,Debtor-free nursing care,04-Oct-16,3187642-2336019,625,EMBRACE ALL LTD.
Adult and Health Services,Head of Adults,Debtors,930135,Debtor Residential Care - IC+ Rehabilitation,04-Oct-16,3187642-2336020,"1,689.36",EMBRACE ALL LTD.
Adult and Health Services,Head of Adults,Third Party Payments,474101,Purchase of Care,04-Oct-16,3187642-2336024,"2,156.96",EMBRACE ALL LTD.
Adult and Health Services,Central/Other,Debtors,930024,Debtor-free nursing care,04-Oct-16,3187642-2336025,625,EMBRACE ALL LTD.
Adult and Health Services,Head of Adults,Third Party Payments,470101,Purchase of Care,04-Oct-16,3187642-2336026,"1,765.33",EMBRACE ALL LTD.
Adult and Health Services,Head of Adults,Debtors,930135,Debtor Residential Care - IC+ Rehabilitation,04-Oct-16,3187642-2336027,915.07,EMBRACE ALL LTD.
Adult and Health Services,Head of Adults,Debtors,930135,Debtor Residential Care - IC+ Rehabilitation,04-Oct-16,3187642-2336028,"1,196.63",EMBRACE ALL LTD.
Adult and Health Services,Head of Adults,Third Party Payments,474101,Purchase of Care,04-Oct-16,3187642-2336029,"2,156.96",EMBRACE ALL LTD.
Adult and Health Services,Central/Other,Debtors,930024,Debtor-free nursing care,04-Oct-16,3187642-2336030,625,EMBRACE ALL LTD.
Adult and Health Services,Head of Adults,Debtors,930135,Debtor Residential Care - IC+ Rehabilitation,04-Oct-16,3187642-2336032,"1,055.85",EMBRACE ALL LTD.
Adult and Health Services,Head of Adults,Debtors,930135,Debtor Residential Care - IC+ Rehabilitation,04-Oct-16,3187642-2336033,703.9,EMBRACE ALL LTD.
Adult and Health Services,Head of Adults,Third Party Payments,471101,Purchase of Care,04-Oct-16,3187642-2336034,"2,135.60",EMBRACE ALL LTD.
Adult and Health Services,Head of Adults,Third Party Payments,470101,Purchase of Care,04-Oct-16,3187642-2336035,"2,059.56",EMBRACE ALL LTD.
Adult and Health Services,Head of Adults,Debtors,930134,Debtor Nursing Care - IC+ Time to Think,04-Oct-16,3187642-2336036,884.64,EMBRACE ALL LTD.
Adult and Health Services,Head of Adults,Debtors,930135,Debtor Residential Care - IC+ Rehabilitation,04-Oct-16,3187642-2336038,915.07,EMBRACE ALL LTD.
Adult and Health Services,Head of Adults,Third Party Payments,470101,Purchase of Care,04-Oct-16,3187642-2336039,"2,059.56",EMBRACE ALL LTD.
Adult and Health Services,Head of Adults,Third Party Payments,474101,Purchase of Care,04-Oct-16,3187642-2336040,"2,156.96",EMBRACE ALL LTD.
Adult and Health Services,Central/Other,Debtors,930024,Debtor-free nursing care,04-Oct-16,3187642-2336041,625,EMBRACE ALL LTD.
Adult and Health Services,Head of Adults,Third Party Payments,474101,Purchase of Care,04-Oct-16,3187642-2336042,"2,156.96",EMBRACE ALL LTD.
Adult and Health Services,Central/Other,Debtors,930024,Debtor-free nursing care,04-Oct-16,3187642-2336043,625,EMBRACE ALL LTD.
Adult and Health Services,Head of Adults,Third Party Payments,474101,Purchase of Care,04-Oct-16,3187642-2336045,"2,156.96",EMBRACE ALL LTD.
Adult and Health Services,Central/Other,Debtors,930024,Debtor-free nursing care,04-Oct-16,3187642-2336046,625,EMBRACE ALL LTD.
Adult and Health Services,Head of Adults,Debtors,930135,Debtor Residential Care - IC+ Rehabilitation,04-Oct-16,3187642-2336047,"1,407.80",EMBRACE ALL LTD.
Adult and Health Services,Head of Adults,Debtors,930135,Debtor Residential Care - IC+ Rehabilitation,04-Oct-16,3187642-2336048,"1,970.92",EMBRACE ALL LTD.
Adult and Health Services,Head of Adults,Third Party Payments,471101,Purchase of Care,04-Oct-16,3187642-2336049,"2,135.60",EMBRACE ALL LTD.
Adult and Health Services,Head of Adults,Third Party Payments,474101,Purchase of Care,04-Oct-16,3187642-2336050,"2,156.96",EMBRACE ALL LTD.
Adult and Health Services,Central/Other,Debtors,930024,Debtor-free nursing care,04-Oct-16,3187642-2336051,625,EMBRACE ALL LTD.
Adult and Health Services,Head of Adults,Third Party Payments,471101,Purchase of Care,04-Oct-16,3187642-2336052,"2,135.60",EMBRACE ALL LTD.
Adult and Health Services,Head of Adults,Third Party Payments,474101,Purchase of Care,04-Oct-16,3187642-2336054,"2,156.96",EMBRACE ALL LTD.
Adult and Health Services,Central/Other,Debtors,930024,Debtor-free nursing care,04-Oct-16,3187642-2336055,625,EMBRACE ALL LTD.
Adult and Health Services,Head of Adults,Third Party Payments,474101,Purchase of Care,04-Oct-16,3187642-2336056,"2,156.96",EMBRACE ALL LTD.
Adult and Health Services,Central/Other,Debtors,930024,Debtor-free nursing care,04-Oct-16,3187642-2336057,625,EMBRACE ALL LTD.
Adult and Health Services,Head of Adults,Third Party Payments,474101,Purchase of Care,04-Oct-16,3187642-2336058,"2,156.96",EMBRACE ALL LTD.
Adult and Health Services,Central/Other,Debtors,930024,Debtor-free nursing care,04-Oct-16,3187642-2336059,625,EMBRACE ALL LTD.
Adult and Health Services,Head of Adults,Third Party Payments,471101,Purchase of Care,04-Oct-16,3187642-2336060,"2,135.60",EMBRACE ALL LTD.
Adult and Health Services,Head of Adults,Third Party Payments,474101,Purchase of Care,04-Oct-16,3187642-2336061,"1,078.48",EMBRACE ALL LTD.
Adult and Health Services,Head of Adults,Third Party Payments,474999,Purchase of Care,04-Oct-16,3187642-2336062,609.63,EMBRACE ALL LTD.
Adult and Health Services,Head of Adults,Third Party Payments,470101,Purchase of Care,04-Oct-16,3187642-2336063,"2,059.56",EMBRACE ALL LTD.
Adult and Health Services,Head of Adults,Third Party Payments,471101,Purchase of Care,04-Oct-16,3187642-2336064,"2,135.60",EMBRACE ALL LTD.
Adult and Health Services,Head of Adults,Third Party Payments,471101,Purchase of Care,04-Oct-16,3187642-2336065,"2,135.60",EMBRACE ALL LTD.
Adult and Health Services,Head of Adults,Third Party Payments,474101,Purchase of Care,04-Oct-16,3187642-2336066,"2,156.96",EMBRACE ALL LTD.
Adult and Health Services,Central/Other,Debtors,930024,Debtor-free nursing care,04-Oct-16,3187642-2336067,625,EMBRACE ALL LTD.
Adult and Health Services,Head of Adults,Third Party Payments,470101,Purchase of Care,04-Oct-16,3187642-2336068,"2,059.56",EMBRACE ALL LTD.
Adult and Health Services,Head of Adults,Third Party Payments,470101,Purchase of Care,04-Oct-16,3187642-2336069,"2,059.56",EMBRACE ALL LTD.
Adult and Health Services,Head of Adults,Third Party Payments,474101,Purchase of Care,04-Oct-16,3187642-2336070,"2,156.96",EMBRACE ALL LTD.
Adult and Health Services,Central/Other,Debtors,930024,Debtor-free nursing care,04-Oct-16,3187642-2336071,625,EMBRACE ALL LTD.
Adult and Health Services,Head of Adults,Third Party Payments,470101,Purchase of Care,04-Oct-16,3187642-2336072,"2,059.56",EMBRACE ALL LTD.
Adult and Health Services,Head of Adults,Third Party Payments,470101,Purchase of Care,04-Oct-16,3187642-2336073,"2,059.56",EMBRACE ALL LTD.
Adult and Health Services,Head of Adults,Third Party Payments,470101,Purchase of Care,04-Oct-16,3187642-2336074,"2,059.56",EMBRACE ALL LTD.
Adult and Health Services,Head of Adults,Third Party Payments,474101,Purchase of Care,04-Oct-16,3187642-2336075,"2,156.96",EMBRACE ALL LTD.
Adult and Health Services,Central/Other,Debtors,930024,Debtor-free nursing care,04-Oct-16,3187642-2336076,625,EMBRACE ALL LTD.
Adult and Health Services,Head of Adults,Third Party Payments,474101,Purchase of Care,04-Oct-16,3187642-2336077,"2,156.96",EMBRACE ALL LTD.
Adult and Health Services,Central/Other,Debtors,930024,Debtor-free nursing care,04-Oct-16,3187642-2336078,625,EMBRACE ALL LTD.
Adult and Health Services,Head of Adults,Third Party Payments,471101,Purchase of Care,04-Oct-16,3187642-2336079,"2,135.60",EMBRACE ALL LTD.
Adult and Health Services,Head of Adults,Third Party Payments,471101,Purchase of Care,04-Oct-16,3187642-2336080,"2,135.60",EMBRACE ALL LTD.
Adult and Health Services,Head of Adults,Third Party Payments,470101,Purchase of Care,04-Oct-16,3187642-2336081,"2,059.56",EMBRACE ALL LTD.
Adult and Health Services,Head of Adults,Third Party Payments,471101,Purchase of Care,04-Oct-16,3187642-2336082,"2,135.60",EMBRACE ALL LTD.
Adult and Health Services,Head of Adults,Third Party Payments,470101,Purchase of Care,04-Oct-16,3187642-2336083,"2,059.56",EMBRACE ALL LTD.
Adult and Health Services,Head of Adults,Debtors,930135,Debtor Residential Care - IC+ Rehabilitation,04-Oct-16,3187642-2338246,"2,252.48",EMBRACE ALL LTD.
Adult and Health Services,Head of Adults,Debtors,930135,Debtor Residential Care - IC+ Rehabilitation,04-Oct-16,3187642-2338406,915.07,EMBRACE ALL LTD.
Adult and Health Services,Head of Adults,Third Party Payments,470101,Purchase of Care,04-Oct-16,3187642-2338426,956.22,EMBRACE ALL LTD.
Adult and Health Services,Head of Adults,Third Party Payments,471101,Purchase of Care,04-Oct-16,3187643-2337364,"2,135.60",EMBRACE ALL LTD.
Adult and Health Services,Head of Adults,Third Party Payments,470101,Purchase of Care,04-Oct-16,3187643-2337365,"2,059.56",EMBRACE ALL LTD.
Adult and Health Services,Head of Adults,Debtors,930135,Debtor Residential Care - IC+ Rehabilitation,04-Oct-16,3187643-2337367,"1,900.53",EMBRACE ALL LTD.
Adult and Health Services,Head of Adults,Third Party Payments,470101,Purchase of Care,04-Oct-16,3187643-2337368,"6,325.78",EMBRACE ALL LTD.
Adult and Health Services,Head of Adults,Third Party Payments,474101,Purchase of Care,04-Oct-16,3187643-2337369,"2,156.96",EMBRACE ALL LTD.
Adult and Health Services,Central/Other,Debtors,930024,Debtor-free nursing care,04-Oct-16,3187643-2337370,625,EMBRACE ALL LTD.
Adult and Health Services,Head of Adults,Third Party Payments,471101,Purchase of Care,04-Oct-16,3187643-2337371,"2,135.60",EMBRACE ALL LTD.
Adult and Health Services,Head of Adults,Third Party Payments,474101,Purchase of Care,04-Oct-16,3187643-2337372,"2,156.96",EMBRACE ALL LTD.
Adult and Health Services,Central/Other,Debtors,930024,Debtor-free nursing care,04-Oct-16,3187643-2337373,625,EMBRACE ALL LTD.
Adult and Health Services,Head of Adults,Third Party Payments,470101,Purchase of Care,04-Oct-16,3187643-2337374,"2,059.56",EMBRACE ALL LTD.
Adult and Health Services,Head of Adults,Debtors,930135,Debtor Residential Care - IC+ Rehabilitation,04-Oct-16,3187643-2337375,"1,126.24",EMBRACE ALL LTD.
Adult and Health Services,Head of Adults,Third Party Payments,470101,Purchase of Care,04-Oct-16,3187643-2337376,"2,059.56",EMBRACE ALL LTD.
Adult and Health Services,Head of Adults,Third Party Payments,471101,Purchase of Care,04-Oct-16,3187643-2337377,"2,135.60",EMBRACE ALL LTD.
Adult and Health Services,Head of Adults,Third Party Payments,474101,Purchase of Care,04-Oct-16,3187643-2337379,"2,156.96",EMBRACE ALL LTD.
Adult and Health Services,Central/Other,Debtors,930024,Debtor-free nursing care,04-Oct-16,3187643-2337380,625,EMBRACE ALL LTD.
Adult and Health Services,Head of Adults,Third Party Payments,474101,Purchase of Care,04-Oct-16,3187643-2337381,"2,156.96",EMBRACE ALL LTD.
Adult and Health Services,Central/Other,Debtors,930024,Debtor-free nursing care,04-Oct-16,3187643-2337382,625,EMBRACE ALL LTD.
Adult and Health Services,Head of Adults,Third Party Payments,470101,Purchase of Care,04-Oct-16,3187643-2337383,"1,986.00",EMBRACE ALL LTD.
Adult and Health Services,Head of Adults,Debtors,930135,Debtor Residential Care - IC+ Rehabilitation,04-Oct-16,3187643-2337384,703.9,EMBRACE ALL LTD.
Adult and Health Services,Head of Adults,Third Party Payments,474101,Purchase of Care,04-Oct-16,3187643-2337385,924.41,EMBRACE ALL LTD.
Adult and Health Services,Head of Adults,Third Party Payments,470101,Purchase of Care,04-Oct-16,3187643-2337387,"2,059.56",EMBRACE ALL LTD.
Adult and Health Services,Head of Adults,Third Party Payments,470101,Purchase of Care,04-Oct-16,3187643-2337389,"2,059.56",EMBRACE ALL LTD.
Adult and Health Services,Head of Adults,Third Party Payments,474101,Purchase of Care,04-Oct-16,3187643-2337390,"1,078.48",EMBRACE ALL LTD.
Adult and Health Services,Head of Adults,Third Party Payments,474999,Purchase of Care,04-Oct-16,3187643-2337391,609.63,EMBRACE ALL LTD.
Adult and Health Services,Head of Adults,Third Party Payments,474101,Purchase of Care,04-Oct-16,3187643-2337392,"1,078.48",EMBRACE ALL LTD.
Adult and Health Services,Central/Other,Debtors,930024,Debtor-free nursing care,04-Oct-16,3187643-2337393,625,EMBRACE ALL LTD.
Adult and Health Services,Head of Adults,Third Party Payments,470101,Purchase of Care,04-Oct-16,3187643-2337394,"2,059.56",EMBRACE ALL LTD.
Adult and Health Services,Head of Adults,Debtors,930135,Debtor Residential Care - IC+ Rehabilitation,04-Oct-16,3187643-2337395,"1,689.36",EMBRACE ALL LTD.
Adult and Health Services,Head of Adults,Third Party Payments,470101,Purchase of Care,04-Oct-16,3187643-2337398,"2,059.56",EMBRACE ALL LTD.
Adult and Health Services,Head of Adults,Debtors,930135,Debtor Residential Care - IC+ Rehabilitation,04-Oct-16,3187643-2337399,"2,182.09",EMBRACE ALL LTD.
Adult and Health Services,Head of Adults,Third Party Payments,474101,Purchase of Care,04-Oct-16,3187643-2337400,"2,156.96",EMBRACE ALL LTD.
Adult and Health Services,Central/Other,Debtors,930024,Debtor-free nursing care,04-Oct-16,3187643-2337401,625,EMBRACE ALL LTD.
Adult and Health Services,Head of Adults,Third Party Payments,474101,Purchase of Care,04-Oct-16,3187643-2337402,"2,156.96",EMBRACE ALL LTD.
Adult and Health Services,Central/Other,Debtors,930024,Debtor-free nursing care,04-Oct-16,3187643-2337403,625,EMBRACE ALL LTD.
Adult and Health Services,Head of Adults,Third Party Payments,474101,Purchase of Care,04-Oct-16,3187643-2337404,"2,156.96",EMBRACE ALL LTD.
Adult and Health Services,Central/Other,Debtors,930024,Debtor-free nursing care,04-Oct-16,3187643-2337405,625,EMBRACE ALL LTD.
Adult and Health Services,Head of Adults,Third Party Payments,474101,Purchase of Care,04-Oct-16,3187643-2337406,"2,156.96",EMBRACE ALL LTD.
Adult and Health Services,Central/Other,Debtors,930024,Debtor-free nursing care,04-Oct-16,3187643-2337407,625,EMBRACE ALL LTD.
Adult and Health Services,Head of Adults,Third Party Payments,470101,Purchase of Care,04-Oct-16,3187643-2337408,956.22,EMBRACE ALL LTD.
Adult and Health Services,Head of Adults,Debtors,930135,Debtor Residential Care - IC+ Rehabilitation,04-Oct-16,3187643-2337410,"1,478.19",EMBRACE ALL LTD.
Adult and Health Services,Head of Adults,Third Party Payments,471101,Purchase of Care,04-Oct-16,3187643-2337411,"2,135.60",EMBRACE ALL LTD.
Adult and Health Services,Head of Adults,Third Party Payments,470101,Purchase of Care,04-Oct-16,3187643-2337412,"2,059.56",EMBRACE ALL LTD.
Adult and Health Services,Head of Adults,Third Party Payments,470101,Purchase of Care,04-Oct-16,3187643-2337413,"2,059.56",EMBRACE ALL LTD.
Adult and Health Services,Head of Adults,Third Party Payments,470101,Purchase of Care,04-Oct-16,3187643-2337414,"2,059.56",EMBRACE ALL LTD.
Adult and Health Services,Head of Adults,Third Party Payments,471101,Purchase of Care,04-Oct-16,3187643-2337415,"2,135.60",EMBRACE ALL LTD.
Adult and Health Services,Central/Other,Debtors,930024,Debtor-free nursing care,04-Oct-16,3187643-2337416,625,EMBRACE ALL LTD.
Adult and Health Services,Head of Adults,Third Party Payments,474101,Purchase of Care,04-Oct-16,3187643-2337417,"2,156.96",EMBRACE ALL LTD.
Adult and Health Services,Central/Other,Debtors,930024,Debtor-free nursing care,04-Oct-16,3187643-2337418,625,EMBRACE ALL LTD.
Adult and Health Services,Head of Adults,Third Party Payments,470101,Purchase of Care,04-Oct-16,3187643-2337419,"2,124.52",EMBRACE ALL LTD.
Adult and Health Services,Head of Adults,Third Party Payments,470101,Purchase of Care,04-Oct-16,3187643-2337420,"2,059.56",EMBRACE ALL LTD.
Adult and Health Services,Head of Adults,Third Party Payments,470101,Purchase of Care,04-Oct-16,3187643-2337421,735.55,EMBRACE ALL LTD.
Adult and Health Services,Head of Adults,Third Party Payments,470101,Purchase of Care,04-Oct-16,3187643-2337422,"2,059.56",EMBRACE ALL LTD.
Adult and Health Services,Head of Adults,Third Party Payments,474101,Purchase of Care,04-Oct-16,3187643-2337423,"2,156.96",EMBRACE ALL LTD.
Adult and Health Services,Central/Other,Debtors,930024,Debtor-free nursing care,04-Oct-16,3187643-2337424,625,EMBRACE ALL LTD.
Adult and Health Services,Head of Adults,Third Party Payments,471101,Purchase of Care,04-Oct-16,3187643-2337425,"2,135.60",EMBRACE ALL LTD.
Adult and Health Services,Head of Adults,Third Party Payments,471101,Purchase of Care,04-Oct-16,3187643-2337426,"2,135.60",EMBRACE ALL LTD.
Adult and Health Services,Head of Adults,Third Party Payments,474101,Purchase of Care,04-Oct-16,3187643-2337427,"2,156.96",EMBRACE ALL LTD.
Adult and Health Services,Central/Other,Debtors,930024,Debtor-free nursing care,04-Oct-16,3187643-2337428,625,EMBRACE ALL LTD.
Adult and Health Services,Head of Adults,Third Party Payments,470101,Purchase of Care,04-Oct-16,3187643-2337429,"2,059.56",EMBRACE ALL LTD.
Adult and Health Services,Central/Other,Debtors,930024,Debtor-free nursing care,04-Oct-16,3187643-2337430,625,EMBRACE ALL LTD.
Adult and Health Services,Head of Adults,Third Party Payments,471101,Purchase of Care,04-Oct-16,3187643-2337431,"2,135.60",EMBRACE ALL LTD.
Adult and Health Services,Head of Adults,Third Party Payments,470101,Purchase of Care,04-Oct-16,3187643-2337432,"2,059.56",EMBRACE ALL LTD.
Adult and Health Services,Head of Adults,Third Party Payments,474101,Purchase of Care,04-Oct-16,3187643-2337433,"2,156.96",EMBRACE ALL LTD.
Adult and Health Services,Central/Other,Debtors,930024,Debtor-free nursing care,04-Oct-16,3187643-2337434,625,EMBRACE ALL LTD.
Adult and Health Services,Head of Adults,Third Party Payments,474101,Purchase of Care,04-Oct-16,3187643-2337435,"2,156.96",EMBRACE ALL LTD.
Adult and Health Services,Central/Other,Debtors,930024,Debtor-free nursing care,04-Oct-16,3187643-2337436,625,EMBRACE ALL LTD.
Adult and Health Services,Head of Adults,Third Party Payments,470101,Purchase of Care,04-Oct-16,3187643-2337437,"2,059.56",EMBRACE ALL LTD.
Adult and Health Services,Head of Adults,Third Party Payments,470101,Purchase of Care,04-Oct-16,3187643-2337438,"2,309.64",EMBRACE ALL LTD.
Adult and Health Services,Head of Adults,Third Party Payments,471101,Purchase of Care,04-Oct-16,3187643-2337439,"2,135.60",EMBRACE ALL LTD.
Adult and Health Services,Head of Adults,Third Party Payments,471101,Purchase of Care,04-Oct-16,3187643-2337442,"2,135.60",EMBRACE ALL LTD.
Adult and Health Services,Head of Adults,Third Party Payments,471101,Purchase of Care,04-Oct-16,3187643-2337443,"2,135.60",EMBRACE ALL LTD.
Adult and Health Services,Head of Adults,Third Party Payments,471101,Purchase of Care,04-Oct-16,3187643-2337444,"2,135.60",EMBRACE ALL LTD.
Adult and Health Services,Head of Adults,Third Party Payments,474101,Purchase of Care,04-Oct-16,3187643-2338237,"1,771.78",EMBRACE ALL LTD.
Adult and Health Services,Head of Adults,Third Party Payments,474101,Purchase of Care,04-Oct-16,3187644-2335979,"2,211.56",EMBRACE ALL LTD.
Adult and Health Services,Head of Adults,Third Party Payments,470101,Purchase of Care,04-Oct-16,3187644-2335980,"1,289.80",EMBRACE ALL LTD.
Adult and Health Services,Head of Adults,Third Party Payments,474101,Purchase of Care,04-Oct-16,3187644-2335981,"2,211.56",EMBRACE ALL LTD.
Adult and Health Services,Head of Adults,Third Party Payments,470101,Purchase of Care,04-Oct-16,3187644-2335982,"1,593.36",EMBRACE ALL LTD.
Adult and Health Services,Head of Adults,Third Party Payments,471101,Purchase of Care,04-Oct-16,3187645-2337520,"2,669.50",EMBRACE ALL LTD.
Adult and Health Services,Head of Adults,Third Party Payments,470101,Purchase of Care,04-Oct-16,3187645-2337522,"2,059.56",EMBRACE ALL LTD.
Adult and Health Services,Head of Adults,Debtors,930135,Debtor Residential Care - IC+ Rehabilitation,04-Oct-16,3187645-2337523,"2,604.43",EMBRACE ALL LTD.
Adult and Health Services,Central/Other,Debtors,930024,Debtor-free nursing care,04-Oct-16,3187645-2337525,625,EMBRACE ALL LTD.
Adult and Health Services,Head of Adults,Third Party Payments,474101,Purchase of Care,04-Oct-16,3187645-2337526,"3,466.55",EMBRACE ALL LTD.
Adult and Health Services,Central/Other,Debtors,930024,Debtor-free nursing care,04-Oct-16,3187645-2337527,"1,004.46",EMBRACE ALL LTD.
Adult and Health Services,Head of Adults,Third Party Payments,471101,Purchase of Care,04-Oct-16,3187645-2337528,"2,135.60",EMBRACE ALL LTD.
Adult and Health Services,Head of Adults,Third Party Payments,470101,Purchase of Care,04-Oct-16,3187645-2337529,"1,838.89",EMBRACE ALL LTD.
Adult and Health Services,Head of Adults,Third Party Payments,470101,Purchase of Care,04-Oct-16,3187645-2337530,"2,059.56",EMBRACE ALL LTD.
Adult and Health Services,Head of Adults,Third Party Payments,470101,Purchase of Care,04-Oct-16,3187645-2337531,"2,059.56",EMBRACE ALL LTD.
Adult and Health Services,Head of Adults,Debtors,930135,Debtor Residential Care - IC+ Rehabilitation,04-Oct-16,3187645-2337533,"1,055.85",EMBRACE ALL LTD.
Adult and Health Services,Head of Adults,Third Party Payments,474101,Purchase of Care,04-Oct-16,3187645-2337534,"2,156.96",EMBRACE ALL LTD.
Adult and Health Services,Central/Other,Debtors,930024,Debtor-free nursing care,04-Oct-16,3187645-2337535,625,EMBRACE ALL LTD.
Adult and Health Services,Head of Adults,Third Party Payments,474101,Purchase of Care,04-Oct-16,3187645-2337538,"1,078.48",EMBRACE ALL LTD.
Adult and Health Services,Head of Adults,Third Party Payments,474999,Purchase of Care,04-Oct-16,3187645-2337539,609.63,EMBRACE ALL LTD.
Adult and Health Services,Head of Adults,Third Party Payments,470101,Purchase of Care,04-Oct-16,3187645-2337540,"2,059.56",EMBRACE ALL LTD.
Adult and Health Services,Head of Adults,Third Party Payments,474101,Purchase of Care,04-Oct-16,3187645-2337541,"2,156.96",EMBRACE ALL LTD.
Adult and Health Services,Central/Other,Debtors,930024,Debtor-free nursing care,04-Oct-16,3187645-2337542,625,EMBRACE ALL LTD.
Adult and Health Services,Head of Adults,Third Party Payments,474101,Purchase of Care,04-Oct-16,3187645-2337543,"2,156.96",EMBRACE ALL LTD.
Adult and Health Services,Head of Adults,Third Party Payments,474101,Purchase of Care,04-Oct-16,3187645-2337544,"2,156.96",EMBRACE ALL LTD.
Adult and Health Services,Central/Other,Debtors,930024,Debtor-free nursing care,04-Oct-16,3187645-2337545,625,EMBRACE ALL LTD.
